"PaymentDate","VendorName","PaymentAmount","Fund","FundDescription","Center","CenterName","Account","AccountName","FiscalYear","AccountingPeriod"
"2019-05-20 00:00:00","A RAZORS EDGE                                ","750","700","FLEET MANAGEMENT","20706","FLEET MANAGEMENT OPERATIONS        ","52360","MAINT - MACHINERY, EQUIP & AUTOS   ","2019","11"
"2019-05-20 00:00:00","ALL CITY TOWING                              ","158","700","FLEET MANAGEMENT","20706","FLEET MANAGEMENT OPERATIONS        ","52360","MAINT - MACHINERY, EQUIP & AUTOS   ","2019","11"
"2019-05-20 00:00:00","ARIZONA DEPARTMENT OF PUBLIC SAFETY          ","22","100","GENERAL","23510","TAX AND LICENSE ADMINISTRATION     ","52190","OTHER PROFESSIONAL SERVICES        ","2019","11"
"2019-05-20 00:00:00","BAKER & TAYLOR LLC                           ","499.26","100","GENERAL","25602","LIBRARY OPERATIONS                 ","53600","LIBRARY MATERIALS                  ","2019","11"
"2019-05-20 00:00:00","C & I SHOW HARDWARE AND SECURITY SYSTEMS INC ","117.83","100","GENERAL","20904","BUILDING MAINTENANCE AND REPAIR    ","53770","MTRS TO MAINT & REPAIR BLDS & IMPR ","2019","11"
"2019-05-20 00:00:00","CENTRAL ARIZONA PROJECT                      ","2146007.17","600","WATER","29221","CAP TREATMENT PLANT                ","53070","PURCHASED WATER                    ","2019","11"
"2019-05-20 00:00:00","CENTRAL ARIZONA PROJECT                      ","6666","606","INLET/SILVERADO GOLF COURSE IRRIGATION","29602","INLET GOLF COURSE IRRIGATION       ","53070","PURCHASED WATER                    ","2019","11"
"2019-05-20 00:00:00","CLEARWING PRODUCTIONS                        ","156263.67","409","CIP TOURISM DEVELOPMENT","DE08A","WESTWORLD PURCHASE PRTBL RV PED *12","56133","EQUP - OTHER                       ","2019","11"
"2019-05-20 00:00:00","CPEC COIN & PROFESSIONAL EQUIPMENT CO        ","689.41","100","GENERAL","25403","STADIUM OPERATIONS                 ","52190","OTHER PROFESSIONAL SERVICES        ","2019","11"
"2019-05-20 00:00:00","DIBBLE ENGINEERING                           ","3300","605","CIP WATER RECLAMATION","VF06A","WASTEWATER SYSTEM IMPROVEMENTS     ","56059","DSGN - WWATER - COLLECTION SYSTEM  ","2019","11"
"2019-05-20 00:00:00","DOLORES ROMERO                               ","270","100","GENERAL","25451","LEISURE EDUCATION PROGRAMS         ","52190","OTHER PROFESSIONAL SERVICES        ","2019","11"
"2019-05-20 00:00:00","EVOQUA WATER TECHNOLOGIES LLC                ","254.36","100","GENERAL","20905","HVAC MAINTENANCE                   ","52360","MAINT - MACHINERY, EQUIP & AUTOS   ","2019","11"
"2019-05-20 00:00:00","FEDEX                                        ","315.87","100","GENERAL","22611","RECORDS                            ","52210","POSTAGE AND SHIPPING               ","2019","11"
"2019-05-20 00:00:00","GAIL SIKES                                   ","513","100","GENERAL","25451","LEISURE EDUCATION PROGRAMS         ","52190","OTHER PROFESSIONAL SERVICES        ","2019","11"
"2019-05-20 00:00:00","GREATER PHOENIX JEWISH FILM FESTIVAL INC     ","4375","285","TOURISM DEVELOPMENT","21711","EVENT RETENTION AND DEVELOPMENT    ","52183","EVENT DEVELOPMENT/RETENTION        ","2019","11"
"2019-05-20 00:00:00","HILL BROTHERS CHEMICAL CO                    ","420","612","GAINEY RANCH WWTP","29607","GAINEY RANCH WATER RECLAMATION     ","53051","TREATMENT CHEMICAL(NON-TAXABLE)    ","2019","11"
"2019-05-20 00:00:00","HYATT HOUSE SCOTTSDALE/OLD TOWN              ","758.25","220","CDBG","32440","18/19-CITY EMERGENCY HOME *01/20   ","52890","OTHER CONTRACTUAL SERVICES         ","2019","11"
"2019-05-20 00:00:00","IMCOR                                        ","60474.95","400","CIP GENERAL","YF01A","FACILITIES RPR AND MAINT PGM       ","56082","CONT - BUILDINGS                   ","2019","11"
"2019-05-20 00:00:00","JACKS TIRE & OIL MANAGEMENT COMPANY INC      ","802","700","FLEET MANAGEMENT","20706","FLEET MANAGEMENT OPERATIONS        ","52360","MAINT - MACHINERY, EQUIP & AUTOS   ","2019","11"
"2019-05-20 00:00:00","JRS SHOES & BOOTS                            ","123.97","650","SOLID WASTE MANAGEMENT","20540","COLLECTION SVC ADMIN-RES           ","53050","CLOTHING & PERSONAL PROTECT EQUIP  ","2019","11"
"2019-05-20 00:00:00","K2 FITNESS LLC                               ","955.08","100","GENERAL","22036","PROFESSIONAL STANDARDS             ","52800","SUBSCRIPTIONS & MEMBERSHIPS        ","2019","11"
"2019-05-20 00:00:00","MAXIMUM FITNESS INC                          ","1700","100","GENERAL","22036","PROFESSIONAL STANDARDS             ","52800","SUBSCRIPTIONS & MEMBERSHIPS        ","2019","11"
"2019-05-20 00:00:00","MISSION UNIFORM SERVICE                      ","49.56","100","GENERAL","22205","DETENTION                          ","52190","OTHER PROFESSIONAL SERVICES        ","2019","11"
"2019-05-20 00:00:00","MOUNTAINSIDE FITNESS                         ","1916","100","GENERAL","22036","PROFESSIONAL STANDARDS             ","52800","SUBSCRIPTIONS & MEMBERSHIPS        ","2019","11"
"2019-05-20 00:00:00","MSC INDUSTRIAL SUPPLY CO INC                 ","477.67","700","FLEET MANAGEMENT","20706","FLEET MANAGEMENT OPERATIONS        ","53780","OTHER MAINTENANCE & REPAIR SUPPLY  ","2019","11"
"2019-05-20 00:00:00","OFFICE SYSTEMS INSTALLATION LLC              ","166","100","GENERAL","01116","CITIZEN SERVICE                    ","52190","OTHER PROFESSIONAL SERVICES        ","2019","11"
"2019-05-20 00:00:00","POWERDETAILS LLC                             ","9174.05","100","GENERAL","22610","TECHNOLOGY SERVICES                ","52350","SOFTWARE MAINT & LICENSING         ","2019","11"
"2019-05-20 00:00:00","REDDY ICE                                    ","307.43","100","GENERAL","20902","CONTRACT ADMINISTRATION            ","53090","OTHER OPERATING SUPPLIES           ","2019","11"
"2019-05-20 00:00:00","SAFELITE AUTOGLASS                           ","794.36","700","FLEET MANAGEMENT","20706","FLEET MANAGEMENT OPERATIONS        ","52360","MAINT - MACHINERY, EQUIP & AUTOS   ","2019","11"
"2019-05-20 00:00:00","SALT WORKS                                   ","3398.4","600","WATER","29260","CHAPARRAL WATER TREATMENT PLANT    ","53051","TREATMENT CHEMICAL(NON-TAXABLE)    ","2019","11"
"2019-05-20 00:00:00","SKYLINE BUILDERS & RESTORATION INC           ","74652.63","100","GENERAL","2090A","FACILITIES MGMT REPAIR & MAINT     ","52330","MAINTENANCE, BUILDINGS & STRUCTURE ","2019","11"
"2019-05-20 00:00:00","SOUTHWEST MOBILE STORAGE INC                 ","65.16","100","GENERAL","25453","PARKS & REC - YOUTH DEVELOPMENT    ","52590","OTHER RENTALS                      ","2019","11"
"2019-05-20 00:00:00","SQUEEGEE SQUAD                               ","550","100","GENERAL","20902","CONTRACT ADMINISTRATION            ","52157","CUSTODIAL SERVICES                 ","2019","11"
"2019-05-20 00:00:00","TEL TECH NETWORKS INC                        ","122.06","410","CIP TRANSPORTATION PRIVILEGE TAX ","YF07B","IT - NETWORK INFRASTRUCTURE *01/20 ","56030","BLDG - BLDG MAINTENANCE & REPAIRS  ","2019","11"
"2019-05-20 00:00:00","TEL TECH NETWORKS INC                        ","282.72","602","CIP WATER","YF07E","IT - NETWORK INFRASTRUCTURE *01/20 ","56030","BLDG - BLDG MAINTENANCE & REPAIRS  ","2019","11"
"2019-05-20 00:00:00","TEL TECH NETWORKS INC                        ","14.46","651","CIP SOLID WASTE MANAGEMENT","YF07H","IT - NETWORK INFRASTRUCTURE *01/20 ","56030","BLDG - BLDG MAINTENANCE & REPAIRS  ","2019","11"
"2019-05-20 00:00:00","THE ARIZONA REPUBLIC                         ","312.8","280","SPECIAL PROGRAMS","20650","APS RAINTREE ID STARTUP ADMIN      ","52185","ADVERTISING                        ","2019","11"
"2019-05-20 00:00:00","ACE AUTO COLLISION & PAINTING SERVICES INC   ","5328.18","700","FLEET MANAGEMENT","20706","FLEET MANAGEMENT OPERATIONS        ","52365","MAINTENANCE, VEH REP/ACCIDENTS     ","2019","11"
"2019-05-20 00:00:00","AIMS COMPANIES                               ","577.5","200","TRANSPORTATION","20810","GRADING AND DRAINAGE *06/20        ","52390","MISC MAINTENANCE AND REPAIR        ","2019","11"
"2019-05-20 00:00:00","ARIZONA DEPARTMENT OF ENVIRONMENTAL QUALITY  ","200","600","WATER","29460","WATER LABORATORY                   ","52800","SUBSCRIPTIONS & MEMBERSHIPS        ","2019","11"
"2019-05-20 00:00:00","ARIZONA DEPARTMENT OF PUBLIC SAFETY          ","44","100","GENERAL","23510","TAX AND LICENSE ADMINISTRATION     ","52190","OTHER PROFESSIONAL SERVICES        ","2019","11"
"2019-05-20 00:00:00","B2B PROMOTIONAL GROUP                        ","231.1","640","AVIATION","21900","AVIATION                           ","52800","SUBSCRIPTIONS & MEMBERSHIPS        ","2019","11"
"2019-05-20 00:00:00","BENNETT KOPP                                 ","800","100","GENERAL","25451","LEISURE EDUCATION PROGRAMS         ","52190","OTHER PROFESSIONAL SERVICES        ","2019","11"
"2019-05-20 00:00:00","COMM FIT SERVICE ARIZONA LLC                 ","85","100","GENERAL","25304","GRANITE REEF SENIOR CENTER         ","52360","MAINT - MACHINERY, EQUIP & AUTOS   ","2019","11"
"2019-05-20 00:00:00","CUMMINS ROCKY MOUNTAIN LLC                   ","232","700","FLEET MANAGEMENT","20706","FLEET MANAGEMENT OPERATIONS        ","52360","MAINT - MACHINERY, EQUIP & AUTOS   ","2019","11"
"2019-05-20 00:00:00","CURRIER CONSTRUCTION INC                     ","34768.7","605","CIP WATER RECLAMATION","VD01A","WASTEWATER TREATMENT FACILITY IMPR ","56098","CONT - WWATER - TREATMENT FACILITY ","2019","11"
"2019-05-20 00:00:00","DBA CONSTRUCTION                             ","32102.95","100","GENERAL","25408","STORM DAMAGE REPAIR AND MAINTENANCE","52323","LANDSCAPING                        ","2019","11"
"2019-05-20 00:00:00","FELIX CONSTRUCTION COMPANY                   ","386576.37","605","CIP WATER RECLAMATION","VD01A","WASTEWATER TREATMENT FACILITY IMPR ","56091","CONT - WATER - TREATMENT FACILITY  ","2019","11"
"2019-05-20 00:00:00","GMS TACTICAL                                 ","767.85","100","GENERAL","22607","RESOURCE MANAGEMENT                ","53050","CLOTHING & PERSONAL PROTECT EQUIP  ","2019","11"
"2019-05-20 00:00:00","GREEN BUSINESS CERTIFICATION INC             ","775","446","CIP 2015 GO Q5-PUBLC SFTY-FIRE","BC02A","FIRE STATION 613 CONSTRUCTION *06/1","56048","DSGN - CERTIFICATIONS              ","2019","11"
"2019-05-20 00:00:00","JOSEPH EARLY                                 ","625","230","GRANTS","36834","2018 UASI SCOTTSDALE FIRE TLO *11/1","52245","TRAINING/BUSINESS CONFERENCE       ","2019","11"
"2019-05-20 00:00:00","KELLER ELECTRICAL INDUSTRIES INC             ","14550.55","600","WATER","29260","CHAPARRAL WATER TREATMENT PLANT    ","53793","MAT TO MAINT AND REPAIR ELEC       ","2019","11"
"2019-05-20 00:00:00","LIGHTING UNLIMITED                           ","1724.85","100","GENERAL","20903","ELECTRICAL  MAINTENANCE            ","53770","MTRS TO MAINT & REPAIR BLDS & IMPR ","2019","11"
"2019-05-20 00:00:00","LOFTIN EQUIPMENT CO                          ","823.67","100","GENERAL","20902","CONTRACT ADMINISTRATION            ","52360","MAINT - MACHINERY, EQUIP & AUTOS   ","2019","11"
"2019-05-20 00:00:00","LOFTIN EQUIPMENT CO                          ","1624.31","400","CIP GENERAL","YF01A","FACILITIES RPR AND MAINT PGM       ","56082","CONT - BUILDINGS                   ","2019","11"
"2019-05-20 00:00:00","MARICOPA COUNTY ENVIRONMENTAL SERVICES DEPT  ","600","650","SOLID WASTE MANAGEMENT","20534","SOLID WASTE MANAGEMENT ADMIN SVCS  ","52875","LICENSES & PERMITS                 ","2019","11"
"2019-05-20 00:00:00","MATHESON TRI GAS INC                         ","402.66","600","WATER","29460","WATER LABORATORY                   ","53040","CHEMICALS & LABORATORY SUPPLIES    ","2019","11"
"2019-05-20 00:00:00","MCESD                                        ","600","602","CIP WATER","WB77B","WATER DISTRIBUTION SYSTEM IMPROV   ","56086","CONT - OTHER                       ","2019","11"
"2019-05-20 00:00:00","MOUNTAINSIDE FITNESS                         ","2549.3","100","GENERAL","22036","PROFESSIONAL STANDARDS             ","52800","SUBSCRIPTIONS & MEMBERSHIPS        ","2019","11"
"2019-05-20 00:00:00","NESBITT CONTRACTING COMPANY INC              ","76401.7","410","CIP TRANSPORTATION PRIVILEGE TAX ","SF03A","ADA TRANSITION PLAN IMPL           ","56086","CONT - OTHER                       ","2019","11"
"2019-05-20 00:00:00","RIO VERDE POTABLE WATER                      ","225","100","GENERAL","25100","PRESERVE PLANNING & ADMINISTRATION ","52190","OTHER PROFESSIONAL SERVICES        ","2019","11"
"2019-05-20 00:00:00","SALT WORKS                                   ","74.33","600","WATER","29260","CHAPARRAL WATER TREATMENT PLANT    ","53052","CLEANING CHEMICAL(TAXABLE)         ","2019","11"
"2019-05-20 00:00:00","STOTZ EQUIPMENT                              ","28.67","100","GENERAL","25404","PROFESSIONAL BASEBALL              ","52360","MAINT - MACHINERY, EQUIP & AUTOS   ","2019","11"
"2019-05-20 00:00:00","TEL TECH NETWORKS INC                        ","1993.08","400","CIP GENERAL","YE07A","IT - NETWORK INFRASTRUCTURE *06/19 ","56030","BLDG - BLDG MAINTENANCE & REPAIRS  ","2019","11"
"2019-05-20 00:00:00","TEL TECH NETWORKS INC                        ","12.33","642","CIP AIRPORT","YF07G","IT - NETWORK INFRASTRUCTURE *01/20 ","56030","BLDG - BLDG MAINTENANCE & REPAIRS  ","2019","11"
"2019-05-20 00:00:00","THATCHER COMPANY OF ARIZONA INC              ","1483.32","100","GENERAL","25410","MAINTENANCE - FOUNTAINS & AQUATICS ","53040","CHEMICALS & LABORATORY SUPPLIES    ","2019","11"
"2019-05-20 00:00:00","THE ARIZONA REPUBLIC                         ","672","100","GENERAL","01030","CITY CLERK                         ","52185","ADVERTISING                        ","2019","11"
"2019-05-20 00:00:00","THE ARIZONA REPUBLIC                         ","1017.6","100","GENERAL","21300","CURRENT PLANNING                   ","52185","ADVERTISING                        ","2019","11"
"2019-05-20 00:00:00","THE ARIZONA REPUBLIC                         ","61.2","642","CIP AIRPORT","AF01A","DSGN/CON N GRL AVTN BOX HNGRS      ","56080","CONT -CONSTRUCTION BUDGET USE ONLY ","2019","11"
"2019-05-20 00:00:00","TORAY MEMBRANE USA INC                       ","11300","605","CIP WATER RECLAMATION","VB69A","ADVANCED WTP MEMBRANES-WASTEWATER  ","56098","CONT - WWATER - TREATMENT FACILITY ","2019","11"
"2019-05-20 00:00:00","UNITED FIRE                                  ","229.17","100","GENERAL","22035","FIRE RESOURCE MANAGEMENT           ","53050","CLOTHING & PERSONAL PROTECT EQUIP  ","2019","11"
"2019-05-20 00:00:00","VALERIE FREDERICK                            ","216","100","GENERAL","25451","LEISURE EDUCATION PROGRAMS         ","52190","OTHER PROFESSIONAL SERVICES        ","2019","11"
"2019-05-20 00:00:00","VIP TAXI LLC                                 ","17335.76","200","TRANSPORTATION","21110","TRANSIT OPERATIONS *06/19          ","52866","TAXI VOUCHER PROGRAM               ","2019","11"
"2019-05-20 00:00:00","ZAYO GROUP LLC                               ","1218.27","100","GENERAL","27507","DATA CENTER RESILIENCY PLAN        ","52228","RWC JT VENTURE ASSESSMENTS         ","2019","11"
"2019-05-21 00:00:00","ALL CITY TOWING                              ","661","700","FLEET MANAGEMENT","20706","FLEET MANAGEMENT OPERATIONS        ","52360","MAINT - MACHINERY, EQUIP & AUTOS   ","2019","11"
"2019-05-21 00:00:00","APS                                          ","230787.44","100","GENERAL","20901","UTILITIES                          ","52711","ELECTRIC                           ","2019","11"
"2019-05-21 00:00:00","APS                                          ","44191.35","100","GENERAL","20910","WESTWORLD TNEC EXPANSION           ","52711","ELECTRIC                           ","2019","11"
"2019-05-21 00:00:00","APS                                          ","4532.57","600","WATER","29110","ENGINEERING/ADMIN - WATER          ","52711","ELECTRIC                           ","2019","11"
"2019-05-21 00:00:00","APS                                          ","1926.43","650","SOLID WASTE MANAGEMENT","20535","TRANSFER STATION OPERATIONS        ","52711","ELECTRIC                           ","2019","11"
"2019-05-21 00:00:00","ARIZONA DEPARTMENT OF ENVIRONMENTAL QUALITY  ","65","600","WATER","29221","CAP TREATMENT PLANT                ","52800","SUBSCRIPTIONS & MEMBERSHIPS        ","2019","11"
"2019-05-21 00:00:00","ARIZONA DEPARTMENT OF PUBLIC SAFETY          ","22","100","GENERAL","23510","TAX AND LICENSE ADMINISTRATION     ","52190","OTHER PROFESSIONAL SERVICES        ","2019","11"
"2019-05-21 00:00:00","ARIZONA STATE UNIVERSITY                     ","1000","230","GRANTS","36244","GILA RIVER FY18/19 - MAYOR *08/19  ","52825","GRANTS AND SUBSIDIES               ","2019","11"
"2019-05-21 00:00:00","ARIZONAS FINEST ENTERTAINERS LLC             ","2610","285","TOURISM DEVELOPMENT","21743","OTHER COMMITMENTS                  ","52183","EVENT DEVELOPMENT/RETENTION        ","2019","11"
"2019-05-21 00:00:00","BOUND TREE MEDICAL LLC                       ","810.31","100","GENERAL","20904","BUILDING MAINTENANCE AND REPAIR    ","53770","MTRS TO MAINT & REPAIR BLDS & IMPR ","2019","11"
"2019-05-21 00:00:00","CCS PRESENTATION SYSTEMS                     ","479.22","100","GENERAL","25403","STADIUM OPERATIONS                 ","52360","MAINT - MACHINERY, EQUIP & AUTOS   ","2019","11"
"2019-05-21 00:00:00","CITY OF PHOENIX                              ","12996.72","603","WATER RECLAMATION","29303","WATER RECLAMATION SERVICES ADMIN   ","52714","SEWER                              ","2019","11"
"2019-05-21 00:00:00","CITY WIDE PEST CONTROL INC                   ","37","100","GENERAL","25420","LANDSCAPE CONTRACTS                ","52330","MAINTENANCE, BUILDINGS & STRUCTURE ","2019","11"
"2019-05-21 00:00:00","COMBS CONSTRUCTION COMPANY                   ","586016.82","642","CIP AIRPORT","AC02A","APRON RECONST - DELTA APRON *12/19 ","56083","CONT - OTHER STRUCTURES            ","2019","11"
"2019-05-21 00:00:00","COX COMMUNICATIONS PHOENIX                   ","555.56","100","GENERAL","25301","VISTA DEL CAMINO SOCIAL SERVICE CTR","52226","SPECIALTY LINES - COMMUNICATIONS   ","2019","11"
"2019-05-21 00:00:00","EMISSION COMPLIANT CONTROLS CORP             ","3406.48","600","WATER","29275","BOOSTER STATIONS                   ","52360","MAINT - MACHINERY, EQUIP & AUTOS   ","2019","11"
"2019-05-21 00:00:00","FERGUSON ENTERPRISES INC #1001               ","47.31","100","GENERAL","20906","PLUMBING MAINTENANCE               ","53770","MTRS TO MAINT & REPAIR BLDS & IMPR ","2019","11"
"2019-05-21 00:00:00","GRAINGER                                     ","443.65","100","GENERAL","22035","FIRE RESOURCE MANAGEMENT           ","53021","FIRE STATION SUPPLIES AND EQUIPMENT","2019","11"
"2019-05-21 00:00:00","GRAINGER                                     ","833.29","600","WATER","29530","UTILITIES MAINTENANCE - WATER      ","53793","MAT TO MAINT AND REPAIR ELEC       ","2019","11"
"2019-05-21 00:00:00","GRAINGER                                     ","2043.38","600","WATER","29540","UTILITIES MAINT-ELECTRICAL         ","53720","SMALL TOOLS & EQUIPMENT            ","2019","11"
"2019-05-21 00:00:00","GRAINGER                                     ","1084.42","603","WATER RECLAMATION","29380","WATER CAMPUS WATER RECLAMATION PLNT","53794","MAT TO MAINT AND REPAIR MECH SYS   ","2019","11"
"2019-05-21 00:00:00","IMCOR                                        ","27128.64","400","CIP GENERAL","YF01A","FACILITIES RPR AND MAINT PGM       ","56082","CONT - BUILDINGS                   ","2019","11"
"2019-05-21 00:00:00","MCDOWELL SONORAN CONSERVANCY                 ","4959.58","100","GENERAL","25100","PRESERVE PLANNING & ADMINISTRATION ","52185","ADVERTISING                        ","2019","11"
"2019-05-21 00:00:00","MICHAEL NIGBUR                               ","148.5","100","GENERAL","25455","ADULT SPORTS PROGRAMS              ","52190","OTHER PROFESSIONAL SERVICES        ","2019","11"
"2019-05-21 00:00:00","MOUNTAIN STATES WHOLESALE NURSERY            ","398.56","100","GENERAL","25424","MAINTENANCE-CACTUS PARK            ","53010","AGRICULTURE & HORTICULTURE SUPPLY  ","2019","11"
"2019-05-21 00:00:00","PACIFIC CONSOLIDATED INDUSTRIES LLC          ","270.88","603","WATER RECLAMATION","29321","SEWER SYSTEM                       ","53794","MAT TO MAINT AND REPAIR MECH SYS   ","2019","11"
"2019-05-21 00:00:00","RANDALL PALACIOS                             ","214.5","100","GENERAL","25455","ADULT SPORTS PROGRAMS              ","52190","OTHER PROFESSIONAL SERVICES        ","2019","11"
"2019-05-21 00:00:00","RICK FORGUS                                  ","3300","100","GENERAL","22100","OFFICE OF THE POLICE CHIEF         ","52270","PRINTING & GRAPHICS SERVICES       ","2019","11"
"2019-05-21 00:00:00","RUSSELL A BROWN                              ","1430","100","GENERAL","25417","INDIAN SCHOOL PARK SPORTS COMPLEX  ","52190","OTHER PROFESSIONAL SERVICES        ","2019","11"
"2019-05-21 00:00:00","SAFELITE AUTOGLASS                           ","261.19","700","FLEET MANAGEMENT","20706","FLEET MANAGEMENT OPERATIONS        ","52360","MAINT - MACHINERY, EQUIP & AUTOS   ","2019","11"
"2019-05-21 00:00:00","SUNRISE NURSERY LLC                          ","120.65","100","GENERAL","25401","CIVIC CENTER COMPLEX               ","53010","AGRICULTURE & HORTICULTURE SUPPLY  ","2019","11"
"2019-05-21 00:00:00","THATCHER COMPANY OF ARIZONA INC              ","3821.03","603","WATER RECLAMATION","29381","ADVANCED WATER TREATMENT PLANT     ","53051","TREATMENT CHEMICAL(NON-TAXABLE)    ","2019","11"
"2019-05-21 00:00:00","THOMAS PRINTWORKS                            ","173.63","100","GENERAL","20900","FACILITIES MGMT PLANNING AND ADMIN ","53025","FURNITURE & MINOR EQUIPMENT        ","2019","11"
"2019-05-21 00:00:00","UNIFIRST CORPORATION                         ","141.78","100","GENERAL","25400","PARKS & RECREATION PLANNING & ADMIN","52380","UNIFORM CLEANING                   ","2019","11"
"2019-05-22 00:00:00","APS                                          ","11343.95","200","TRANSPORTATION","20860","TRAFFIC SIGNALS *06/20             ","52711","ELECTRIC                           ","2019","11"
"2019-05-22 00:00:00","ARIZONA DEPARTMENT OF PUBLIC SAFETY          ","22","100","GENERAL","23510","TAX AND LICENSE ADMINISTRATION     ","52190","OTHER PROFESSIONAL SERVICES        ","2019","11"
"2019-05-22 00:00:00","ARIZONA SECRETARY OF STATE                   ","43","100","GENERAL","22611","RECORDS                            ","52420","INSURANCE & BOND PREMIUMS          ","2019","11"
"2019-05-20 00:00:00","THE ARIZONA REPUBLIC                         ","40.8","446","CIP 2015 GO Q5-PUBLC SFTY-FIRE","BC03A","FIRE STATION 616 DESIGN & CONST    ","56082","CONT - BUILDINGS                   ","2019","11"
"2019-05-20 00:00:00","THE ARIZONA REPUBLIC                         ","30.6","600","WATER","29110","ENGINEERING/ADMIN - WATER          ","52185","ADVERTISING                        ","2019","11"
"2019-05-21 00:00:00","ADVANTAGE MAIL LLC                           ","424.07","100","GENERAL","23420","GRAPHIC & PRINTING SOLUTIONS       ","52270","PRINTING & GRAPHICS SERVICES       ","2019","11"
"2019-05-21 00:00:00","APS                                          ","32084.17","100","GENERAL","21500","WESTWORLD *06/19                   ","52711","ELECTRIC                           ","2019","11"
"2019-05-21 00:00:00","APS                                          ","5416.89","200","TRANSPORTATION","20909","UTILITIES - MEDIAN & RIGHT OF WAY  ","52711","ELECTRIC                           ","2019","11"
"2019-05-21 00:00:00","ARIZONA DEPARTMENT OF PUBLIC SAFETY          ","286","100","GENERAL","27401","STAFFING SERVICES                  ","52190","OTHER PROFESSIONAL SERVICES        ","2019","11"
"2019-05-21 00:00:00","ASSOCIATED SIGN CO INC                       ","1107.09","100","GENERAL","25403","STADIUM OPERATIONS                 ","52190","OTHER PROFESSIONAL SERVICES        ","2019","11"
"2019-05-21 00:00:00","CINTAS CORPORATION                           ","213.66","700","FLEET MANAGEMENT","20706","FLEET MANAGEMENT OPERATIONS        ","52380","UNIFORM CLEANING                   ","2019","11"
"2019-05-21 00:00:00","DH PACE COMPANY INC                          ","1914.18","100","GENERAL","20902","CONTRACT ADMINISTRATION            ","52330","MAINTENANCE, BUILDINGS & STRUCTURE ","2019","11"
"2019-05-21 00:00:00","ENVIRONMENTAL DRAIN & ODOR CONTROL SERVICES  ","1335","100","GENERAL","20906","PLUMBING MAINTENANCE               ","52330","MAINTENANCE, BUILDINGS & STRUCTURE ","2019","11"
"2019-05-21 00:00:00","FISHERS TOOLS                                ","63.78","100","GENERAL","20904","BUILDING MAINTENANCE AND REPAIR    ","53720","SMALL TOOLS & EQUIPMENT            ","2019","11"
"2019-05-21 00:00:00","GARY C WOODARD                               ","13104","600","WATER","29125","WATER CONSERVATION                 ","52130","CONSULTANTS                        ","2019","11"
"2019-05-21 00:00:00","GRAINGER                                     ","53.7","600","WATER","29510","WATER EFFICIENCY GROUP             ","53720","SMALL TOOLS & EQUIPMENT            ","2019","11"
"2019-05-21 00:00:00","LOFTIN EQUIPMENT CO                          ","722.18","400","CIP GENERAL","YF01A","FACILITIES RPR AND MAINT PGM       ","56082","CONT - BUILDINGS                   ","2019","11"
"2019-05-21 00:00:00","LOFTIN EQUIPMENT CO                          ","13507.39","603","WATER RECLAMATION","29321","SEWER SYSTEM                       ","52360","MAINT - MACHINERY, EQUIP & AUTOS   ","2019","11"
"2019-05-21 00:00:00","LOFTIN EQUIPMENT CO                          ","5047.61","603","WATER RECLAMATION","29321","SEWER SYSTEM                       ","53794","MAT TO MAINT AND REPAIR MECH SYS   ","2019","11"
"2019-05-21 00:00:00","MARTHA PENA                                  ","200","100","GENERAL","25451","LEISURE EDUCATION PROGRAMS         ","52190","OTHER PROFESSIONAL SERVICES        ","2019","11"
"2019-05-21 00:00:00","MCDOWELL SONORAN CONSERVANCY                 ","14424","100","GENERAL","25100","PRESERVE PLANNING & ADMINISTRATION ","52240","CIVIC EVENTS                       ","2019","11"
"2019-05-21 00:00:00","MCDOWELL SONORAN CONSERVANCY                 ","1497.5","100","GENERAL","25100","PRESERVE PLANNING & ADMINISTRATION ","53030","EDUCATION & RECREATION SUPPLIES    ","2019","11"
"2019-05-21 00:00:00","MCDOWELL SONORAN CONSERVANCY                 ","2500","100","GENERAL","25100","PRESERVE PLANNING & ADMINISTRATION ","53090","OTHER OPERATING SUPPLIES           ","2019","11"
"2019-05-21 00:00:00","MOUNTAIN STATES WHOLESALE NURSERY            ","725.1","100","GENERAL","21821","NEIGHBORHOOD ENHANCEMENT PRTNRSHIP ","53010","AGRICULTURE & HORTICULTURE SUPPLY  ","2019","11"
"2019-05-21 00:00:00","MOUNTAIN STATES WHOLESALE NURSERY            ","128.42","100","GENERAL","25402","DOWNTOWN SCOTTSDALE                ","53010","AGRICULTURE & HORTICULTURE SUPPLY  ","2019","11"
"2019-05-21 00:00:00","MSC INDUSTRIAL SUPPLY CO INC                 ","7.9","700","FLEET MANAGEMENT","20706","FLEET MANAGEMENT OPERATIONS        ","53780","OTHER MAINTENANCE & REPAIR SUPPLY  ","2019","11"
"2019-05-21 00:00:00","SALT WORKS                                   ","3153.22","603","WATER RECLAMATION","29381","ADVANCED WATER TREATMENT PLANT     ","53051","TREATMENT CHEMICAL(NON-TAXABLE)    ","2019","11"
"2019-05-21 00:00:00","SHAMROCK FOODS COMPANY                       ","3296.56","280","SPECIAL PROGRAMS","25494","MCCORMICK RR PK/REV FACILITIES OPER","53101","FOOD PURCHASED FOR RESALE          ","2019","11"
"2019-05-21 00:00:00","SOUTHWEST ENVIRONMENTAL TESTING INC          ","2730.79","605","CIP WATER RECLAMATION","VF06A","WASTEWATER SYSTEM IMPROVEMENTS     ","56099","CONT - WWATER - COLLECTION SYSTEM  ","2019","11"
"2019-05-21 00:00:00","SPICERS PAPER INC                            ","532.14","100","GENERAL","23420","GRAPHIC & PRINTING SOLUTIONS       ","53060","PHOTOGRAPHIC & DUPLICATING SUPPLIES","2019","11"
"2019-05-21 00:00:00","TEK FITNESS DISTRIBUTORS LLC                 ","199","100","GENERAL","25464","MCDOWELL MTN RNCH PRK & AQUATIC CTR","52360","MAINT - MACHINERY, EQUIP & AUTOS   ","2019","11"
"2019-05-21 00:00:00","THATCHER COMPANY OF ARIZONA INC              ","3846.57","600","WATER","29221","CAP TREATMENT PLANT                ","53051","TREATMENT CHEMICAL(NON-TAXABLE)    ","2019","11"
"2019-05-22 00:00:00","ACE UNIFORMS OF PHOENIX                      ","430.33","100","GENERAL","22607","RESOURCE MANAGEMENT                ","53050","CLOTHING & PERSONAL PROTECT EQUIP  ","2019","11"
"2019-05-22 00:00:00","ARIZONA DEPARTMENT OF ENVIRONMENTAL QUALITY  ","150","603","WATER RECLAMATION","29321","SEWER SYSTEM                       ","52800","SUBSCRIPTIONS & MEMBERSHIPS        ","2019","11"
"2019-05-22 00:00:00","ARIZONAS FINEST ENTERTAINERS LLC             ","3200","285","TOURISM DEVELOPMENT","21743","OTHER COMMITMENTS                  ","52183","EVENT DEVELOPMENT/RETENTION        ","2019","11"
"2019-05-22 00:00:00","BRANDABLES                                   ","689.98","640","AVIATION","21900","AVIATION                           ","52800","SUBSCRIPTIONS & MEMBERSHIPS        ","2019","11"
"2019-05-22 00:00:00","BUILDERS GUILD INC                           ","11773.6","446","CIP 2015 GO Q5-PUBLC SFTY-FIRE","BC02A","FIRE STATION 613 CONSTRUCTION *06/1","56082","CONT - BUILDINGS                   ","2019","11"
"2019-05-22 00:00:00","CANON USA INC                                ","7286.2","100","GENERAL","22433","TACTICAL OPERATIONS                ","53025","FURNITURE & MINOR EQUIPMENT        ","2019","11"
"2019-05-22 00:00:00","CATHERINE TURCHAN                            ","606.25","100","GENERAL","25455","ADULT SPORTS PROGRAMS              ","52190","OTHER PROFESSIONAL SERVICES        ","2019","11"
"2019-05-22 00:00:00","CHARLES ASHLEY COUCH                         ","126.32","100","GENERAL","21205","STORMWATER MANAGEMENT              ","52230","OVERNIGHT TRAIN/BUSINESS CONF TRAVL","2019","11"
"2019-05-22 00:00:00","CINTAS CORP                                  ","279.1","600","WATER","29500","WATER ADMINISTRATION               ","52190","OTHER PROFESSIONAL SERVICES        ","2019","11"
"2019-05-22 00:00:00","CINTAS CORPORATION                           ","51.03","100","GENERAL","20905","HVAC MAINTENANCE                   ","53050","CLOTHING & PERSONAL PROTECT EQUIP  ","2019","11"
"2019-05-22 00:00:00","CINTAS CORPORATION                           ","33.42","100","GENERAL","20906","PLUMBING MAINTENANCE               ","53050","CLOTHING & PERSONAL PROTECT EQUIP  ","2019","11"
"2019-05-22 00:00:00","CINTAS CORPORATION                           ","174.04","100","GENERAL","20907","CONSTRUCTION SERVICES              ","53050","CLOTHING & PERSONAL PROTECT EQUIP  ","2019","11"
"2019-05-22 00:00:00","CINTAS CORPORATION                           ","237.66","600","WATER","29500","WATER ADMINISTRATION               ","52190","OTHER PROFESSIONAL SERVICES        ","2019","11"
"2019-05-22 00:00:00","CINTAS CORPORATION                           ","574.21","603","WATER RECLAMATION","29505","WATER RECLAMATION ADMIN            ","52190","OTHER PROFESSIONAL SERVICES        ","2019","11"
"2019-05-22 00:00:00","COX COMMUNICATIONS PHOENIX                   ","312","100","GENERAL","22610","TECHNOLOGY SERVICES                ","52226","SPECIALTY LINES - COMMUNICATIONS   ","2019","11"
"2019-05-22 00:00:00","CURRIER CONSTRUCTION INC                     ","73064.02","602","CIP WATER","WB77B","WATER DISTRIBUTION SYSTEM IMPROV   ","56094","CONT - WATER - STORAGE RESERVOIR   ","2019","11"
"2019-05-22 00:00:00","ELECTRIC SUPPLY INC                          ","9924.16","603","WATER RECLAMATION","29321","SEWER SYSTEM                       ","53793","MAT TO MAINT AND REPAIR ELEC       ","2019","11"
"2019-05-22 00:00:00","ELECTRIC SUPPLY INC                          ","1092.63","603","WATER RECLAMATION","29380","WATER CAMPUS WATER RECLAMATION PLNT","53793","MAT TO MAINT AND REPAIR ELEC       ","2019","11"
"2019-05-22 00:00:00","ELECTRIC SUPPLY INC                          ","1555.09","603","WATER RECLAMATION","29381","ADVANCED WATER TREATMENT PLANT     ","53793","MAT TO MAINT AND REPAIR ELEC       ","2019","11"
"2019-05-22 00:00:00","FAMILY PROMISE OF GREATER PHOENIX            ","3136.33","220","CDBG","32403","18/19-FAMILY PROMISE *01/20        ","52825","GRANTS AND SUBSIDIES               ","2019","11"
"2019-05-22 00:00:00","JRS SHOES & BOOTS                            ","125","200","TRANSPORTATION","20800","STREET OPERATIONS ADMINISTRATION *0","53050","CLOTHING & PERSONAL PROTECT EQUIP  ","2019","11"
"2019-05-22 00:00:00","KELLER ELECTRICAL INDUSTRIES INC             ","8689.48","600","WATER","29275","BOOSTER STATIONS                   ","53793","MAT TO MAINT AND REPAIR ELEC       ","2019","11"
"2019-05-22 00:00:00","LITTLE AMERICA HOTEL                         ","330.64","100","GENERAL","01050","CIVIL DIVISION                     ","52230","OVERNIGHT TRAIN/BUSINESS CONF TRAVL","2019","11"
"2019-05-22 00:00:00","MARICOPA COUNTY ENVIRONMENTAL SERVICES DEPT  ","2100","600","WATER","29400","WATER QUALITY SERVICES ADMIN       ","52875","LICENSES & PERMITS                 ","2019","11"
"2019-05-22 00:00:00","MSR PROPERTIES LLC                           ","59302.56","100","GENERAL","21400","ECONOMIC DEVELOPMENT ADMINISTRATION","52890","OTHER CONTRACTUAL SERVICES         ","2019","11"
"2019-05-22 00:00:00","PETTY CASH - CYNTHIA J LOGAN                 ","8","100","GENERAL","01015","MAYOR AND COUNCIL SUPPORT          ","52245","TRAINING/BUSINESS CONFERENCE       ","2019","11"
"2019-05-22 00:00:00","PETTY CASH - CYNTHIA J LOGAN                 ","5.25","100","GENERAL","01050","CIVIL DIVISION                     ","52210","POSTAGE AND SHIPPING               ","2019","11"
"2019-05-22 00:00:00","PRINTING SPECIALISTS                         ","101.21","100","GENERAL","23420","GRAPHIC & PRINTING SOLUTIONS       ","52270","PRINTING & GRAPHICS SERVICES       ","2019","11"
"2019-05-22 00:00:00","ROB A MILLAR                                 ","142.68","100","GENERAL","21410","BUSINESS DEVELOPMENT               ","52230","OVERNIGHT TRAIN/BUSINESS CONF TRAVL","2019","11"
"2019-05-22 00:00:00","SAVE THE FAMILY FOUNDATION OF ARIZONA        ","797.26","220","CDBG","32406","18/19-SAVE THE FAMILY-CASE MGT *01/","52825","GRANTS AND SUBSIDIES               ","2019","11"
"2019-05-22 00:00:00","SHASTA                                       ","330","400","CIP GENERAL","PD01A","AQUATICS CHEMICAL SYSTEM REPL      ","56086","CONT - OTHER                       ","2019","11"
"2019-05-22 00:00:00","TARA FORD                                    ","203","100","GENERAL","22219","TRAINING                           ","52230","OVERNIGHT TRAIN/BUSINESS CONF TRAVL","2019","11"
"2019-05-23 00:00:00","ACRO SERVICE CORP                            ","422.48","285","TOURISM DEVELOPMENT","21740","TOURISM DEVELOPMENT - BED TAX      ","52890","OTHER CONTRACTUAL SERVICES         ","2019","11"
"2019-05-23 00:00:00","ARIZONA DEPARTMENT OF PUBLIC SAFETY          ","88","100","GENERAL","23510","TAX AND LICENSE ADMINISTRATION     ","52190","OTHER PROFESSIONAL SERVICES        ","2019","11"
"2019-05-23 00:00:00","BIG BROTHERS BIG SISTERS OF CENTRAL AZ       ","3488.99","220","CDBG","32401","18/19-BIG BRO,BIG SIS MENTORNG *01/","52825","GRANTS AND SUBSIDIES               ","2019","11"
"2019-05-23 00:00:00","COX COMMUNICATIONS PHOENIX                   ","79.89","100","GENERAL","22607","RESOURCE MANAGEMENT                ","52226","SPECIALTY LINES - COMMUNICATIONS   ","2019","11"
"2019-05-23 00:00:00","ENDRESS+HAUSER INC                           ","7220","603","WATER RECLAMATION","29380","WATER CAMPUS WATER RECLAMATION PLNT","52360","MAINT - MACHINERY, EQUIP & AUTOS   ","2019","11"
"2019-05-23 00:00:00","EWING IRRIGATION PRODUCTS                    ","371.92","100","GENERAL","25412","MEDIANS & RIGHT-OF-WAY MAINTENANCE ","53770","MTRS TO MAINT & REPAIR BLDS & IMPR ","2019","11"
"2019-05-23 00:00:00","EWING IRRIGATION PRODUCTS                    ","96.18","100","GENERAL","25416","MAINTENANCE-ELDORADO PARK          ","53770","MTRS TO MAINT & REPAIR BLDS & IMPR ","2019","11"
"2019-05-23 00:00:00","EWING IRRIGATION PRODUCTS                    ","3365.62","100","GENERAL","25419","MAINTENANCE-VISTA DEL CAMINO       ","53770","MTRS TO MAINT & REPAIR BLDS & IMPR ","2019","11"
"2019-05-23 00:00:00","EWING IRRIGATION PRODUCTS                    ","3431.35","100","GENERAL","25426","MAINTENANCE-SCOTTSDALESPORTSCOMPLEX","53770","MTRS TO MAINT & REPAIR BLDS & IMPR ","2019","11"
"2019-05-23 00:00:00","FARO TECHNOLOGIES INC                        ","31181.68","100","GENERAL","22202","TRAFFIC ENFORCEMENT                ","54530","OTHER MACHINERY & EQUIPMENT        ","2019","11"
"2019-05-23 00:00:00","FARO TECHNOLOGIES INC                        ","79911.62","400","CIP GENERAL","YF03B","CRIME LAB EQUIP REPL               ","56133","EQUP - OTHER                       ","2019","11"
"2019-05-23 00:00:00","GARY J SPRAGUE                               ","3420","100","GENERAL","21701","DOWNTOWN/CULTURAL PROGRAMS         ","52190","OTHER PROFESSIONAL SERVICES        ","2019","11"
"2019-05-23 00:00:00","HERC RENTALS INC                             ","241.89","640","AVIATION","21900","AVIATION                           ","52590","OTHER RENTALS                      ","2019","11"
"2019-05-22 00:00:00","ARMA INTERNATIONAL                           ","215","100","GENERAL","01030","CITY CLERK                         ","52800","SUBSCRIPTIONS & MEMBERSHIPS        ","2019","11"
"2019-05-22 00:00:00","CINTAS CORPORATION                           ","88.58","100","GENERAL","20904","BUILDING MAINTENANCE AND REPAIR    ","53050","CLOTHING & PERSONAL PROTECT EQUIP  ","2019","11"
"2019-05-22 00:00:00","CINTAS CORPORATION                           ","1063.72","700","FLEET MANAGEMENT","20706","FLEET MANAGEMENT OPERATIONS        ","52380","UNIFORM CLEANING                   ","2019","11"
"2019-05-22 00:00:00","COX COMMUNICATIONS PHOENIX                   ","79","100","GENERAL","22209","PATROL HIGH ENFORCEMENT ARREST TEAM","52226","SPECIALTY LINES - COMMUNICATIONS   ","2019","11"
"2019-05-22 00:00:00","COX COMMUNICATIONS PHOENIX                   ","88","100","GENERAL","25301","VISTA DEL CAMINO SOCIAL SERVICE CTR","52226","SPECIALTY LINES - COMMUNICATIONS   ","2019","11"
"2019-05-22 00:00:00","GRAINGER                                     ","2381.9","600","WATER","29540","UTILITIES MAINT-ELECTRICAL         ","53720","SMALL TOOLS & EQUIPMENT            ","2019","11"
"2019-05-22 00:00:00","PETTY CASH - CYNTHIA J LOGAN                 ","5.56","100","GENERAL","01110","CITY MANAGER                       ","52245","TRAINING/BUSINESS CONFERENCE       ","2019","11"
"2019-05-22 00:00:00","PETTY CASH - CYNTHIA J LOGAN                 ","89.91","100","GENERAL","01110","CITY MANAGER                       ","53020","OFFICE SUPPLIES                    ","2019","11"
"2019-05-22 00:00:00","PETTY CASH - CYNTHIA J LOGAN                 ","27.02","100","GENERAL","01117","DIVERSITY                          ","53045","BUSINESS MTGS-REFRESHMENTS & SUPPLI","2019","11"
"2019-05-22 00:00:00","PETTY CASH - DEENA L HARMS                   ","11","100","GENERAL","21210","BUILDING INSPECTION                ","52672","FLEET - FUEL                       ","2019","11"
"2019-05-22 00:00:00","PETTY CASH - DEENA L HARMS                   ","80.73","200","TRANSPORTATION","21110","TRANSIT OPERATIONS *06/19          ","53045","BUSINESS MTGS-REFRESHMENTS & SUPPLI","2019","11"
"2019-05-22 00:00:00","PITNEY BOWES PRESORT SERVICES INC            ","791.43","100","GENERAL","23430","MAIL                               ","52210","POSTAGE AND SHIPPING               ","2019","11"
"2019-05-22 00:00:00","POINT ENGINEERS LLC                          ","712.5","605","CIP WATER RECLAMATION","VF06A","WASTEWATER SYSTEM IMPROVEMENTS     ","56061","DSGN - WWATER - LIFT STATIONS      ","2019","11"
"2019-05-22 00:00:00","SHASTA                                       ","2250","280","SPECIAL PROGRAMS","25498","POOL ALLOCATION - SPONSORED TEAMS  ","52330","MAINTENANCE, BUILDINGS & STRUCTURE ","2019","11"
"2019-05-22 00:00:00","SOUTHWEST UMPIRES LLC                        ","6600","100","GENERAL","25455","ADULT SPORTS PROGRAMS              ","52190","OTHER PROFESSIONAL SERVICES        ","2019","11"
"2019-05-22 00:00:00","THE REINALT THOMAS CORPORATION               ","213.99","100","GENERAL","22607","RESOURCE MANAGEMENT                ","52820","DAMAGE CLAIMS                      ","2019","11"
"2019-05-22 00:00:00","THOMAS WEISHAAR                              ","203","100","GENERAL","22219","TRAINING                           ","52230","OVERNIGHT TRAIN/BUSINESS CONF TRAVL","2019","11"
"2019-05-22 00:00:00","TRACIE PAOLILLO                              ","174","280","SPECIAL PROGRAMS","22302","STATE FORFEITURES                  ","52230","OVERNIGHT TRAIN/BUSINESS CONF TRAVL","2019","11"
"2019-05-23 00:00:00","EWING IRRIGATION PRODUCTS                    ","2475.27","100","GENERAL","25404","PROFESSIONAL BASEBALL              ","53770","MTRS TO MAINT & REPAIR BLDS & IMPR ","2019","11"
"2019-05-23 00:00:00","EWING IRRIGATION PRODUCTS                    ","991.51","100","GENERAL","25411","IRRIGATION REPAIR                  ","53770","MTRS TO MAINT & REPAIR BLDS & IMPR ","2019","11"
"2019-05-23 00:00:00","EWING IRRIGATION PRODUCTS                    ","43.94","100","GENERAL","25414","MAINTENANCE-CHAPARRAL PARK         ","53770","MTRS TO MAINT & REPAIR BLDS & IMPR ","2019","11"
"2019-05-23 00:00:00","EWING IRRIGATION PRODUCTS                    ","769.74","100","GENERAL","25424","MAINTENANCE-CACTUS PARK            ","53770","MTRS TO MAINT & REPAIR BLDS & IMPR ","2019","11"
"2019-05-23 00:00:00","EWING IRRIGATION PRODUCTS                    ","26778.04","400","CIP GENERAL","PF01A","IRRIGATION CONTROL SYSTEM          ","56133","EQUP - OTHER                       ","2019","11"
"2019-05-23 00:00:00","FARO TECHNOLOGIES INC                        ","1413.1","100","GENERAL","22202","TRAFFIC ENFORCEMENT                ","52350","SOFTWARE MAINT & LICENSING         ","2019","11"
"2019-05-23 00:00:00","FARO TECHNOLOGIES INC                        ","6931.68","100","GENERAL","22202","TRAFFIC ENFORCEMENT                ","52390","MISC MAINTENANCE AND REPAIR        ","2019","11"
"2019-05-23 00:00:00","FARO TECHNOLOGIES INC                        ","1291.48","100","GENERAL","22202","TRAFFIC ENFORCEMENT                ","53090","OTHER OPERATING SUPPLIES           ","2019","11"
"2019-05-23 00:00:00","GARDNER GRAPHICS                             ","1925","280","SPECIAL PROGRAMS","25494","MCCORMICK RR PK/REV FACILITIES OPER","52190","OTHER PROFESSIONAL SERVICES        ","2019","11"
"2019-05-23 00:00:00","HENRY SCHEIN MATRIX MEDICAL                  ","628.2","100","GENERAL","22426","CRIME SCENE PROCESSING             ","53090","OTHER OPERATING SUPPLIES           ","2019","11"
"2019-05-23 00:00:00","HERC RENTALS INC                             ","916.3","200","TRANSPORTATION","20810","GRADING AND DRAINAGE *06/20        ","52560","MACHINERY & EQUIPMENT RENT         ","2019","11"
"2019-05-23 00:00:00","MGC CONTRACTORS INC                          ","155815","605","CIP WATER RECLAMATION","VD01A","WASTEWATER TREATMENT FACILITY IMPR ","56098","CONT - WWATER - TREATMENT FACILITY ","2019","11"
"2019-05-23 00:00:00","MSI TEC INC                                  ","27935.08","200","TRANSPORTATION","20805","INTELLIGENT TRANSPORTATION SYS *06/","53770","MTRS TO MAINT & REPAIR BLDS & IMPR ","2019","11"
"2019-05-23 00:00:00","SPRINT                                       ","200","100","GENERAL","22433","TACTICAL OPERATIONS                ","52226","SPECIALTY LINES - COMMUNICATIONS   ","2019","11"
"2019-05-23 00:00:00","THE ICEE COMPANY                             ","651.9","280","SPECIAL PROGRAMS","25494","MCCORMICK RR PK/REV FACILITIES OPER","53101","FOOD PURCHASED FOR RESALE          ","2019","11"
"2019-05-23 00:00:00","VERIZON WIRELESS                             ","153","100","GENERAL","22433","TACTICAL OPERATIONS                ","52226","SPECIALTY LINES - COMMUNICATIONS   ","2019","11"
"2019-05-24 00:00:00","ALL CITY TOWING                              ","450","100","GENERAL","22012","FIRE TRAINING & DEVELOPMENT        ","52590","OTHER RENTALS                      ","2019","11"
"2019-05-24 00:00:00","ALL CITY TOWING                              ","463.03","100","GENERAL","22200","PATROL SERVICES                    ","52640","FREIGHT, STORAGE & TOWING          ","2019","11"
"2019-05-24 00:00:00","AQUATIC ENVIRONMENTAL SYSTEMS INC            ","1160.44","100","GENERAL","25410","MAINTENANCE - FOUNTAINS & AQUATICS ","53040","CHEMICALS & LABORATORY SUPPLIES    ","2019","11"
"2019-05-23 00:00:00","KAMAN INDUSTRIAL TECHNOLOGIES                ","83.36","100","GENERAL","20905","HVAC MAINTENANCE                   ","53790","MAT TO MAINT & REPAIR MACH, EQUIP  ","2019","11"
"2019-05-23 00:00:00","MEDIA PARTNERS CORPORATION                   ","6268.28","100","GENERAL","27410","TRAINING AND DEVELOPMENT           ","52245","TRAINING/BUSINESS CONFERENCE       ","2019","11"
"2019-05-23 00:00:00","MGC CONTRACTORS INC                          ","76002","605","CIP WATER RECLAMATION","VD01A","WASTEWATER TREATMENT FACILITY IMPR ","56091","CONT - WATER - TREATMENT FACILITY  ","2019","11"
"2019-05-23 00:00:00","MIDWEST TAPE                                 ","1638.37","100","GENERAL","25602","LIBRARY OPERATIONS                 ","53600","LIBRARY MATERIALS                  ","2019","11"
"2019-05-23 00:00:00","ONETOUCHPOINT CCI                            ","5891.31","100","GENERAL","23420","GRAPHIC & PRINTING SOLUTIONS       ","52270","PRINTING & GRAPHICS SERVICES       ","2019","11"
"2019-05-23 00:00:00","SALT RIVER VALLEY WATER USERS ASSOCIATION    ","608.21","600","WATER","29280","WELL SITES                         ","52711","ELECTRIC                           ","2019","11"
"2019-05-23 00:00:00","VOLANTI EVENTS                               ","67.12","100","GENERAL","23300","FINANCE                            ","53047","BOARD/COMMISSION MTG-REFRSHMNT/SUPP","2019","11"
"2019-05-24 00:00:00","ACE UNIFORMS OF PHOENIX                      ","4223.01","100","GENERAL","22607","RESOURCE MANAGEMENT                ","53050","CLOTHING & PERSONAL PROTECT EQUIP  ","2019","11"
"2019-05-24 00:00:00","AED EVERYWHERE INC                           ","5731.5","100","GENERAL","22607","RESOURCE MANAGEMENT                ","53022","EMERGENCY MEDICAL SUPPLIES         ","2019","11"
"2019-05-24 00:00:00","ALL CITY TOWING                              ","810","700","FLEET MANAGEMENT","20706","FLEET MANAGEMENT OPERATIONS        ","52360","MAINT - MACHINERY, EQUIP & AUTOS   ","2019","11"
"2019-05-24 00:00:00","AMERICAN DRY CLEANERS                        ","3715.75","100","GENERAL","22607","RESOURCE MANAGEMENT                ","52380","UNIFORM CLEANING                   ","2019","11"
"2019-05-24 00:00:00","APS                                          ","10061.21","640","AVIATION","21900","AVIATION                           ","52711","ELECTRIC                           ","2019","11"
"2019-05-24 00:00:00","AQUA SERV ENGINEERS INC                      ","2999.22","100","GENERAL","20902","CONTRACT ADMINISTRATION            ","52360","MAINT - MACHINERY, EQUIP & AUTOS   ","2019","11"
"2019-05-24 00:00:00","AQUA SERV ENGINEERS INC                      ","310","100","GENERAL","20910","WESTWORLD TNEC EXPANSION           ","52360","MAINT - MACHINERY, EQUIP & AUTOS   ","2019","11"
"2019-05-24 00:00:00","ARIZONAS FINEST ENTERTAINERS LLC             ","3740","285","TOURISM DEVELOPMENT","21743","OTHER COMMITMENTS                  ","52183","EVENT DEVELOPMENT/RETENTION        ","2019","11"
"2019-05-24 00:00:00","AT&T                                         ","900","100","GENERAL","22433","TACTICAL OPERATIONS                ","52226","SPECIALTY LINES - COMMUNICATIONS   ","2019","11"
"2019-05-24 00:00:00","AZ CUSTOM BOTTLED WATER                      ","4288.38","100","GENERAL","22035","FIRE RESOURCE MANAGEMENT           ","53090","OTHER OPERATING SUPPLIES           ","2019","11"
"2019-05-24 00:00:00","BENNETT KOPP                                 ","50","100","GENERAL","25304","GRANITE REEF SENIOR CENTER         ","52190","OTHER PROFESSIONAL SERVICES        ","2019","11"
"2019-05-24 00:00:00","BUREAU OF RECLAMATION                        ","10250","600","WATER","29221","CAP TREATMENT PLANT                ","53070","PURCHASED WATER                    ","2019","11"
"2019-05-24 00:00:00","CDW GOVERNMENT INC                           ","614.54","100","GENERAL","27501","NETWORK OPERATIONS                 ","54522","COMPUTER EQUIPMENT                 ","2019","11"
"2019-05-24 00:00:00","CHRIS BIRKETT                                ","6160","280","SPECIAL PROGRAMS","25494","MCCORMICK RR PK/REV FACILITIES OPER","52190","OTHER PROFESSIONAL SERVICES        ","2019","11"
"2019-05-24 00:00:00","CINTAS CORPORATION                           ","743.28","100","GENERAL","20902","CONTRACT ADMINISTRATION            ","52157","CUSTODIAL SERVICES                 ","2019","11"
"2019-05-24 00:00:00","CINTAS CORPORATION                           ","172.59","100","GENERAL","20905","HVAC MAINTENANCE                   ","53050","CLOTHING & PERSONAL PROTECT EQUIP  ","2019","11"
"2019-05-24 00:00:00","CINTAS CORPORATION                           ","34.17","100","GENERAL","20906","PLUMBING MAINTENANCE               ","53050","CLOTHING & PERSONAL PROTECT EQUIP  ","2019","11"
"2019-05-24 00:00:00","CINTAS CORPORATION                           ","146.68","100","GENERAL","20907","CONSTRUCTION SERVICES              ","53050","CLOTHING & PERSONAL PROTECT EQUIP  ","2019","11"
"2019-05-24 00:00:00","CITY OF GLENDALE                             ","4500","100","GENERAL","22027","ACADEMY                            ","52245","TRAINING/BUSINESS CONFERENCE       ","2019","11"
"2019-05-24 00:00:00","CITY WIDE PEST CONTROL INC                   ","39","100","GENERAL","25420","LANDSCAPE CONTRACTS                ","52323","LANDSCAPING                        ","2019","11"
"2019-05-24 00:00:00","CITY WIDE PEST CONTROL INC                   ","111","100","GENERAL","25420","LANDSCAPE CONTRACTS                ","52330","MAINTENANCE, BUILDINGS & STRUCTURE ","2019","11"
"2019-05-24 00:00:00","COX COMMUNICATIONS PHOENIX                   ","294.43","100","GENERAL","22607","RESOURCE MANAGEMENT                ","52226","SPECIALTY LINES - COMMUNICATIONS   ","2019","11"
"2019-05-24 00:00:00","DENISE ELIZABETH VILLALON                    ","45","100","GENERAL","25451","LEISURE EDUCATION PROGRAMS         ","52190","OTHER PROFESSIONAL SERVICES        ","2019","11"
"2019-05-24 00:00:00","DIBBLE ENGINEERING                           ","620","605","CIP WATER RECLAMATION","VF06A","WASTEWATER SYSTEM IMPROVEMENTS     ","56059","DSGN - WWATER - COLLECTION SYSTEM  ","2019","11"
"2019-05-24 00:00:00","DM LUXURY LLC                                ","2035","100","GENERAL","21701","DOWNTOWN/CULTURAL PROGRAMS         ","52185","ADVERTISING                        ","2019","11"
"2019-05-24 00:00:00","ELISA BRANCATI                               ","200","100","GENERAL","25456","CLUB SAR FITNESS CENTER            ","52190","OTHER PROFESSIONAL SERVICES        ","2019","11"
"2019-05-24 00:00:00","ELITE SPORTS BUILDERS                        ","12563","100","GENERAL","25423","COORD OF ATHLETIC FIELDS-YOUTH ORG ","52330","MAINTENANCE, BUILDINGS & STRUCTURE ","2019","11"
"2019-05-24 00:00:00","EMS MAINTENANCE SERVICE INC                  ","13205.16","200","TRANSPORTATION","20909","UTILITIES - MEDIAN & RIGHT OF WAY  ","52157","CUSTODIAL SERVICES                 ","2019","11"
"2019-05-24 00:00:00","ENGINEERING ECONOMICS INC                    ","414","446","CIP 2015 GO Q5-PUBLC SFTY-FIRE","BC03A","FIRE STATION 616 DESIGN & CONST    ","56047","DSGN - ENGINEERING SERVICES        ","2019","11"
"2019-05-24 00:00:00","ENGINEERING ECONOMICS INC                    ","886","446","CIP 2015 GO Q5-PUBLC SFTY-FIRE","BC04A","FIRE STATION 603 RELOCATION        ","56047","DSGN - ENGINEERING SERVICES        ","2019","11"
"2019-05-24 00:00:00","AZ WATER ASSOCIATION                         ","500","600","WATER","29110","ENGINEERING/ADMIN - WATER          ","52800","SUBSCRIPTIONS & MEMBERSHIPS        ","2019","11"
"2019-05-24 00:00:00","BALLARD SPAHR LLP                            ","115.5","100","GENERAL","01050","CIVIL DIVISION                     ","52140","LEGAL SERVICES - ATTORNEYS         ","2019","11"
"2019-05-24 00:00:00","BETH VERSHURE                                ","481.25","100","GENERAL","25451","LEISURE EDUCATION PROGRAMS         ","52190","OTHER PROFESSIONAL SERVICES        ","2019","11"
"2019-05-24 00:00:00","BRIAN DYGERT                                 ","72","100","GENERAL","21500","WESTWORLD *06/19                   ","52230","OVERNIGHT TRAIN/BUSINESS CONF TRAVL","2019","11"
"2019-05-24 00:00:00","CINTAS CORPORATION                           ","90.95","100","GENERAL","20904","BUILDING MAINTENANCE AND REPAIR    ","53050","CLOTHING & PERSONAL PROTECT EQUIP  ","2019","11"
"2019-05-24 00:00:00","CINTAS CORPORATION                           ","823.67","700","FLEET MANAGEMENT","20706","FLEET MANAGEMENT OPERATIONS        ","52380","UNIFORM CLEANING                   ","2019","11"
"2019-05-24 00:00:00","CLEAR ARMOR LLC                              ","128212","280","SPECIAL PROGRAMS","01081","COURT ENHANCEMENT                  ","54530","OTHER MACHINERY & EQUIPMENT        ","2019","11"
"2019-05-24 00:00:00","DANICA LEVY                                  ","100","100","GENERAL","25456","CLUB SAR FITNESS CENTER            ","52190","OTHER PROFESSIONAL SERVICES        ","2019","11"
"2019-05-24 00:00:00","DAVE DOWNING & ASSOCIATES                    ","6278.43","100","GENERAL","20902","CONTRACT ADMINISTRATION            ","52360","MAINT - MACHINERY, EQUIP & AUTOS   ","2019","11"
"2019-05-24 00:00:00","DAVE DOWNING & ASSOCIATES                    ","2216.65","100","GENERAL","20910","WESTWORLD TNEC EXPANSION           ","52360","MAINT - MACHINERY, EQUIP & AUTOS   ","2019","11"
"2019-05-24 00:00:00","DH PACE COMPANY INC                          ","150","100","GENERAL","20902","CONTRACT ADMINISTRATION            ","52330","MAINTENANCE, BUILDINGS & STRUCTURE ","2019","11"
"2019-05-24 00:00:00","DUNBAR ARMORED INC                           ","4314.76","100","GENERAL","23100","ACCOUNTING                         ","52166","ARMORED CAR SERVICES               ","2019","11"
"2019-05-24 00:00:00","DUNN TRANSPORTATION INC                      ","330","600","WATER","29110","ENGINEERING/ADMIN - WATER          ","52190","OTHER PROFESSIONAL SERVICES        ","2019","11"
"2019-05-24 00:00:00","EARTHCARE CONSULTANTS LLC                    ","27261.99","200","TRANSPORTATION","20810","GRADING AND DRAINAGE *06/20        ","52390","MISC MAINTENANCE AND REPAIR        ","2019","11"
"2019-05-24 00:00:00","ELITE SPORTS BUILDERS                        ","3000","100","GENERAL","25405","SCOTTSDALE RANCH PK SPORTS COMPLEX ","52330","MAINTENANCE, BUILDINGS & STRUCTURE ","2019","11"
"2019-05-24 00:00:00","EMS MAINTENANCE SERVICE INC                  ","51037.12","100","GENERAL","20902","CONTRACT ADMINISTRATION            ","52157","CUSTODIAL SERVICES                 ","2019","11"
"2019-05-24 00:00:00","ENGINEERING ECONOMICS INC                    ","442","446","CIP 2015 GO Q5-PUBLC SFTY-FIRE","BC02A","FIRE STATION 613 CONSTRUCTION *06/1","56047","DSGN - ENGINEERING SERVICES        ","2019","11"
"2019-05-24 00:00:00","ENVIRONMENTAL DRAIN & ODOR CONTROL SERVICES  ","805","100","GENERAL","20906","PLUMBING MAINTENANCE               ","52330","MAINTENANCE, BUILDINGS & STRUCTURE ","2019","11"
"2019-05-24 00:00:00","ENVIRONMENTAL RESPONSE INC                   ","5686.07","603","WATER RECLAMATION","29380","WATER CAMPUS WATER RECLAMATION PLNT","52190","OTHER PROFESSIONAL SERVICES        ","2019","11"
"2019-05-24 00:00:00","ENVISIONWARE INC                             ","16442.58","100","GENERAL","25603","LIBRARY SYSTEMS                    ","52350","SOFTWARE MAINT & LICENSING         ","2019","11"
"2019-05-24 00:00:00","EVOQUA WATER TECHNOLOGIES LLC                ","221.11","600","WATER","29260","CHAPARRAL WATER TREATMENT PLANT    ","53042","TREATMENT LAB SUPPLIES             ","2019","11"
"2019-05-24 00:00:00","EWING IRRIGATION PRODUCTS                    ","191.34","100","GENERAL","25411","IRRIGATION REPAIR                  ","53770","MTRS TO MAINT & REPAIR BLDS & IMPR ","2019","11"
"2019-05-24 00:00:00","FAST ACTION MOVERS                           ","485","230","GRANTS","36251","SRP-MIC FY18/19 SR CENTERS         ","52190","OTHER PROFESSIONAL SERVICES        ","2019","11"
"2019-05-24 00:00:00","FEDEX                                        ","38.12","601","GROUNDWATER TREATMENT FACILITY","29600","CGTF REIMBURSABLE                  ","52210","POSTAGE AND SHIPPING               ","2019","11"
"2019-05-24 00:00:00","FIDEL AMADOR                                 ","450","280","SPECIAL PROGRAMS","25395","GRANITE REEF SENIOR CONTRIBUTIONS  ","52190","OTHER PROFESSIONAL SERVICES        ","2019","11"
"2019-05-24 00:00:00","FIRE SECURITY ELECTRONICS & COMMUNICATIONS IN","12480","100","GENERAL","22608","MUNICIPAL SECURITY                 ","52360","MAINT - MACHINERY, EQUIP & AUTOS   ","2019","11"
"2019-05-24 00:00:00","FIRE SECURITY ELECTRONICS & COMMUNICATIONS IN","17513.29","100","GENERAL","22608","MUNICIPAL SECURITY                 ","53770","MTRS TO MAINT & REPAIR BLDS & IMPR ","2019","11"
"2019-05-24 00:00:00","FIRE SECURITY ELECTRONICS & COMMUNICATIONS IN","30663.97","400","CIP GENERAL","JD05A","CCTV & ACCESS CONTROL REPLACEMENT  ","56133","EQUP - OTHER                       ","2019","11"
"2019-05-24 00:00:00","FIRETROL PROTECTION SYSTEMS INC              ","6851","100","GENERAL","20902","CONTRACT ADMINISTRATION            ","52360","MAINT - MACHINERY, EQUIP & AUTOS   ","2019","11"
"2019-05-24 00:00:00","FIRST LEGAL NETWORK LLC                      ","601","100","GENERAL","01050","CIVIL DIVISION                     ","52170","COURT REPORTERS/TRANSCRIPTION SERV ","2019","11"
"2019-05-24 00:00:00","FOUNTAIN HILLS LAW FIRM                      ","1500","100","GENERAL","01080","COURT                              ","52141","PUBLIC DEFENDER SERVICES           ","2019","11"
"2019-05-24 00:00:00","FREEDOM FITNESS                              ","1200","100","GENERAL","22036","PROFESSIONAL STANDARDS             ","52800","SUBSCRIPTIONS & MEMBERSHIPS        ","2019","11"
"2019-05-24 00:00:00","FX PROMOTIONS INC                            ","23026.71","285","TOURISM DEVELOPMENT","21711","EVENT RETENTION AND DEVELOPMENT    ","52183","EVENT DEVELOPMENT/RETENTION        ","2019","11"
"2019-05-24 00:00:00","GARY P MASCARO                               ","520.6","640","AVIATION","21900","AVIATION                           ","52230","OVERNIGHT TRAIN/BUSINESS CONF TRAVL","2019","11"
"2019-05-24 00:00:00","GENERAL MAINTENANCE                          ","18072.83","100","GENERAL","20902","CONTRACT ADMINISTRATION            ","52157","CUSTODIAL SERVICES                 ","2019","11"
"2019-05-24 00:00:00","GRAINGER                                     ","460.88","600","WATER","29540","UTILITIES MAINT-ELECTRICAL         ","53720","SMALL TOOLS & EQUIPMENT            ","2019","11"
"2019-05-24 00:00:00","GRAINGER                                     ","43.81","603","WATER RECLAMATION","29380","WATER CAMPUS WATER RECLAMATION PLNT","53794","MAT TO MAINT AND REPAIR MECH SYS   ","2019","11"
"2019-05-24 00:00:00","ESCRIBERS LLC                                ","154.25","100","GENERAL","21620","LONG RANGE PLANNING                ","52170","COURT REPORTERS/TRANSCRIPTION SERV ","2019","11"
"2019-05-24 00:00:00","EWING IRRIGATION PRODUCTS                    ","2812.35","100","GENERAL","25428","MAINTENANCE-HORIZON PARK           ","53770","MTRS TO MAINT & REPAIR BLDS & IMPR ","2019","11"
"2019-05-24 00:00:00","FEDEX                                        ","39.11","603","WATER RECLAMATION","29380","WATER CAMPUS WATER RECLAMATION PLNT","52210","POSTAGE AND SHIPPING               ","2019","11"
"2019-05-24 00:00:00","FERGUSON ENTERPRISES INC #1001               ","1118.57","100","GENERAL","20906","PLUMBING MAINTENANCE               ","53770","MTRS TO MAINT & REPAIR BLDS & IMPR ","2019","11"
"2019-05-24 00:00:00","FERGUSON ENTERPRISES INC #1001               ","8556.12","600","WATER","29275","BOOSTER STATIONS                   ","53794","MAT TO MAINT AND REPAIR MECH SYS   ","2019","11"
"2019-05-24 00:00:00","FIRST LEGAL NETWORK LLC                      ","363","100","GENERAL","01051","PROSECUTION                        ","52170","COURT REPORTERS/TRANSCRIPTION SERV ","2019","11"
"2019-05-24 00:00:00","FISHER PRICE INC                             ","974.52","280","SPECIAL PROGRAMS","25494","MCCORMICK RR PK/REV FACILITIES OPER","53100","INVENTORY PURCHASED FOR RESALE     ","2019","11"
"2019-05-24 00:00:00","FISHERS TOOLS                                ","40.25","100","GENERAL","20904","BUILDING MAINTENANCE AND REPAIR    ","53720","SMALL TOOLS & EQUIPMENT            ","2019","11"
"2019-05-24 00:00:00","FX TURF SPECIALIST LLC                       ","9280","100","GENERAL","25426","MAINTENANCE-SCOTTSDALESPORTSCOMPLEX","52322","MAINTENANCE, MOWING                ","2019","11"
"2019-05-24 00:00:00","GEORGE SCARFO                                ","120","100","GENERAL","25304","GRANITE REEF SENIOR CENTER         ","52190","OTHER PROFESSIONAL SERVICES        ","2019","11"
"2019-05-24 00:00:00","GMS TACTICAL                                 ","383.92","100","GENERAL","22607","RESOURCE MANAGEMENT                ","53050","CLOTHING & PERSONAL PROTECT EQUIP  ","2019","11"
"2019-05-24 00:00:00","GOLDWING APPLIANCE FACTORY SERVICE           ","248.59","100","GENERAL","22035","FIRE RESOURCE MANAGEMENT           ","52390","MISC MAINTENANCE AND REPAIR        ","2019","11"
"2019-05-24 00:00:00","GOODMANS                                     ","576.38","100","GENERAL","22035","FIRE RESOURCE MANAGEMENT           ","53021","FIRE STATION SUPPLIES AND EQUIPMENT","2019","11"
"2019-05-24 00:00:00","GRAINGER                                     ","982.24","100","GENERAL","22035","FIRE RESOURCE MANAGEMENT           ","53021","FIRE STATION SUPPLIES AND EQUIPMENT","2019","11"
"2019-05-24 00:00:00","GRAINGER                                     ","2326.08","600","WATER","29530","UTILITIES MAINTENANCE - WATER      ","53720","SMALL TOOLS & EQUIPMENT            ","2019","11"
"2019-05-24 00:00:00","GRAND CANYON STATE LOGO SIGNS                ","4999.92","280","SPECIAL PROGRAMS","25494","MCCORMICK RR PK/REV FACILITIES OPER","52185","ADVERTISING                        ","2019","11"
"2019-05-24 00:00:00","GREG GRESENZ                                 ","500","100","GENERAL","22208","MOUNTED PATROL                     ","52190","OTHER PROFESSIONAL SERVICES        ","2019","11"
"2019-05-24 00:00:00","HEARTFIT FOR DUTY                            ","14330","100","GENERAL","22036","PROFESSIONAL STANDARDS             ","52150","MEDICAL SERVICES                   ","2019","11"
"2019-05-24 00:00:00","IRON MOUNTAIN                                ","201.59","100","GENERAL","01030","CITY CLERK                         ","52279","FILMING/MICROFILMING/RECORDS RETENT","2019","11"
"2019-05-24 00:00:00","IRON MOUNTAIN                                ","36.21","100","GENERAL","01050","CIVIL DIVISION                     ","52279","FILMING/MICROFILMING/RECORDS RETENT","2019","11"
"2019-05-24 00:00:00","IRON MOUNTAIN                                ","76.68","100","GENERAL","01051","PROSECUTION                        ","52279","FILMING/MICROFILMING/RECORDS RETENT","2019","11"
"2019-05-24 00:00:00","IRON MOUNTAIN                                ","242.1","100","GENERAL","20600","CAPITAL PROJECT MANAGEMENT         ","52279","FILMING/MICROFILMING/RECORDS RETENT","2019","11"
"2019-05-24 00:00:00","IRON MOUNTAIN                                ","14.37","100","GENERAL","21001","PLANNING ADMINISTRATION            ","52279","FILMING/MICROFILMING/RECORDS RETENT","2019","11"
"2019-05-24 00:00:00","IRON MOUNTAIN                                ","355.05","100","GENERAL","22611","RECORDS                            ","52279","FILMING/MICROFILMING/RECORDS RETENT","2019","11"
"2019-05-24 00:00:00","IRON MOUNTAIN                                ","104.04","100","GENERAL","23580","REMITTANCE PROCESSING/RECORDS MGT  ","52279","FILMING/MICROFILMING/RECORDS RETENT","2019","11"
"2019-05-24 00:00:00","IRON MOUNTAIN                                ","0.42","100","GENERAL","25307","COMMUNITY ASSISTANCE OFFICE        ","52279","FILMING/MICROFILMING/RECORDS RETENT","2019","11"
"2019-05-24 00:00:00","IRON MOUNTAIN                                ","6.98","100","GENERAL","25400","PARKS & RECREATION PLANNING & ADMIN","52279","FILMING/MICROFILMING/RECORDS RETENT","2019","11"
"2019-05-24 00:00:00","IRON MOUNTAIN                                ","5.54","100","GENERAL","25451","LEISURE EDUCATION PROGRAMS         ","52279","FILMING/MICROFILMING/RECORDS RETENT","2019","11"
"2019-05-24 00:00:00","IRON MOUNTAIN                                ","1.03","200","TRANSPORTATION","20800","STREET OPERATIONS ADMINISTRATION *0","52279","FILMING/MICROFILMING/RECORDS RETENT","2019","11"
"2019-05-24 00:00:00","IRON MOUNTAIN                                ","5.75","285","TOURISM DEVELOPMENT","21740","TOURISM DEVELOPMENT - BED TAX      ","52279","FILMING/MICROFILMING/RECORDS RETENT","2019","11"
"2019-05-24 00:00:00","IRON MOUNTAIN                                ","128.86","600","WATER","29110","ENGINEERING/ADMIN - WATER          ","52279","FILMING/MICROFILMING/RECORDS RETENT","2019","11"
"2019-05-24 00:00:00","IRON MOUNTAIN DATA CENTERS LLC               ","20613.62","100","GENERAL","27507","DATA CENTER RESILIENCY PLAN        ","52590","OTHER RENTALS                      ","2019","11"
"2019-05-24 00:00:00","ISHAR KESHU                                  ","100","100","GENERAL","25456","CLUB SAR FITNESS CENTER            ","52190","OTHER PROFESSIONAL SERVICES        ","2019","11"
"2019-05-24 00:00:00","JACKS TIRE & OIL MANAGEMENT COMPANY INC      ","192","700","FLEET MANAGEMENT","20706","FLEET MANAGEMENT OPERATIONS        ","52360","MAINT - MACHINERY, EQUIP & AUTOS   ","2019","11"
"2019-05-24 00:00:00","JARED M DALLSTREAM                           ","80","100","GENERAL","25456","CLUB SAR FITNESS CENTER            ","52190","OTHER PROFESSIONAL SERVICES        ","2019","11"
"2019-05-24 00:00:00","JARRETT EAST                                 ","120","100","GENERAL","25456","CLUB SAR FITNESS CENTER            ","52190","OTHER PROFESSIONAL SERVICES        ","2019","11"
"2019-05-24 00:00:00","KAREN CHURCHARD                              ","72","100","GENERAL","21700","TOURISM DEVELOPMENT ADMIN          ","52230","OVERNIGHT TRAIN/BUSINESS CONF TRAVL","2019","11"
"2019-05-24 00:00:00","GRAINGER                                     ","19595.79","603","WATER RECLAMATION","29535","UTILITIES MAINT-WTR RECLAMATION    ","53720","SMALL TOOLS & EQUIPMENT            ","2019","11"
"2019-05-24 00:00:00","GRAINGER                                     ","17.05","700","FLEET MANAGEMENT","20706","FLEET MANAGEMENT OPERATIONS        ","53780","OTHER MAINTENANCE & REPAIR SUPPLY  ","2019","11"
"2019-05-24 00:00:00","HACH COMPANY                                 ","-2554.59","603","WATER RECLAMATION","29380","WATER CAMPUS WATER RECLAMATION PLNT","53042","TREATMENT LAB SUPPLIES             ","2019","11"
"2019-05-24 00:00:00","HACH COMPANY                                 ","12366.6","605","CIP WATER RECLAMATION","VF06A","WASTEWATER SYSTEM IMPROVEMENTS     ","56046","DSGN - OTHER SERVICES              ","2019","11"
"2019-05-24 00:00:00","INDEPENDENT NEWSMEDIA INC USA                ","2550","285","TOURISM DEVELOPMENT","21743","OTHER COMMITMENTS                  ","52185","ADVERTISING                        ","2019","11"
"2019-05-24 00:00:00","INDUSTRIAL AUTOMATION SERVICES INC           ","4829.15","600","WATER","29260","CHAPARRAL WATER TREATMENT PLANT    ","53793","MAT TO MAINT AND REPAIR ELEC       ","2019","11"
"2019-05-24 00:00:00","IRON MOUNTAIN                                ","1438.89","100","GENERAL","21220","PERMIT SERVICES - ONE STOP SHOP    ","52279","FILMING/MICROFILMING/RECORDS RETENT","2019","11"
"2019-05-24 00:00:00","IRON MOUNTAIN                                ","0.82","100","GENERAL","21500","WESTWORLD *06/19                   ","52279","FILMING/MICROFILMING/RECORDS RETENT","2019","11"
"2019-05-24 00:00:00","IRON MOUNTAIN                                ","47.65","100","GENERAL","22425","CRIME LABORATORY                   ","52279","FILMING/MICROFILMING/RECORDS RETENT","2019","11"
"2019-05-24 00:00:00","IRON MOUNTAIN                                ","20.61","100","GENERAL","23100","ACCOUNTING                         ","52279","FILMING/MICROFILMING/RECORDS RETENT","2019","11"
"2019-05-24 00:00:00","IRON MOUNTAIN                                ","47.52","100","GENERAL","23520","TAX AUDIT                          ","52279","FILMING/MICROFILMING/RECORDS RETENT","2019","11"
"2019-05-24 00:00:00","IRON MOUNTAIN                                ","59.36","100","GENERAL","27400","HR ADMINISTRATION                  ","52279","FILMING/MICROFILMING/RECORDS RETENT","2019","11"
"2019-05-24 00:00:00","IRON MOUNTAIN                                ","13.76","220","CDBG","32498","18/19-CDBG ADMIN & PLANNING        ","52279","FILMING/MICROFILMING/RECORDS RETENT","2019","11"
"2019-05-24 00:00:00","JULIE PLUMMER                                ","120","100","GENERAL","25456","CLUB SAR FITNESS CENTER            ","52190","OTHER PROFESSIONAL SERVICES        ","2019","11"
"2019-05-24 00:00:00","KAREN BROWN                                  ","30","100","GENERAL","25451","LEISURE EDUCATION PROGRAMS         ","52190","OTHER PROFESSIONAL SERVICES        ","2019","11"
"2019-05-24 00:00:00","KONE INC                                     ","575","200","TRANSPORTATION","20909","UTILITIES - MEDIAN & RIGHT OF WAY  ","52360","MAINT - MACHINERY, EQUIP & AUTOS   ","2019","11"
"2019-05-24 00:00:00","LARRY H MILLER FORD MESA                     ","1743.99","700","FLEET MANAGEMENT","20706","FLEET MANAGEMENT OPERATIONS        ","52360","MAINT - MACHINERY, EQUIP & AUTOS   ","2019","11"
"2019-05-24 00:00:00","LIGHTING UNLIMITED                           ","366.4","100","GENERAL","20903","ELECTRICAL  MAINTENANCE            ","53770","MTRS TO MAINT & REPAIR BLDS & IMPR ","2019","11"
"2019-05-24 00:00:00","LN CURTIS AND SONS                           ","1810.45","100","GENERAL","22607","RESOURCE MANAGEMENT                ","53080","AMMUNITION AND WEAPONS             ","2019","11"
"2019-05-24 00:00:00","M R TANNER CONSTRUCTION                      ","129184","200","TRANSPORTATION","20840","ASPHALT & MAINTENANCE *06/20       ","52155","STREET OVERLAY                     ","2019","11"
"2019-05-24 00:00:00","MARIE CAMPI                                  ","200","100","GENERAL","25451","LEISURE EDUCATION PROGRAMS         ","52190","OTHER PROFESSIONAL SERVICES        ","2019","11"
"2019-05-24 00:00:00","MARY ISAACSON                                ","998.5","100","GENERAL","25451","LEISURE EDUCATION PROGRAMS         ","52190","OTHER PROFESSIONAL SERVICES        ","2019","11"
"2019-05-24 00:00:00","NATIONAL CREDIT REPORTING                    ","13.9","221","CDBG REHAB REVOLVING LOAN","31090","17/18-CDBG COS REHABILITATION      ","52190","OTHER PROFESSIONAL SERVICES        ","2019","11"
"2019-05-24 00:00:00","NET TRANSCRIPTS INC                          ","346.5","100","GENERAL","22429","PERSONS CRIMES                     ","52170","COURT REPORTERS/TRANSCRIPTION SERV ","2019","11"
"2019-05-24 00:00:00","PEDAL POSITIVE                               ","3214.5","551","RASSNER LIBRARY ENDOWMENT
","25699","RASSNER LIBRARY ENDOWMENT          ","53025","FURNITURE & MINOR EQUIPMENT        ","2019","11"
"2019-05-24 00:00:00","PROFORCE LAW ENFORCEMENT                     ","1173.37","280","SPECIAL PROGRAMS","22310","POLICE DPT OFFICER SAFETY EQUIPMENT","53080","AMMUNITION AND WEAPONS             ","2019","11"
"2019-05-24 00:00:00","REDDY ICE                                    ","611.21","100","GENERAL","20902","CONTRACT ADMINISTRATION            ","53090","OTHER OPERATING SUPPLIES           ","2019","11"
"2019-05-24 00:00:00","REGIONAL PAVEMENT MAINTENANCE OF ARIZONA INC ","49762.4","200","TRANSPORTATION","20840","ASPHALT & MAINTENANCE *06/20       ","52155","STREET OVERLAY                     ","2019","11"
"2019-05-24 00:00:00","RICOH USA INC                                ","9014.92","100","GENERAL","23420","GRAPHIC & PRINTING SOLUTIONS       ","52360","MAINT - MACHINERY, EQUIP & AUTOS   ","2019","11"
"2019-05-24 00:00:00","RICOH USA INC                                ","461.14","100","GENERAL","25000","COMMUNITY SERVICES PLANNING & ADMIN","52275","PHOTOCOPY CHARGES                  ","2019","11"
"2019-05-24 00:00:00","RITOCH-POWELL & ASSOCIATES                   ","35171.5","410","CIP TRANSPORTATION PRIVILEGE TAX ","SE02A","HAPPY VALLEY: PIMA TO ALMA SCH     ","56047","DSGN - ENGINEERING SERVICES        ","2019","11"
"2019-05-24 00:00:00","RITOCH-POWELL & ASSOCIATES                   ","33043.16","410","CIP TRANSPORTATION PRIVILEGE TAX ","SF02A","OSBORN CS: HYDN RD TO SCTTS RD     ","56047","DSGN - ENGINEERING SERVICES        ","2019","11"
"2019-05-24 00:00:00","RTW MANAGEMENT                               ","104309.54","200","TRANSPORTATION","21116","68TH/CAMELBACK ROUTE - 68CM *06/19 ","52863","TROLLEY CONTRACTS                  ","2019","11"
"2019-05-24 00:00:00","RTW MANAGEMENT                               ","110802.13","200","TRANSPORTATION","21118","MUSTANG ROUTE - MSTG *06/19        ","52863","TROLLEY CONTRACTS                  ","2019","11"
"2019-05-24 00:00:00","RUSH TRUCK CENTER                            ","700.57","700","FLEET MANAGEMENT","20706","FLEET MANAGEMENT OPERATIONS        ","52360","MAINT - MACHINERY, EQUIP & AUTOS   ","2019","11"
"2019-05-24 00:00:00","SAFELITE AUTOGLASS                           ","1324.33","100","GENERAL","22607","RESOURCE MANAGEMENT                ","52820","DAMAGE CLAIMS                      ","2019","11"
"2019-05-24 00:00:00","SAFELITE AUTOGLASS                           ","315.17","700","FLEET MANAGEMENT","20706","FLEET MANAGEMENT OPERATIONS        ","52360","MAINT - MACHINERY, EQUIP & AUTOS   ","2019","11"
"2019-05-24 00:00:00","KELLY AANENSON                               ","792","280","SPECIAL PROGRAMS","25396","VIA LINDA SENIOR CONTRIBUTIONS     ","52190","OTHER PROFESSIONAL SERVICES        ","2019","11"
"2019-05-24 00:00:00","KONE INC                                     ","3340","100","GENERAL","20902","CONTRACT ADMINISTRATION            ","52360","MAINT - MACHINERY, EQUIP & AUTOS   ","2019","11"
"2019-05-24 00:00:00","LANGUAGE CONNECTION                          ","150","100","GENERAL","01080","COURT                              ","52170","COURT REPORTERS/TRANSCRIPTION SERV ","2019","11"
"2019-05-24 00:00:00","LANGUAGE LINE SERVICES                       ","224.54","100","GENERAL","22612","COMMUNICATIONS                     ","52190","OTHER PROFESSIONAL SERVICES        ","2019","11"
"2019-05-24 00:00:00","LOFTIN EQUIPMENT CO                          ","8836.91","100","GENERAL","20902","CONTRACT ADMINISTRATION            ","52360","MAINT - MACHINERY, EQUIP & AUTOS   ","2019","11"
"2019-05-24 00:00:00","LOFTIN EQUIPMENT CO                          ","4912.56","400","CIP GENERAL","YF01A","FACILITIES RPR AND MAINT PGM       ","56082","CONT - BUILDINGS                   ","2019","11"
"2019-05-24 00:00:00","LORI MARTIN                                  ","948","100","GENERAL","25451","LEISURE EDUCATION PROGRAMS         ","52190","OTHER PROFESSIONAL SERVICES        ","2019","11"
"2019-05-24 00:00:00","MARILYN A BUETTNER                           ","490","100","GENERAL","25451","LEISURE EDUCATION PROGRAMS         ","52190","OTHER PROFESSIONAL SERVICES        ","2019","11"
"2019-05-24 00:00:00","MATT YOUNG                                   ","81","100","GENERAL","25451","LEISURE EDUCATION PROGRAMS         ","52190","OTHER PROFESSIONAL SERVICES        ","2019","11"
"2019-05-24 00:00:00","NUCO2 INC                                    ","17.25","280","SPECIAL PROGRAMS","25494","MCCORMICK RR PK/REV FACILITIES OPER","52360","MAINT - MACHINERY, EQUIP & AUTOS   ","2019","11"
"2019-05-24 00:00:00","NUTRIEN AG SOLUTIONS                         ","700.7","100","GENERAL","25438","MAINTENANC-CHAP OFF LEASH AREA     ","53010","AGRICULTURE & HORTICULTURE SUPPLY  ","2019","11"
"2019-05-24 00:00:00","OFFICE DEPOT                                 ","79.47","100","GENERAL","21500","WESTWORLD *06/19                   ","53020","OFFICE SUPPLIES                    ","2019","11"
"2019-05-24 00:00:00","OPTIMUM MANAGEMENT SOLUTIONS                 ","1000","200","TRANSPORTATION","20800","STREET OPERATIONS ADMINISTRATION *0","52190","OTHER PROFESSIONAL SERVICES        ","2019","11"
"2019-05-24 00:00:00","PINNACLE PEAK ACE HARDWARE                   ","166.91","100","GENERAL","20904","BUILDING MAINTENANCE AND REPAIR    ","53770","MTRS TO MAINT & REPAIR BLDS & IMPR ","2019","11"
"2019-05-24 00:00:00","PROGRESSIVE ROOFING                          ","12832","100","GENERAL","2090A","FACILITIES MGMT REPAIR & MAINT     ","52330","MAINTENANCE, BUILDINGS & STRUCTURE ","2019","11"
"2019-05-24 00:00:00","PROGRESSIVE ROOFING                          ","14421.5","100","GENERAL","2090A","FACILITIES MGMT REPAIR & MAINT     ","54140","BUILDINGS & IMPROVEMNT ACQUISITIONS","2019","11"
"2019-05-24 00:00:00","RED & WHITE APPLIANCE SERVICE LLC            ","433.1","100","GENERAL","22035","FIRE RESOURCE MANAGEMENT           ","52390","MISC MAINTENANCE AND REPAIR        ","2019","11"
"2019-05-24 00:00:00","REDDY ICE                                    ","117.6","100","GENERAL","21500","WESTWORLD *06/19                   ","53100","INVENTORY PURCHASED FOR RESALE     ","2019","11"
"2019-05-24 00:00:00","RICOH USA INC                                ","46.5","100","GENERAL","27401","STAFFING SERVICES                  ","52275","PHOTOCOPY CHARGES                  ","2019","11"
"2019-05-24 00:00:00","RICOH USA INC                                ","46.49","100","GENERAL","27420","BENEFITS MANAGEMENT                ","52275","PHOTOCOPY CHARGES                  ","2019","11"
"2019-05-24 00:00:00","RITOCH-POWELL & ASSOCIATES                   ","8520","605","CIP WATER RECLAMATION","VF06A","WASTEWATER SYSTEM IMPROVEMENTS     ","56047","DSGN - ENGINEERING SERVICES        ","2019","11"
"2019-05-24 00:00:00","ROMAN NAVARRO                                ","264","100","GENERAL","25451","LEISURE EDUCATION PROGRAMS         ","52190","OTHER PROFESSIONAL SERVICES        ","2019","11"
"2019-05-24 00:00:00","RTW MANAGEMENT                               ","23024.71","200","TRANSPORTATION","21112","OLD TOWN TROLLEY - OLDT *06/19     ","52863","TROLLEY CONTRACTS                  ","2019","11"
"2019-05-24 00:00:00","RTW MANAGEMENT                               ","77933.55","200","TRANSPORTATION","21119","MILLER/HAYDEN ROUTE - MLHD *06/19  ","52863","TROLLEY CONTRACTS                  ","2019","11"
"2019-05-24 00:00:00","SALT RIVER LANDFILL                          ","6758.76","200","TRANSPORTATION","20830","STREET CLEANING *06/20             ","52870","LANDFILL CONTRACT                  ","2019","11"
"2019-05-24 00:00:00","SALT RIVER LANDFILL                          ","48301.2","650","SOLID WASTE MANAGEMENT","20540","COLLECTION SVC ADMIN-RES           ","52320","CLEANING & WASTE REMOVAL           ","2019","11"
"2019-05-24 00:00:00","SALT RIVER LANDFILL                          ","168419.51","650","SOLID WASTE MANAGEMENT","20540","COLLECTION SVC ADMIN-RES           ","52870","LANDFILL CONTRACT                  ","2019","11"
"2019-05-24 00:00:00","SALT RIVER LANDFILL                          ","40871.67","650","SOLID WASTE MANAGEMENT","20542","BRUSH SERVICES-RES                 ","52870","LANDFILL CONTRACT                  ","2019","11"
"2019-05-24 00:00:00","SALT RIVER LANDFILL                          ","1433.1","650","SOLID WASTE MANAGEMENT","20542","BRUSH SERVICES-RES                 ","52871","LANDFILL CONTRACT-OTHER            ","2019","11"
"2019-05-24 00:00:00","SALT RIVER LANDFILL                          ","5591.6","650","SOLID WASTE MANAGEMENT","20553","ROLL OFF SERVICE-COMM              ","52870","LANDFILL CONTRACT                  ","2019","11"
"2019-05-24 00:00:00","SALT WORKS                                   ","2431.12","100","GENERAL","25410","MAINTENANCE - FOUNTAINS & AQUATICS ","53040","CHEMICALS & LABORATORY SUPPLIES    ","2019","11"
"2019-05-24 00:00:00","SARA PAIGE                                   ","250","100","GENERAL","25456","CLUB SAR FITNESS CENTER            ","52190","OTHER PROFESSIONAL SERVICES        ","2019","11"
"2019-05-24 00:00:00","SCOTTSDALE PARADISE VALLEY YMCA              ","1188","100","GENERAL","22036","PROFESSIONAL STANDARDS             ","52800","SUBSCRIPTIONS & MEMBERSHIPS        ","2019","11"
"2019-05-24 00:00:00","SCOTTSDALE TRAINING & REHABILITATION SERVICES","415.36","100","GENERAL","22035","FIRE RESOURCE MANAGEMENT           ","52890","OTHER CONTRACTUAL SERVICES         ","2019","11"
"2019-05-24 00:00:00","SCOTTYS LAWNMOWER INC                        ","100.8","100","GENERAL","25416","MAINTENANCE-ELDORADO PARK          ","52360","MAINT - MACHINERY, EQUIP & AUTOS   ","2019","11"
"2019-05-24 00:00:00","SHERI BURKE                                  ","840","230","GRANTS","36229","SRP-MIC FY17/18 MEIERDIRKS         ","52190","OTHER PROFESSIONAL SERVICES        ","2019","11"
"2019-05-24 00:00:00","SHI INTERNATIONAL CORP                       ","34160.01","600","WATER","23562","UTILITY BILLING - WATER            ","52350","SOFTWARE MAINT & LICENSING         ","2019","11"
"2019-05-24 00:00:00","SALT RIVER LANDFILL                          ","10827.62","650","SOLID WASTE MANAGEMENT","20542","BRUSH SERVICES-RES                 ","52320","CLEANING & WASTE REMOVAL           ","2019","11"
"2019-05-24 00:00:00","SALT RIVER LANDFILL                          ","8505.65","650","SOLID WASTE MANAGEMENT","20552","FRONT LOAD SERVICE-COMM            ","52320","CLEANING & WASTE REMOVAL           ","2019","11"
"2019-05-24 00:00:00","SALT RIVER LANDFILL                          ","45784.18","650","SOLID WASTE MANAGEMENT","20552","FRONT LOAD SERVICE-COMM            ","52870","LANDFILL CONTRACT                  ","2019","11"
"2019-05-24 00:00:00","SALT RIVER LANDFILL                          ","1963.59","650","SOLID WASTE MANAGEMENT","20553","ROLL OFF SERVICE-COMM              ","52320","CLEANING & WASTE REMOVAL           ","2019","11"
"2019-05-24 00:00:00","SCOTTYS LAWNMOWER INC                        ","81.18","100","GENERAL","25406","MAINTENANCE-SCOTTSDALE RANCH PARK  ","52360","MAINT - MACHINERY, EQUIP & AUTOS   ","2019","11"
"2019-05-24 00:00:00","SHAMROCK FOODS COMPANY                       ","1894.53","280","SPECIAL PROGRAMS","25494","MCCORMICK RR PK/REV FACILITIES OPER","53101","FOOD PURCHASED FOR RESALE          ","2019","11"
"2019-05-24 00:00:00","SHI INTERNATIONAL CORP                       ","17333.38","100","GENERAL","23510","TAX AND LICENSE ADMINISTRATION     ","52350","SOFTWARE MAINT & LICENSING         ","2019","11"
"2019-05-24 00:00:00","SOMERSET LANDSCAPE LLC                       ","2468.02","100","GENERAL","21840","CODE ENFORCEMENT                   ","52323","LANDSCAPING                        ","2019","11"
"2019-05-24 00:00:00","SOMERSET LANDSCAPE LLC                       ","7102.82","100","GENERAL","25420","LANDSCAPE CONTRACTS                ","52323","LANDSCAPING                        ","2019","11"
"2019-05-24 00:00:00","SOMERSET LANDSCAPE LLC                       ","915.04","285","TOURISM DEVELOPMENT","21743","OTHER COMMITMENTS                  ","52183","EVENT DEVELOPMENT/RETENTION        ","2019","11"
"2019-05-24 00:00:00","SOMERSET LANDSCAPE LLC                       ","478.31","650","SOLID WASTE MANAGEMENT","20535","TRANSFER STATION OPERATIONS        ","52323","LANDSCAPING                        ","2019","11"
"2019-05-24 00:00:00","SPOK INC                                     ","14.33","100","GENERAL","22607","RESOURCE MANAGEMENT                ","52226","SPECIALTY LINES - COMMUNICATIONS   ","2019","11"
"2019-05-24 00:00:00","SPORTBALL PHOENIX                            ","1280","100","GENERAL","25451","LEISURE EDUCATION PROGRAMS         ","52190","OTHER PROFESSIONAL SERVICES        ","2019","11"
"2019-05-24 00:00:00","STERICYCLE INC                               ","4542.94","640","AVIATION","21900","AVIATION                           ","52190","OTHER PROFESSIONAL SERVICES        ","2019","11"
"2019-05-24 00:00:00","STOTZ EQUIPMENT                              ","57.35","100","GENERAL","25404","PROFESSIONAL BASEBALL              ","52360","MAINT - MACHINERY, EQUIP & AUTOS   ","2019","11"
"2019-05-24 00:00:00","SUNRISE HEALTH                               ","224","100","GENERAL","22035","FIRE RESOURCE MANAGEMENT           ","52390","MISC MAINTENANCE AND REPAIR        ","2019","11"
"2019-05-24 00:00:00","SUSAN L WEINER                               ","136","100","GENERAL","25451","LEISURE EDUCATION PROGRAMS         ","52190","OTHER PROFESSIONAL SERVICES        ","2019","11"
"2019-05-24 00:00:00","THATCHER COMPANY OF ARIZONA INC              ","2714","100","GENERAL","25410","MAINTENANCE - FOUNTAINS & AQUATICS ","53040","CHEMICALS & LABORATORY SUPPLIES    ","2019","11"
"2019-05-24 00:00:00","THATCHER COMPANY OF ARIZONA INC              ","3822.73","603","WATER RECLAMATION","29381","ADVANCED WATER TREATMENT PLANT     ","53051","TREATMENT CHEMICAL(NON-TAXABLE)    ","2019","11"
"2019-05-24 00:00:00","TONYS LAWN MANAGEMENT LLC                    ","4832.76","100","GENERAL","25401","CIVIC CENTER COMPLEX               ","52323","LANDSCAPING                        ","2019","11"
"2019-05-24 00:00:00","TONYS LAWN MANAGEMENT LLC                    ","525.83","100","GENERAL","25426","MAINTENANCE-SCOTTSDALESPORTSCOMPLEX","52323","LANDSCAPING                        ","2019","11"
"2019-05-24 00:00:00","TRANSUNION RISK & ALTERNATIVE DATA SOLUTIONS ","302.54","100","GENERAL","22434","CRIME ANALYSIS                     ","52890","OTHER CONTRACTUAL SERVICES         ","2019","11"
"2019-05-24 00:00:00","UNIFIRST CORPORATION                         ","344.13","100","GENERAL","25400","PARKS & RECREATION PLANNING & ADMIN","52380","UNIFORM CLEANING                   ","2019","11"
"2019-05-24 00:00:00","UNIQUE MANAGEMENT SERVICES INC               ","1213.3","100","GENERAL","25602","LIBRARY OPERATIONS                 ","52171","COLLECTION AGENCY FEES             ","2019","11"
"2019-05-24 00:00:00","WASTE MANAGEMENT OF ARIZONA                  ","221.89","200","TRANSPORTATION","20810","GRADING AND DRAINAGE *06/20        ","52390","MISC MAINTENANCE AND REPAIR        ","2019","11"
"2019-05-28 00:00:00","AMBER SAMPSON                                ","180","100","GENERAL","25451","LEISURE EDUCATION PROGRAMS         ","52190","OTHER PROFESSIONAL SERVICES        ","2019","11"
"2019-05-28 00:00:00","AMERICAN DRY CLEANERS                        ","70","100","GENERAL","01080","COURT                              ","52380","UNIFORM CLEANING                   ","2019","11"
"2019-05-28 00:00:00","APPLIED DATA SYSTEMS INC                     ","680","100","GENERAL","20908","SPACE PLANNING                     ","52190","OTHER PROFESSIONAL SERVICES        ","2019","11"
"2019-05-28 00:00:00","AQUATIC ENVIRONMENTAL SYSTEMS INC            ","3675.29","100","GENERAL","25410","MAINTENANCE - FOUNTAINS & AQUATICS ","53040","CHEMICALS & LABORATORY SUPPLIES    ","2019","11"
"2019-05-28 00:00:00","ARIZONA PNEUMATIC SYSTEMS INC                ","27559.87","600","WATER","29221","CAP TREATMENT PLANT                ","53794","MAT TO MAINT AND REPAIR MECH SYS   ","2019","11"
"2019-05-28 00:00:00","ARIZONA PROPANE                              ","42.32","200","TRANSPORTATION","20810","GRADING AND DRAINAGE *06/20        ","53740","STREET MAINTENANCE MATERIALS       ","2019","11"
"2019-05-28 00:00:00","BUG OFF PEST CONTROL LLC                     ","1886.5","100","GENERAL","20902","CONTRACT ADMINISTRATION            ","52330","MAINTENANCE, BUILDINGS & STRUCTURE ","2019","11"
"2019-05-28 00:00:00","BUG OFF PEST CONTROL LLC                     ","96","603","WATER RECLAMATION","29321","SEWER SYSTEM                       ","52190","OTHER PROFESSIONAL SERVICES        ","2019","11"
"2019-05-28 00:00:00","CDW GOVERNMENT INC                           ","8374.99","100","GENERAL","27512","ENTERPRISE DATA & APP SUPPORT      ","52350","SOFTWARE MAINT & LICENSING         ","2019","11"
"2019-05-28 00:00:00","COURTESY CHEVROLET                           ","25207.27","700","FLEET MANAGEMENT","20720","VEHICLE ACQUISITIONS               ","54710","MOTOR VEHICLES                     ","2019","11"
"2019-05-28 00:00:00","COX COMMUNICATIONS PHOENIX                   ","26.33","200","TRANSPORTATION","20805","INTELLIGENT TRANSPORTATION SYS *06/","52224","TRAFFIC SIGNAL LINES               ","2019","11"
"2019-05-28 00:00:00","COX COMMUNICATIONS PHOENIX                   ","26.33","650","SOLID WASTE MANAGEMENT","20534","SOLID WASTE MANAGEMENT ADMIN SVCS  ","52226","SPECIALTY LINES - COMMUNICATIONS   ","2019","11"
"2019-05-24 00:00:00","SHIELD SCREENING                             ","5193.8","100","GENERAL","22608","MUNICIPAL SECURITY                 ","52190","OTHER PROFESSIONAL SERVICES        ","2019","11"
"2019-05-24 00:00:00","SIGLER                                       ","1865.15","100","GENERAL","20905","HVAC MAINTENANCE                   ","53790","MAT TO MAINT & REPAIR MACH, EQUIP  ","2019","11"
"2019-05-24 00:00:00","SKAGGS PUBLIC SAFETY UNIFORMS & EQUIPMENT    ","1699.77","100","GENERAL","22035","FIRE RESOURCE MANAGEMENT           ","53050","CLOTHING & PERSONAL PROTECT EQUIP  ","2019","11"
"2019-05-24 00:00:00","SKYLINE BUILDERS & RESTORATION INC           ","4956","100","GENERAL","2090A","FACILITIES MGMT REPAIR & MAINT     ","52330","MAINTENANCE, BUILDINGS & STRUCTURE ","2019","11"
"2019-05-24 00:00:00","SOMERSET LANDSCAPE LLC                       ","1045","100","GENERAL","25419","MAINTENANCE-VISTA DEL CAMINO       ","52323","LANDSCAPING                        ","2019","11"
"2019-05-24 00:00:00","SOMERSET LANDSCAPE LLC                       ","60845.42","100","GENERAL","25420","LANDSCAPE CONTRACTS                ","52322","MAINTENANCE, MOWING                ","2019","11"
"2019-05-24 00:00:00","SOMERSET LANDSCAPE LLC                       ","5150","100","GENERAL","25424","MAINTENANCE-CACTUS PARK            ","52323","LANDSCAPING                        ","2019","11"
"2019-05-24 00:00:00","SOMERSET LANDSCAPE LLC                       ","440","100","GENERAL","25430","MAINTENANCE-MCCORMICK-STILLMN RR PK","52322","MAINTENANCE, MOWING                ","2019","11"
"2019-05-24 00:00:00","SOMERSET LANDSCAPE LLC                       ","1530","100","GENERAL","25432","MAINTENANCE-MOUNTAIN VIEW PARK     ","52323","LANDSCAPING                        ","2019","11"
"2019-05-24 00:00:00","SOMERSET LANDSCAPE LLC                       ","105465.79","200","TRANSPORTATION","25480","MEDIANS & ROW CONTRACTS-TRANSP FUND","52186","R-O-W MEDIAN MAINTENANCE           ","2019","11"
"2019-05-24 00:00:00","SOMERSET LANDSCAPE LLC                       ","180","200","TRANSPORTATION","25480","MEDIANS & ROW CONTRACTS-TRANSP FUND","52323","LANDSCAPING                        ","2019","11"
"2019-05-24 00:00:00","SOMERSET LANDSCAPE LLC                       ","210","280","SPECIAL PROGRAMS","21832","OPERATION FIX IT DONATIONS         ","53770","MTRS TO MAINT & REPAIR BLDS & IMPR ","2019","11"
"2019-05-24 00:00:00","SQUEEGEE SQUAD                               ","2917.5","100","GENERAL","20902","CONTRACT ADMINISTRATION            ","52157","CUSTODIAL SERVICES                 ","2019","11"
"2019-05-24 00:00:00","THATCHER COMPANY OF ARIZONA INC              ","7691.43","600","WATER","29221","CAP TREATMENT PLANT                ","53051","TREATMENT CHEMICAL(NON-TAXABLE)    ","2019","11"
"2019-05-24 00:00:00","THATCHER COMPANY OF ARIZONA INC              ","2603.4","600","WATER","29275","BOOSTER STATIONS                   ","53051","TREATMENT CHEMICAL(NON-TAXABLE)    ","2019","11"
"2019-05-24 00:00:00","TONYS LAWN MANAGEMENT LLC                    ","805.46","100","GENERAL","25404","PROFESSIONAL BASEBALL              ","52323","LANDSCAPING                        ","2019","11"
"2019-05-24 00:00:00","UNITED FIRE                                  ","205.25","100","GENERAL","22035","FIRE RESOURCE MANAGEMENT           ","53050","CLOTHING & PERSONAL PROTECT EQUIP  ","2019","11"
"2019-05-24 00:00:00","VALLEY CHARTER                               ","264","100","GENERAL","25100","PRESERVE PLANNING & ADMINISTRATION ","52590","OTHER RENTALS                      ","2019","11"
"2019-05-24 00:00:00","VALLEY RAIN CONSTRUCTION INC                 ","520870.76","458","CIP PRESERVE TX04-IMPRVMT/LAND","PD04A","FRAESFIELD AND GRANITE MNTN TRLHDS ","56089","CONT - PARKS                       ","2019","11"
"2019-05-24 00:00:00","VOIANCE LANGUAGE SERVICES LLC                ","167.93","100","GENERAL","22612","COMMUNICATIONS                     ","52190","OTHER PROFESSIONAL SERVICES        ","2019","11"
"2019-05-28 00:00:00","ACE UNIFORMS OF PHOENIX                      ","633.87","100","GENERAL","22607","RESOURCE MANAGEMENT                ","53050","CLOTHING & PERSONAL PROTECT EQUIP  ","2019","11"
"2019-05-28 00:00:00","ALL CITY TOWING                              ","143","700","FLEET MANAGEMENT","20706","FLEET MANAGEMENT OPERATIONS        ","52360","MAINT - MACHINERY, EQUIP & AUTOS   ","2019","11"
"2019-05-28 00:00:00","AMERICAN DRY CLEANERS                        ","105.6","280","SPECIAL PROGRAMS","01081","COURT ENHANCEMENT                  ","52380","UNIFORM CLEANING                   ","2019","11"
"2019-05-28 00:00:00","AMERICAN REFRIGERATION SUPPLIES INC          ","1182.01","100","GENERAL","20905","HVAC MAINTENANCE                   ","53790","MAT TO MAINT & REPAIR MACH, EQUIP  ","2019","11"
"2019-05-28 00:00:00","ARIZONA BLUE STAKE INC                       ","1702.21","600","WATER","29201","WATER DISTRIBUTION                 ","52890","OTHER CONTRACTUAL SERVICES         ","2019","11"
"2019-05-28 00:00:00","ARIZONA DEPARTMENT OF PUBLIC SAFETY          ","44","100","GENERAL","23510","TAX AND LICENSE ADMINISTRATION     ","52190","OTHER PROFESSIONAL SERVICES        ","2019","11"
"2019-05-28 00:00:00","ARIZONA PNEUMATIC SYSTEMS INC                ","896","600","WATER","29221","CAP TREATMENT PLANT                ","52360","MAINT - MACHINERY, EQUIP & AUTOS   ","2019","11"
"2019-05-28 00:00:00","BAKER & TAYLOR LLC                           ","1199.14","100","GENERAL","25602","LIBRARY OPERATIONS                 ","53600","LIBRARY MATERIALS                  ","2019","11"
"2019-05-28 00:00:00","BK TECHNOLOGIES INC                          ","33223.3","400","CIP GENERAL","YF31A","PS - FIRE RADIO REPLACEMENT        ","56132","EQUP - RADIOS                      ","2019","11"
"2019-05-28 00:00:00","COX COMMUNICATIONS PHOENIX                   ","79","100","GENERAL","25301","VISTA DEL CAMINO SOCIAL SERVICE CTR","52226","SPECIALTY LINES - COMMUNICATIONS   ","2019","11"
"2019-05-28 00:00:00","COX COMMUNICATIONS PHOENIX                   ","26.34","100","GENERAL","27420","BENEFITS MANAGEMENT                ","52226","SPECIALTY LINES - COMMUNICATIONS   ","2019","11"
"2019-05-28 00:00:00","DBA CONSTRUCTION                             ","172853.48","410","CIP TRANSPORTATION PRIVILEGE TAX ","YF29A","PAVEMENT OVERLAY PROGRAM           ","56084","CONT - STREETS                     ","2019","11"
"2019-05-28 00:00:00","DEBORAH KAYATT                               ","240","100","GENERAL","25451","LEISURE EDUCATION PROGRAMS         ","52190","OTHER PROFESSIONAL SERVICES        ","2019","11"
"2019-05-28 00:00:00","ELECTRIC SUPPLY INC                          ","1629","604","RWDS","29601","RECLAIMED WATER DISTRIBUTION       ","53793","MAT TO MAINT AND REPAIR ELEC       ","2019","11"
"2019-05-28 00:00:00","ELITE SPORTS BUILDERS                        ","437","100","GENERAL","25423","COORD OF ATHLETIC FIELDS-YOUTH ORG ","52330","MAINTENANCE, BUILDINGS & STRUCTURE ","2019","11"
"2019-05-28 00:00:00","ELITE SPORTS BUILDERS                        ","4000","100","GENERAL","25455","ADULT SPORTS PROGRAMS              ","52190","OTHER PROFESSIONAL SERVICES        ","2019","11"
"2019-05-28 00:00:00","ENTERPRISE FLEET MANAGEMENT                  ","42961.17","100","GENERAL","22607","RESOURCE MANAGEMENT                ","52560","MACHINERY & EQUIPMENT RENT         ","2019","11"
"2019-05-28 00:00:00","DAMA COMMUNICATION SERVICES LLC              ","901.59","100","GENERAL","01035","ELECTIONS                          ","52190","OTHER PROFESSIONAL SERVICES        ","2019","11"
"2019-05-28 00:00:00","ELECTRIC SUPPLY INC                          ","3249.39","600","WATER","29275","BOOSTER STATIONS                   ","53793","MAT TO MAINT AND REPAIR ELEC       ","2019","11"
"2019-05-28 00:00:00","ELISA BRANCATI                               ","300","715","BENEFITS SELF INSURANCE","27436","LIVE LIFE WELL PROGRAM             ","52190","OTHER PROFESSIONAL SERVICES        ","2019","11"
"2019-05-28 00:00:00","FISHER SCIENTIFIC COMPANY LLC                ","333.69","600","WATER","29221","CAP TREATMENT PLANT                ","53042","TREATMENT LAB SUPPLIES             ","2019","11"
"2019-05-28 00:00:00","FOWLER INDUSTRIAL SERVICES                   ","1185.18","700","FLEET MANAGEMENT","20706","FLEET MANAGEMENT OPERATIONS        ","52360","MAINT - MACHINERY, EQUIP & AUTOS   ","2019","11"
"2019-05-28 00:00:00","GOODMANS                                     ","881.84","100","GENERAL","25301","VISTA DEL CAMINO SOCIAL SERVICE CTR","53090","OTHER OPERATING SUPPLIES           ","2019","11"
"2019-05-28 00:00:00","GRAINGER                                     ","44.7","601","GROUNDWATER TREATMENT FACILITY","29600","CGTF REIMBURSABLE                  ","53042","TREATMENT LAB SUPPLIES             ","2019","11"
"2019-05-28 00:00:00","GRUEN GRUEN + ASSOCIATES                     ","1127.6","285","TOURISM DEVELOPMENT","21740","TOURISM DEVELOPMENT - BED TAX      ","52890","OTHER CONTRACTUAL SERVICES         ","2019","11"
"2019-05-28 00:00:00","HACH COMPANY                                 ","673.47","600","WATER","29460","WATER LABORATORY                   ","53040","CHEMICALS & LABORATORY SUPPLIES    ","2019","11"
"2019-05-28 00:00:00","HAYS COMPANIES INC                           ","4333.33","715","BENEFITS SELF INSURANCE","27430","BENEFITS MANAGEMENT-SELF INSURANCE ","52190","OTHER PROFESSIONAL SERVICES        ","2019","11"
"2019-05-28 00:00:00","HOSTEDHR LLC                                 ","350","100","GENERAL","27410","TRAINING AND DEVELOPMENT           ","52350","SOFTWARE MAINT & LICENSING         ","2019","11"
"2019-05-28 00:00:00","JAMES COOKE & HOBSON INC                     ","5321.4","603","WATER RECLAMATION","29380","WATER CAMPUS WATER RECLAMATION PLNT","53794","MAT TO MAINT AND REPAIR MECH SYS   ","2019","11"
"2019-05-28 00:00:00","KAMAN INDUSTRIAL TECHNOLOGIES                ","600.98","100","GENERAL","20905","HVAC MAINTENANCE                   ","53790","MAT TO MAINT & REPAIR MACH, EQUIP  ","2019","11"
"2019-05-28 00:00:00","LOFTIN EQUIPMENT CO                          ","1274.36","400","CIP GENERAL","YF01A","FACILITIES RPR AND MAINT PGM       ","56082","CONT - BUILDINGS                   ","2019","11"
"2019-05-28 00:00:00","MARICOPA COUNTY                              ","78845.72","100","GENERAL","22205","DETENTION                          ","52136","JAIL SERVICES                      ","2019","11"
"2019-05-28 00:00:00","MIDWEST TAPE                                 ","774.88","100","GENERAL","25602","LIBRARY OPERATIONS                 ","53600","LIBRARY MATERIALS                  ","2019","11"
"2019-05-28 00:00:00","MSC INDUSTRIAL SUPPLY CO INC                 ","352.32","700","FLEET MANAGEMENT","20706","FLEET MANAGEMENT OPERATIONS        ","53780","OTHER MAINTENANCE & REPAIR SUPPLY  ","2019","11"
"2019-05-28 00:00:00","NUTRIEN AG SOLUTIONS                         ","3041.95","100","GENERAL","25414","MAINTENANCE-CHAPARRAL PARK         ","53010","AGRICULTURE & HORTICULTURE SUPPLY  ","2019","11"
"2019-05-28 00:00:00","ORBIT INDUSTRIAL SERVICE AND MAINTENANCE     ","1080","603","WATER RECLAMATION","29505","WATER RECLAMATION ADMIN            ","52360","MAINT - MACHINERY, EQUIP & AUTOS   ","2019","11"
"2019-05-28 00:00:00","PEORIA PEST CONTROL INC                      ","6123.2","603","WATER RECLAMATION","29321","SEWER SYSTEM                       ","52190","OTHER PROFESSIONAL SERVICES        ","2019","11"
"2019-05-28 00:00:00","RIO VERDE POTABLE WATER                      ","75","100","GENERAL","25100","PRESERVE PLANNING & ADMINISTRATION ","52190","OTHER PROFESSIONAL SERVICES        ","2019","11"
"2019-05-28 00:00:00","SPECTRUM AQUATICS                            ","10836.71","280","SPECIAL PROGRAMS","25498","POOL ALLOCATION - SPONSORED TEAMS  ","53770","MTRS TO MAINT & REPAIR BLDS & IMPR ","2019","11"
"2019-05-28 00:00:00","TENNANT SALES AND SERVICE COMPANY            ","680.67","700","FLEET MANAGEMENT","20706","FLEET MANAGEMENT OPERATIONS        ","52360","MAINT - MACHINERY, EQUIP & AUTOS   ","2019","11"
"2019-05-28 00:00:00","THATCHER COMPANY OF ARIZONA INC              ","3853.4","600","WATER","29221","CAP TREATMENT PLANT                ","53051","TREATMENT CHEMICAL(NON-TAXABLE)    ","2019","11"
"2019-05-28 00:00:00","TITAN MACHINERY                              ","80146.8","700","FLEET MANAGEMENT","20720","VEHICLE ACQUISITIONS               ","54530","OTHER MACHINERY & EQUIPMENT        ","2019","11"
"2019-05-28 00:00:00","VWR INTERNATIONAL LLC                        ","344.08","600","WATER","29400","WATER QUALITY SERVICES ADMIN       ","53090","OTHER OPERATING SUPPLIES           ","2019","11"
"2019-05-28 00:00:00","WACO CONTRACTING                             ","4523.32","600","WATER","29201","WATER DISTRIBUTION                 ","52363","SERVICE INTERRUPTION REPAIRS       ","2019","11"
"2019-05-28 00:00:00","WACO CONTRACTING                             ","2608.35","600","WATER","29201","WATER DISTRIBUTION                 ","53750","SERVICE INTERRUPTION MATERIALS     ","2019","11"
"2019-05-28 00:00:00","WATER WORKS ENGINEERS LLC                    ","12754.22","603","WATER RECLAMATION","29381","ADVANCED WATER TREATMENT PLANT     ","52130","CONSULTANTS                        ","2019","11"
"2019-05-28 00:00:00","WORKPLACE SAFETY SPECIALISTS                 ","795","600","WATER","29500","WATER ADMINISTRATION               ","52250","SPONSORED TRAINING                 ","2019","11"
"2019-05-28 00:00:00","WORKPLACE SAFETY SPECIALISTS                 ","795","603","WATER RECLAMATION","29505","WATER RECLAMATION ADMIN            ","52250","SPONSORED TRAINING                 ","2019","11"
"2019-05-28 00:00:00","YESCO LLC                                    ","2475.81","100","GENERAL","25403","STADIUM OPERATIONS                 ","52190","OTHER PROFESSIONAL SERVICES        ","2019","11"
"2019-05-29 00:00:00","A MIND FOR DETAIL INC                        ","1450.62","100","GENERAL","25401","CIVIC CENTER COMPLEX               ","52190","OTHER PROFESSIONAL SERVICES        ","2019","11"
"2019-05-29 00:00:00","ARTISTIC LAND MANAGEMENT INC                 ","6163.38","100","GENERAL","25412","MEDIANS & RIGHT-OF-WAY MAINTENANCE ","52323","LANDSCAPING                        ","2019","11"
"2019-05-29 00:00:00","ASIFLEX                                      ","2377","100","GENERAL","27422","FLEXIBLE SPENDING ACCT ADMIN FEES  ","52421","ADMINISTRATIVE FEES                ","2019","11"
"2019-05-29 00:00:00","BIO JANITORIAL SERVICE INC                   ","4200","100","GENERAL","20902","CONTRACT ADMINISTRATION            ","52157","CUSTODIAL SERVICES                 ","2019","11"
"2019-05-29 00:00:00","BRENNTAG PACIFIC INC                         ","9640.17","600","WATER","29221","CAP TREATMENT PLANT                ","53052","CLEANING CHEMICAL(TAXABLE)         ","2019","11"
"2019-05-28 00:00:00","FAST ACTION MOVERS                           ","500","230","GRANTS","36251","SRP-MIC FY18/19 SR CENTERS         ","52190","OTHER PROFESSIONAL SERVICES        ","2019","11"
"2019-05-28 00:00:00","FEDEX                                        ","64.53","600","WATER","29221","CAP TREATMENT PLANT                ","52210","POSTAGE AND SHIPPING               ","2019","11"
"2019-05-28 00:00:00","FERGUSON ENTERPRISES INC #1001               ","5935.82","600","WATER","29201","WATER DISTRIBUTION                 ","53772","REPLACEMENT OR REPAIR              ","2019","11"
"2019-05-28 00:00:00","FRANKLIN ELECTRIC CO INC                     ","1900","100","GENERAL","27502","PUBLIC SAFETY RADIO                ","52190","OTHER PROFESSIONAL SERVICES        ","2019","11"
"2019-05-28 00:00:00","GOODMANS                                     ","129.23","100","GENERAL","25301","VISTA DEL CAMINO SOCIAL SERVICE CTR","53025","FURNITURE & MINOR EQUIPMENT        ","2019","11"
"2019-05-28 00:00:00","GRAINGER                                     ","6705.96","100","GENERAL","22035","FIRE RESOURCE MANAGEMENT           ","53021","FIRE STATION SUPPLIES AND EQUIPMENT","2019","11"
"2019-05-28 00:00:00","HACH COMPANY                                 ","623.83","600","WATER","29221","CAP TREATMENT PLANT                ","53042","TREATMENT LAB SUPPLIES             ","2019","11"
"2019-05-28 00:00:00","HAYDON BUILDING CORP                         ","537369.7","410","CIP TRANSPORTATION PRIVILEGE TAX ","TE03A","DRINKWATER BRIDGE INTERIM RPRS     ","56083","CONT - OTHER STRUCTURES            ","2019","11"
"2019-05-28 00:00:00","HERC RENTALS INC                             ","916.3","600","WATER","29260","CHAPARRAL WATER TREATMENT PLANT    ","52560","MACHINERY & EQUIPMENT RENT         ","2019","11"
"2019-05-28 00:00:00","ICM DOCUMENT SOLUTIONS                       ","3772.85","100","GENERAL","21220","PERMIT SERVICES - ONE STOP SHOP    ","52279","FILMING/MICROFILMING/RECORDS RETENT","2019","11"
"2019-05-28 00:00:00","IMAGERY IMPRESSIONS LLC                      ","1126.83","100","GENERAL","22026","COMMUNITY EDUCATION                ","53090","OTHER OPERATING SUPPLIES           ","2019","11"
"2019-05-28 00:00:00","INTERSTATE LOCK & SAFE INC                   ","325","100","GENERAL","22432","SPECIAL INVESTGATIONS              ","52190","OTHER PROFESSIONAL SERVICES        ","2019","11"
"2019-05-28 00:00:00","LANDISCOR                                    ","3802.13","100","GENERAL","21410","BUSINESS DEVELOPMENT               ","52270","PRINTING & GRAPHICS SERVICES       ","2019","11"
"2019-05-28 00:00:00","MOBILE MINI TANK AND PUMP SOLUTIONS          ","22.81","600","WATER","29275","BOOSTER STATIONS                   ","52360","MAINT - MACHINERY, EQUIP & AUTOS   ","2019","11"
"2019-05-28 00:00:00","NUCO2 INC                                    ","232.7","280","SPECIAL PROGRAMS","25494","MCCORMICK RR PK/REV FACILITIES OPER","52360","MAINT - MACHINERY, EQUIP & AUTOS   ","2019","11"
"2019-05-28 00:00:00","SAFELITE AUTOGLASS                           ","893.73","700","FLEET MANAGEMENT","20706","FLEET MANAGEMENT OPERATIONS        ","52360","MAINT - MACHINERY, EQUIP & AUTOS   ","2019","11"
"2019-05-28 00:00:00","SCALE CENTER OF ARIZONA                      ","1387.48","650","SOLID WASTE MANAGEMENT","20535","TRANSFER STATION OPERATIONS        ","52360","MAINT - MACHINERY, EQUIP & AUTOS   ","2019","11"
"2019-05-28 00:00:00","SPEEDIE AND ASSOCIATES                       ","167","100","GENERAL","21211","FIELD ENGINEERING                  ","52190","OTHER PROFESSIONAL SERVICES        ","2019","11"
"2019-05-28 00:00:00","SPEEDIE AND ASSOCIATES                       ","791","400","CIP GENERAL","TE03C","DRINKWATER BRIDGE INTERIM RPRS     ","56086","CONT - OTHER                       ","2019","11"
"2019-05-28 00:00:00","THATCHER COMPANY OF ARIZONA INC              ","3809.14","603","WATER RECLAMATION","29381","ADVANCED WATER TREATMENT PLANT     ","53051","TREATMENT CHEMICAL(NON-TAXABLE)    ","2019","11"
"2019-05-28 00:00:00","TIDE DRY CLEANERS                            ","2209.34","100","GENERAL","22607","RESOURCE MANAGEMENT                ","52380","UNIFORM CLEANING                   ","2019","11"
"2019-05-28 00:00:00","UNITED RENTALS NORTH AMERICA INC             ","89.85","600","WATER","29201","WATER DISTRIBUTION                 ","52590","OTHER RENTALS                      ","2019","11"
"2019-05-28 00:00:00","UNIVAR USA INC                               ","2820.56","603","WATER RECLAMATION","29321","SEWER SYSTEM                       ","53052","CLEANING CHEMICAL(TAXABLE)         ","2019","11"
"2019-05-28 00:00:00","VULCAN MATERIALS COMPANY                     ","2184.55","200","TRANSPORTATION","20810","GRADING AND DRAINAGE *06/20        ","53740","STREET MAINTENANCE MATERIALS       ","2019","11"
"2019-05-28 00:00:00","VWR INTERNATIONAL LLC                        ","59.33","603","WATER RECLAMATION","29470","WATER RECLAMATION LABORATORY       ","53040","CHEMICALS & LABORATORY SUPPLIES    ","2019","11"
"2019-05-28 00:00:00","VWR INTERNATIONAL LLC                        ","250.64","603","WATER RECLAMATION","29480","STORMWATER QUALITY PERMIT          ","53040","CHEMICALS & LABORATORY SUPPLIES    ","2019","11"
"2019-05-28 00:00:00","WATER WORKS ENGINEERS LLC                    ","17015","602","CIP WATER","WB76B","BOOSTER STATION UPGRADES           ","56052","DSGN - WATER - BOOSTER STATION     ","2019","11"
"2019-05-28 00:00:00","WATER WORKS ENGINEERS LLC                    ","20000","605","CIP WATER RECLAMATION","VD01A","WASTEWATER TREATMENT FACILITY IMPR ","56058","DSGN - WWATER - TREATMENT FACILITY ","2019","11"
"2019-05-28 00:00:00","WILSON ELECTRIC SERVICES CORP                ","11835.27","100","GENERAL","2090A","FACILITIES MGMT REPAIR & MAINT     ","52330","MAINTENANCE, BUILDINGS & STRUCTURE ","2019","11"
"2019-05-28 00:00:00","WILSON ELECTRIC SERVICES CORP                ","176237.08","400","CIP GENERAL","YF01A","FACILITIES RPR AND MAINT PGM       ","56082","CONT - BUILDINGS                   ","2019","11"
"2019-05-28 00:00:00","YLS ENTERPRISES LLC                          ","862.95","600","WATER","29260","CHAPARRAL WATER TREATMENT PLANT    ","53794","MAT TO MAINT AND REPAIR MECH SYS   ","2019","11"
"2019-05-28 00:00:00","YLS ENTERPRISES LLC                          ","416.5","600","WATER","29275","BOOSTER STATIONS                   ","53794","MAT TO MAINT AND REPAIR MECH SYS   ","2019","11"
"2019-05-29 00:00:00","ADP INTERPRETING LLC                         ","337.5","100","GENERAL","01080","COURT                              ","52170","COURT REPORTERS/TRANSCRIPTION SERV ","2019","11"
"2019-05-29 00:00:00","ARCHAEOLOGICAL CONSULTING SERVICES LTD       ","316.74","100","GENERAL","21822","NEIGHBORHOOD PLANNING              ","52130","CONSULTANTS                        ","2019","11"
"2019-05-29 00:00:00","ARIZONA PROFESSIONAL PAINTING                ","9843","280","SPECIAL PROGRAMS","25494","MCCORMICK RR PK/REV FACILITIES OPER","52190","OTHER PROFESSIONAL SERVICES        ","2019","11"
"2019-05-29 00:00:00","ARMSTRONG GROWERS                            ","2743.01","100","GENERAL","25402","DOWNTOWN SCOTTSDALE                ","53010","AGRICULTURE & HORTICULTURE SUPPLY  ","2019","11"
"2019-05-29 00:00:00","BAKER & TAYLOR LLC                           ","3790.83","100","GENERAL","25602","LIBRARY OPERATIONS                 ","53600","LIBRARY MATERIALS                  ","2019","11"
"2019-05-29 00:00:00","CAVALLIERES BLACKSMITH SHOP                  ","1800","285","TOURISM DEVELOPMENT","21743","OTHER COMMITMENTS                  ","52183","EVENT DEVELOPMENT/RETENTION        ","2019","11"
"2019-05-29 00:00:00","CIGNA HEALTHCARE                             ","458456.47","715","BENEFITS SELF INSURANCE","27438","CIGNA OAP                          ","52411","MEDICAL CLAIMS                     ","2019","11"
"2019-05-29 00:00:00","CIGNA HEALTHCARE                             ","96659.34","715","BENEFITS SELF INSURANCE","27453","CIGNA PPO DENTAL                   ","52410","DENTAL CLAIMS                      ","2019","11"
"2019-05-29 00:00:00","CIGNA HEALTHCARE                             ","9405.3","717","BENEFITS SELF INS DIS PSPRS RETIREE","27451","CIGNA OAP PSPRS RETIREES           ","52411","MEDICAL CLAIMS                     ","2019","11"
"2019-05-29 00:00:00","FRANKLIN ELECTRIC CO INC                     ","3800","100","GENERAL","27502","PUBLIC SAFETY RADIO                ","52190","OTHER PROFESSIONAL SERVICES        ","2019","11"
"2019-05-29 00:00:00","HENNESY MECHANICAL SALES LLC                 ","1280.4","600","WATER","29275","BOOSTER STATIONS                   ","53794","MAT TO MAINT AND REPAIR MECH SYS   ","2019","11"
"2019-05-29 00:00:00","HP INC                                       ","54.03","100","GENERAL","21840","CODE ENFORCEMENT                   ","53020","OFFICE SUPPLIES                    ","2019","11"
"2019-05-29 00:00:00","INGRAM LIBRARY SERVICES                      ","40.41","100","GENERAL","25602","LIBRARY OPERATIONS                 ","53600","LIBRARY MATERIALS                  ","2019","11"
"2019-05-29 00:00:00","JEFF LABRIOLA                                ","40313.86","602","CIP WATER","WB54A","WATER PARTICIPATION PROGRAM        ","56112","CONT - PRTCPTN PAYBACK AGRMTS      ","2019","11"
"2019-05-29 00:00:00","JEFF LABRIOLA                                ","69322.72","602","CIP WATER","WB77B","WATER DISTRIBUTION SYSTEM IMPROV   ","56113","CONT - LINE OVERSIZING AGRMTS      ","2019","11"
"2019-05-29 00:00:00","JEFF LABRIOLA                                ","20139.08","605","CIP WATER RECLAMATION","VF06A","WASTEWATER SYSTEM IMPROVEMENTS     ","56113","CONT - LINE OVERSIZING AGRMTS      ","2019","11"
"2019-05-29 00:00:00","JOHNSON STEWART MATERIALS LLC                ","150","100","GENERAL","20907","CONSTRUCTION SERVICES              ","52870","LANDFILL CONTRACT                  ","2019","11"
"2019-05-29 00:00:00","KARY ENVIRONMENTAL SERVICES INC              ","441.43","100","GENERAL","22205","DETENTION                          ","52390","MISC MAINTENANCE AND REPAIR        ","2019","11"
"2019-05-29 00:00:00","KARY ENVIRONMENTAL SERVICES INC              ","2070.6","650","SOLID WASTE MANAGEMENT","20540","COLLECTION SVC ADMIN-RES           ","52190","OTHER PROFESSIONAL SERVICES        ","2019","11"
"2019-05-29 00:00:00","KELLER ELECTRICAL INDUSTRIES INC             ","1509.76","604","RWDS","29601","RECLAIMED WATER DISTRIBUTION       ","52360","MAINT - MACHINERY, EQUIP & AUTOS   ","2019","11"
"2019-05-29 00:00:00","KELLER ELECTRICAL INDUSTRIES INC             ","3026.75","604","RWDS","29601","RECLAIMED WATER DISTRIBUTION       ","53793","MAT TO MAINT AND REPAIR ELEC       ","2019","11"
"2019-05-29 00:00:00","KELLY PAPER                                  ","8490.17","100","GENERAL","23420","GRAPHIC & PRINTING SOLUTIONS       ","53060","PHOTOGRAPHIC & DUPLICATING SUPPLIES","2019","11"
"2019-05-29 00:00:00","KEMIRA WATER SOLUTIONS INC                   ","6829.38","603","WATER RECLAMATION","29380","WATER CAMPUS WATER RECLAMATION PLNT","53051","TREATMENT CHEMICAL(NON-TAXABLE)    ","2019","11"
"2019-05-29 00:00:00","KIMLEY HORN AND ASSOCIATES INC               ","3293.75","400","CIP GENERAL","DE02A","DOWNTOWN ENT DIST ST & PED IM      ","56047","DSGN - ENGINEERING SERVICES        ","2019","11"
"2019-05-29 00:00:00","KIMLEY HORN AND ASSOCIATES INC               ","6780.78","602","CIP WATER","WE02A","TECH MSTR PLN IDENTIFIED W PR      ","56057","DSGN - WATER - OTHER               ","2019","11"
"2019-05-29 00:00:00","KIMLEY HORN AND ASSOCIATES INC               ","793.68","605","CIP WATER RECLAMATION","VF06A","WASTEWATER SYSTEM IMPROVEMENTS     ","56060","DSGN - WWATER - PUMPBACK SYSTEM    ","2019","11"
"2019-05-29 00:00:00","KZELL METALS INC                             ","1086","280","SPECIAL PROGRAMS","25494","MCCORMICK RR PK/REV FACILITIES OPER","53780","OTHER MAINTENANCE & REPAIR SUPPLY  ","2019","11"
"2019-05-29 00:00:00","LOGAN SIMPSON DESIGN INC                     ","2226.69","458","CIP PRESERVE TX04-IMPRVMT/LAND","PB50A","NORTH AREA TRAIL CONSTRUCTION      ","56007","LAND - SURVEYS                     ","2019","11"
"2019-05-29 00:00:00","LSW ENGINEERS ARIZONA INC                    ","530","400","CIP GENERAL","YF01A","FACILITIES RPR AND MAINT PGM       ","56082","CONT - BUILDINGS                   ","2019","11"
"2019-05-29 00:00:00","LSW ENGINEERS ARIZONA INC                    ","1800","605","CIP WATER RECLAMATION","VD01A","WASTEWATER TREATMENT FACILITY IMPR ","56047","DSGN - ENGINEERING SERVICES        ","2019","11"
"2019-05-29 00:00:00","METERING SERVICES INC                        ","4620.71","600","WATER","29206","WATER METER GROUP                  ","52190","OTHER PROFESSIONAL SERVICES        ","2019","11"
"2019-05-29 00:00:00","NINYO & MOORE                                ","4493.75","605","CIP WATER RECLAMATION","VF06A","WASTEWATER SYSTEM IMPROVEMENTS     ","56065","DSGN - WWATER - OTHER              ","2019","11"
"2019-05-29 00:00:00","O I ANALYTICAL                               ","435.13","600","WATER","29460","WATER LABORATORY                   ","53040","CHEMICALS & LABORATORY SUPPLIES    ","2019","11"
"2019-05-29 00:00:00","PITNEY BOWES PRESORT SERVICES INC            ","622.85","100","GENERAL","23430","MAIL                               ","52210","POSTAGE AND SHIPPING               ","2019","11"
"2019-05-29 00:00:00","SANDRA E CORREA                              ","1500","100","GENERAL","22219","TRAINING                           ","52250","SPONSORED TRAINING                 ","2019","11"
"2019-05-29 00:00:00","THE ICEE COMPANY                             ","492.38","280","SPECIAL PROGRAMS","25494","MCCORMICK RR PK/REV FACILITIES OPER","53101","FOOD PURCHASED FOR RESALE          ","2019","11"
"2019-05-29 00:00:00","UNITED RENTALS NORTH AMERICA INC             ","877.95","600","WATER","29201","WATER DISTRIBUTION                 ","52590","OTHER RENTALS                      ","2019","11"
"2019-05-29 00:00:00","UNIVAR USA INC                               ","2625","600","WATER","29275","BOOSTER STATIONS                   ","53051","TREATMENT CHEMICAL(NON-TAXABLE)    ","2019","11"
"2019-05-29 00:00:00","VULCAN MATERIALS COMPANY                     ","395.69","200","TRANSPORTATION","20810","GRADING AND DRAINAGE *06/20        ","53740","STREET MAINTENANCE MATERIALS       ","2019","11"
"2019-05-29 00:00:00","WELLS FARGO                                  ","8412.71","100","GENERAL","23580","REMITTANCE PROCESSING/RECORDS MGT  ","52165","BANKING SERVICES                   ","2019","11"
"2019-05-29 00:00:00","WIST OFFICE PRODUCTS                         ","960.28","100","GENERAL","25466","RECREATION AMENITIES REPLACEMENT   ","53025","FURNITURE & MINOR EQUIPMENT        ","2019","11"
"2019-05-30 00:00:00","AB SCIEX LLC                                 ","2576.07","603","WATER RECLAMATION","29470","WATER RECLAMATION LABORATORY       ","53040","CHEMICALS & LABORATORY SUPPLIES    ","2019","11"
"2019-05-29 00:00:00","BAKER & TAYLOR LLC                           ","388.86","280","SPECIAL PROGRAMS","25690","LIBRARY BOOK SALES *10/19          ","53600","LIBRARY MATERIALS                  ","2019","11"
"2019-05-29 00:00:00","BALAR EQUIPMENT CORPORATION                  ","949.27","600","WATER","29221","CAP TREATMENT PLANT                ","52360","MAINT - MACHINERY, EQUIP & AUTOS   ","2019","11"
"2019-05-29 00:00:00","BRIGITTE YANCY INTERNATIONAL LLC             ","1323","100","GENERAL","25451","LEISURE EDUCATION PROGRAMS         ","52190","OTHER PROFESSIONAL SERVICES        ","2019","11"
"2019-05-29 00:00:00","C & I SHOW HARDWARE AND SECURITY SYSTEMS INC ","351.33","100","GENERAL","20904","BUILDING MAINTENANCE AND REPAIR    ","53770","MTRS TO MAINT & REPAIR BLDS & IMPR ","2019","11"
"2019-05-29 00:00:00","CHARLES TAYLOR                               ","630","100","GENERAL","25451","LEISURE EDUCATION PROGRAMS         ","52190","OTHER PROFESSIONAL SERVICES        ","2019","11"
"2019-05-29 00:00:00","CIGNA HEALTHCARE                             ","1576421.21","715","BENEFITS SELF INSURANCE","27437","CIGNA OAP IN-NETWORK               ","52411","MEDICAL CLAIMS                     ","2019","11"
"2019-05-29 00:00:00","CIGNA HEALTHCARE                             ","61243.01","715","BENEFITS SELF INSURANCE","27439","CIGNA OAP HSA                      ","52411","MEDICAL CLAIMS                     ","2019","11"
"2019-05-29 00:00:00","CIGNA HEALTHCARE                             ","76075.25","715","BENEFITS SELF INSURANCE","27454","CIGNA LOC PLUS IN-NETWRK           ","52411","MEDICAL CLAIMS                     ","2019","11"
"2019-05-29 00:00:00","CIGNA HEALTHCARE                             ","6189.6","717","BENEFITS SELF INS DIS PSPRS RETIREE","27450","CIGNA OAP IN-NETWORK PSPRS RETIREES","52411","MEDICAL CLAIMS                     ","2019","11"
"2019-05-29 00:00:00","CIGNA HEALTHCARE                             ","180.91","717","BENEFITS SELF INS DIS PSPRS RETIREE","27452","CIGNA OAP + HSA PSPRS RETIREES     ","52411","MEDICAL CLAIMS                     ","2019","11"
"2019-05-29 00:00:00","COX COMMUNICATIONS PHOENIX                   ","2650.04","100","GENERAL","25000","COMMUNITY SERVICES PLANNING & ADMIN","52226","SPECIALTY LINES - COMMUNICATIONS   ","2019","11"
"2019-05-29 00:00:00","COX COMMUNICATIONS PHOENIX                   ","9.42","603","WATER RECLAMATION","29525","WATER RECLAMATION TECHNOLOGY       ","52226","SPECIALTY LINES - COMMUNICATIONS   ","2019","11"
"2019-05-29 00:00:00","DAIKIN APPLIED AMERICAS INC                  ","1200.5","100","GENERAL","20905","HVAC MAINTENANCE                   ","52360","MAINT - MACHINERY, EQUIP & AUTOS   ","2019","11"
"2019-05-29 00:00:00","HAPI                                         ","12625","285","TOURISM DEVELOPMENT","21743","OTHER COMMITMENTS                  ","52185","ADVERTISING                        ","2019","11"
"2019-05-29 00:00:00","HARDY DIAGNOSTICS                            ","616.17","600","WATER","29460","WATER LABORATORY                   ","53040","CHEMICALS & LABORATORY SUPPLIES    ","2019","11"
"2019-05-29 00:00:00","HENNESY MECHANICAL SALES LLC                 ","4474.1","600","WATER","29275","BOOSTER STATIONS                   ","52360","MAINT - MACHINERY, EQUIP & AUTOS   ","2019","11"
"2019-05-29 00:00:00","HENNESY MECHANICAL SALES LLC                 ","4350.55","603","WATER RECLAMATION","29321","SEWER SYSTEM                       ","53794","MAT TO MAINT AND REPAIR MECH SYS   ","2019","11"
"2019-05-29 00:00:00","HENNESY MECHANICAL SALES LLC                 ","20631.34","604","RWDS","29601","RECLAIMED WATER DISTRIBUTION       ","54530","OTHER MACHINERY & EQUIPMENT        ","2019","11"
"2019-05-29 00:00:00","IMCOR                                        ","118225.35","400","CIP GENERAL","YF01A","FACILITIES RPR AND MAINT PGM       ","56082","CONT - BUILDINGS                   ","2019","11"
"2019-05-29 00:00:00","INNOVEST PORTFOLIO SOLUTIONS LLC             ","5512.5","100","GENERAL","27420","BENEFITS MANAGEMENT                ","52190","OTHER PROFESSIONAL SERVICES        ","2019","11"
"2019-05-29 00:00:00","INTELLIQUICK DELIVERY                        ","1375","700","FLEET MANAGEMENT","20706","FLEET MANAGEMENT OPERATIONS        ","52360","MAINT - MACHINERY, EQUIP & AUTOS   ","2019","11"
"2019-05-29 00:00:00","INTERNATIONAL CARTRIDGE CORPORATION          ","1388.66","280","SPECIAL PROGRAMS","22310","POLICE DPT OFFICER SAFETY EQUIPMENT","53080","AMMUNITION AND WEAPONS             ","2019","11"
"2019-05-29 00:00:00","ISS FACILITY SERVICES - EVENTS SERVICES      ","5039.93","100","GENERAL","25403","STADIUM OPERATIONS                 ","52157","CUSTODIAL SERVICES                 ","2019","11"
"2019-05-29 00:00:00","JOAN FUDALA                                  ","100","280","SPECIAL PROGRAMS","25395","GRANITE REEF SENIOR CONTRIBUTIONS  ","52190","OTHER PROFESSIONAL SERVICES        ","2019","11"
"2019-05-29 00:00:00","KELLER ELECTRICAL INDUSTRIES INC             ","3414.15","600","WATER","29275","BOOSTER STATIONS                   ","52360","MAINT - MACHINERY, EQUIP & AUTOS   ","2019","11"
"2019-05-29 00:00:00","KELLER ELECTRICAL INDUSTRIES INC             ","6858.42","600","WATER","29275","BOOSTER STATIONS                   ","53793","MAT TO MAINT AND REPAIR ELEC       ","2019","11"
"2019-05-29 00:00:00","KELLY PAPER                                  ","1208.2","100","GENERAL","23420","GRAPHIC & PRINTING SOLUTIONS       ","53090","OTHER OPERATING SUPPLIES           ","2019","11"
"2019-05-29 00:00:00","KIMLEY HORN AND ASSOCIATES INC               ","1388.32","605","CIP WATER RECLAMATION","VE01A","TECH MSTR PLN IDENTIFIED WW PR     ","56065","DSGN - WWATER - OTHER              ","2019","11"
"2019-05-29 00:00:00","KING CONCRETE INC                            ","607.4","200","TRANSPORTATION","20810","GRADING AND DRAINAGE *06/20        ","53770","MTRS TO MAINT & REPAIR BLDS & IMPR ","2019","11"
"2019-05-29 00:00:00","LAWSON PRODUCTS                              ","215.81","100","GENERAL","21500","WESTWORLD *06/19                   ","53720","SMALL TOOLS & EQUIPMENT            ","2019","11"
"2019-05-29 00:00:00","LOGAN SIMPSON DESIGN INC                     ","1000.5","100","GENERAL","21822","NEIGHBORHOOD PLANNING              ","52130","CONSULTANTS                        ","2019","11"
"2019-05-29 00:00:00","LOGICALIS INC                                ","5961.72","400","CIP GENERAL","YE07A","IT - NETWORK INFRASTRUCTURE *06/19 ","56157","IT - EQUIPMENT                     ","2019","11"
"2019-05-29 00:00:00","MGC CONTRACTORS INC                          ","11383","605","CIP WATER RECLAMATION","VD01A","WASTEWATER TREATMENT FACILITY IMPR ","56098","CONT - WWATER - TREATMENT FACILITY ","2019","11"
"2019-05-29 00:00:00","MHQ OF ARIZONA                               ","8619.4","700","FLEET MANAGEMENT","20706","FLEET MANAGEMENT OPERATIONS        ","52360","MAINT - MACHINERY, EQUIP & AUTOS   ","2019","11"
"2019-05-29 00:00:00","MICHELLE STEWART                             ","437.5","100","GENERAL","25451","LEISURE EDUCATION PROGRAMS         ","52190","OTHER PROFESSIONAL SERVICES        ","2019","11"
"2019-05-29 00:00:00","MINER SOUTHWEST LLC                          ","12383.26","100","GENERAL","2090A","FACILITIES MGMT REPAIR & MAINT     ","52330","MAINTENANCE, BUILDINGS & STRUCTURE ","2019","11"
"2019-05-29 00:00:00","MOODYS QUICK INC                             ","29.21","600","WATER","29400","WATER QUALITY SERVICES ADMIN       ","52210","POSTAGE AND SHIPPING               ","2019","11"
"2019-05-30 00:00:00","ACRO SERVICE CORP                            ","422.48","285","TOURISM DEVELOPMENT","21740","TOURISM DEVELOPMENT - BED TAX      ","52890","OTHER CONTRACTUAL SERVICES         ","2019","11"
"2019-05-30 00:00:00","ALLIED ELECTRONICS INC                       ","585.21","603","WATER RECLAMATION","29381","ADVANCED WATER TREATMENT PLANT     ","53793","MAT TO MAINT AND REPAIR ELEC       ","2019","11"
"2019-05-30 00:00:00","AMERICAN FILTER & EQUIPMENT CORP             ","284.99","700","FLEET MANAGEMENT","20706","FLEET MANAGEMENT OPERATIONS        ","52360","MAINT - MACHINERY, EQUIP & AUTOS   ","2019","11"
"2019-05-30 00:00:00","AMERICAN REFRIGERATION SUPPLIES INC          ","1153.71","100","GENERAL","20905","HVAC MAINTENANCE                   ","53790","MAT TO MAINT & REPAIR MACH, EQUIP  ","2019","11"
"2019-05-30 00:00:00","ANTON SPORT                                  ","1117.48","100","GENERAL","25400","PARKS & RECREATION PLANNING & ADMIN","53050","CLOTHING & PERSONAL PROTECT EQUIP  ","2019","11"
"2019-05-30 00:00:00","ARIZONA BLUE STAKE INC                       ","293.86","200","TRANSPORTATION","20805","INTELLIGENT TRANSPORTATION SYS *06/","52890","OTHER CONTRACTUAL SERVICES         ","2019","11"
"2019-05-30 00:00:00","ARIZONA BLUE STAKE INC                       ","614.25","200","TRANSPORTATION","20860","TRAFFIC SIGNALS *06/20             ","52890","OTHER CONTRACTUAL SERVICES         ","2019","11"
"2019-05-30 00:00:00","ARIZONA DEPARTMENT OF PUBLIC SAFETY          ","66","100","GENERAL","23510","TAX AND LICENSE ADMINISTRATION     ","52190","OTHER PROFESSIONAL SERVICES        ","2019","11"
"2019-05-30 00:00:00","BUG OFF PEST CONTROL LLC                     ","221","100","GENERAL","20902","CONTRACT ADMINISTRATION            ","52330","MAINTENANCE, BUILDINGS & STRUCTURE ","2019","11"
"2019-05-30 00:00:00","DR MARIA CHURCH INTERNATIONAL LLC            ","3420","100","GENERAL","01110","CITY MANAGER                       ","52190","OTHER PROFESSIONAL SERVICES        ","2019","11"
"2019-05-30 00:00:00","ELECTRIC SUPPLY INC                          ","1008.62","603","WATER RECLAMATION","29321","SEWER SYSTEM                       ","53793","MAT TO MAINT AND REPAIR ELEC       ","2019","11"
"2019-05-30 00:00:00","FERGUSON ENTERPRISES INC #1001               ","2249.67","600","WATER","29201","WATER DISTRIBUTION                 ","53772","REPLACEMENT OR REPAIR              ","2019","11"
"2019-05-30 00:00:00","FISHER SCIENTIFIC COMPANY LLC                ","878.53","600","WATER","29460","WATER LABORATORY                   ","53040","CHEMICALS & LABORATORY SUPPLIES    ","2019","11"
"2019-05-30 00:00:00","GRAINGER                                     ","682.34","600","WATER","29510","WATER EFFICIENCY GROUP             ","53720","SMALL TOOLS & EQUIPMENT            ","2019","11"
"2019-05-30 00:00:00","JOEL LEHRER                                  ","1486.75","100","GENERAL","25405","SCOTTSDALE RANCH PK SPORTS COMPLEX ","52190","OTHER PROFESSIONAL SERVICES        ","2019","11"
"2019-05-30 00:00:00","M BRENT STOCKWELL                            ","697.12","100","GENERAL","01110","CITY MANAGER                       ","52230","OVERNIGHT TRAIN/BUSINESS CONF TRAVL","2019","11"
"2019-05-30 00:00:00","MALLARD CREEK                                ","15552","100","GENERAL","21500","WESTWORLD *06/19                   ","53100","INVENTORY PURCHASED FOR RESALE     ","2019","11"
"2019-05-30 00:00:00","MATHESON TRI GAS INC                         ","29.32","100","GENERAL","25410","MAINTENANCE - FOUNTAINS & AQUATICS ","53040","CHEMICALS & LABORATORY SUPPLIES    ","2019","11"
"2019-05-30 00:00:00","METERING SERVICES INC                        ","4978.27","602","CIP WATER","WB66A","WATER METER REPLACEMENT PROGRAM    ","56086","CONT - OTHER                       ","2019","11"
"2019-05-30 00:00:00","METROHM USA INC                              ","551.57","600","WATER","29460","WATER LABORATORY                   ","53040","CHEMICALS & LABORATORY SUPPLIES    ","2019","11"
"2019-05-30 00:00:00","MICHAEL PEREIRA                              ","400","100","GENERAL","25405","SCOTTSDALE RANCH PK SPORTS COMPLEX ","52190","OTHER PROFESSIONAL SERVICES        ","2019","11"
"2019-05-30 00:00:00","MICHAEL PEREIRA                              ","130","100","GENERAL","25417","INDIAN SCHOOL PARK SPORTS COMPLEX  ","52190","OTHER PROFESSIONAL SERVICES        ","2019","11"
"2019-05-30 00:00:00","MIDWAY CHEVROLET                             ","35841.83","700","FLEET MANAGEMENT","20720","VEHICLE ACQUISITIONS               ","54710","MOTOR VEHICLES                     ","2019","11"
"2019-05-30 00:00:00","MUSCO SPORTS LIGHTING LLC                    ","9549.24","100","GENERAL","25423","COORD OF ATHLETIC FIELDS-YOUTH ORG ","52330","MAINTENANCE, BUILDINGS & STRUCTURE ","2019","11"
"2019-05-30 00:00:00","PROGRESSIVE ROOFING                          ","6077.75","100","GENERAL","2090A","FACILITIES MGMT REPAIR & MAINT     ","52330","MAINTENANCE, BUILDINGS & STRUCTURE ","2019","11"
"2019-05-30 00:00:00","SAFE RESTRAINTS INC                          ","2802.99","100","GENERAL","22205","DETENTION                          ","53090","OTHER OPERATING SUPPLIES           ","2019","11"
"2019-05-30 00:00:00","SCOTTSDALE CULTURAL COUNCIL                  ","9000","400","CIP GENERAL","DC03A","SKYSONG-ASU SCOTTS CTR-ART CMPNNT  ","56071","AIPP-ART IN PUBLIC PLACES          ","2019","11"
"2019-05-30 00:00:00","SCOTTYS LAWNMOWER INC                        ","915.37","100","GENERAL","22035","FIRE RESOURCE MANAGEMENT           ","53720","SMALL TOOLS & EQUIPMENT            ","2019","11"
"2019-05-30 00:00:00","SKYLINE BUILDERS & RESTORATION INC           ","1865.51","280","SPECIAL PROGRAMS","25494","MCCORMICK RR PK/REV FACILITIES OPER","52190","OTHER PROFESSIONAL SERVICES        ","2019","11"
"2019-05-30 00:00:00","SPEEDIE AND ASSOCIATES                       ","1434","458","CIP PRESERVE TX04-IMPRVMT/LAND","PD04A","FRAESFIELD AND GRANITE MNTN TRLHDS ","56086","CONT - OTHER                       ","2019","11"
"2019-05-31 00:00:00","ACE UNIFORMS OF PHOENIX                      ","1206.76","100","GENERAL","22607","RESOURCE MANAGEMENT                ","53050","CLOTHING & PERSONAL PROTECT EQUIP  ","2019","11"
"2019-05-31 00:00:00","AIRPARK SIGNS & GRAPHICS                     ","64.86","100","GENERAL","22607","RESOURCE MANAGEMENT                ","53770","MTRS TO MAINT & REPAIR BLDS & IMPR ","2019","11"
"2019-05-31 00:00:00","ALL CITY TOWING                              ","511","700","FLEET MANAGEMENT","20706","FLEET MANAGEMENT OPERATIONS        ","52360","MAINT - MACHINERY, EQUIP & AUTOS   ","2019","11"
"2019-05-31 00:00:00","ALTERNATIVE COMMUNICATION SERVICES LLC       ","603.75","100","GENERAL","27310","CITYCABLE 11 *06/19                ","52190","OTHER PROFESSIONAL SERVICES        ","2019","11"
"2019-05-31 00:00:00","ASPIN MOHAVE                                 ","709.03","230","GRANTS","36249","SRP-MIC FY18/19 PARKS & REC        ","53030","EDUCATION & RECREATION SUPPLIES    ","2019","11"
"2019-05-31 00:00:00","BAKER & TAYLOR LLC                           ","5988.23","100","GENERAL","25602","LIBRARY OPERATIONS                 ","53600","LIBRARY MATERIALS                  ","2019","11"
"2019-05-31 00:00:00","BETSY ANDRADE LLC                            ","360","100","GENERAL","25451","LEISURE EDUCATION PROGRAMS         ","52190","OTHER PROFESSIONAL SERVICES        ","2019","11"
"2019-05-29 00:00:00","OCCUPATIONAL HEALTH CTRS OF THE SOUTHWEST PA ","123","100","GENERAL","22432","SPECIAL INVESTGATIONS              ","52150","MEDICAL SERVICES                   ","2019","11"
"2019-05-29 00:00:00","PHONE SUPPLEMENTS                            ","309.81","100","GENERAL","21700","TOURISM DEVELOPMENT ADMIN          ","53020","OFFICE SUPPLIES                    ","2019","11"
"2019-05-29 00:00:00","SAN TAN FORD                                 ","53549.94","700","FLEET MANAGEMENT","20720","VEHICLE ACQUISITIONS               ","54710","MOTOR VEHICLES                     ","2019","11"
"2019-05-29 00:00:00","THE LAW OFFICE OF ALEXANDER Y BENIKOV        ","7800","100","GENERAL","01080","COURT                              ","52141","PUBLIC DEFENDER SERVICES           ","2019","11"
"2019-05-29 00:00:00","WELLS FARGO                                  ","858.47","100","GENERAL","22433","TACTICAL OPERATIONS                ","52226","SPECIALTY LINES - COMMUNICATIONS   ","2019","11"
"2019-05-29 00:00:00","WELLS FARGO                                  ","4664.03","100","GENERAL","23100","ACCOUNTING                         ","52165","BANKING SERVICES                   ","2019","11"
"2019-05-29 00:00:00","WILSON ELECTRIC SERVICES CORP                ","80720.17","200","TRANSPORTATION","20909","UTILITIES - MEDIAN & RIGHT OF WAY  ","52330","MAINTENANCE, BUILDINGS & STRUCTURE ","2019","11"
"2019-05-30 00:00:00","ABSOLUTE STANDARDS INC                       ","1789.41","600","WATER","29460","WATER LABORATORY                   ","53040","CHEMICALS & LABORATORY SUPPLIES    ","2019","11"
"2019-05-30 00:00:00","AIMS COMPANIES                               ","19133.68","603","WATER RECLAMATION","29321","SEWER SYSTEM                       ","52190","OTHER PROFESSIONAL SERVICES        ","2019","11"
"2019-05-30 00:00:00","AIR PRODUCTS AND CHEMICALS INC               ","2746.32","603","WATER RECLAMATION","29381","ADVANCED WATER TREATMENT PLANT     ","53051","TREATMENT CHEMICAL(NON-TAXABLE)    ","2019","11"
"2019-05-30 00:00:00","ALANA VERDUGO NOTO                           ","486","100","GENERAL","25405","SCOTTSDALE RANCH PK SPORTS COMPLEX ","52190","OTHER PROFESSIONAL SERVICES        ","2019","11"
"2019-05-30 00:00:00","ARIZONA DEPARTMENT OF PUBLIC SAFETY          ","719.47","100","GENERAL","22610","TECHNOLOGY SERVICES                ","52226","SPECIALTY LINES - COMMUNICATIONS   ","2019","11"
"2019-05-30 00:00:00","CCS PRESENTATION SYSTEMS                     ","4218.25","100","GENERAL","22607","RESOURCE MANAGEMENT                ","52340","MAINTENANCE, OFF EQUIP & FURNITURE ","2019","11"
"2019-05-30 00:00:00","CDW GOVERNMENT INC                           ","144.57","100","GENERAL","27501","NETWORK OPERATIONS                 ","53090","OTHER OPERATING SUPPLIES           ","2019","11"
"2019-05-30 00:00:00","CHRIS BARNHART                               ","1325.5","100","GENERAL","25405","SCOTTSDALE RANCH PK SPORTS COMPLEX ","52190","OTHER PROFESSIONAL SERVICES        ","2019","11"
"2019-05-30 00:00:00","COMMERCIAL REFRIGERATION SERVICE INC         ","1120.84","100","GENERAL","22607","RESOURCE MANAGEMENT                ","52340","MAINTENANCE, OFF EQUIP & FURNITURE ","2019","11"
"2019-05-30 00:00:00","DOUGLAS KENNEDY                              ","114","100","GENERAL","25405","SCOTTSDALE RANCH PK SPORTS COMPLEX ","52190","OTHER PROFESSIONAL SERVICES        ","2019","11"
"2019-05-30 00:00:00","FELIX CONSTRUCTION COMPANY                   ","25705.51","602","CIP WATER","WB77B","WATER DISTRIBUTION SYSTEM IMPROV   ","56093","CONT - WATER - DISTRIBUTION SYSTEM ","2019","11"
"2019-05-30 00:00:00","FERGUSON ENTERPRISES INC #1001               ","4024.72","600","WATER","29206","WATER METER GROUP                  ","53780","OTHER MAINTENANCE & REPAIR SUPPLY  ","2019","11"
"2019-05-30 00:00:00","FISHER SCIENTIFIC COMPANY LLC                ","100","603","WATER RECLAMATION","29470","WATER RECLAMATION LABORATORY       ","53040","CHEMICALS & LABORATORY SUPPLIES    ","2019","11"
"2019-05-30 00:00:00","GRAINGER                                     ","636.07","603","WATER RECLAMATION","29515","WATER RECLAMATION EFFICIENCY GROUP ","53720","SMALL TOOLS & EQUIPMENT            ","2019","11"
"2019-05-30 00:00:00","HILL BROTHERS CHEMICAL CO                    ","819.39","603","WATER RECLAMATION","29380","WATER CAMPUS WATER RECLAMATION PLNT","53052","CLEANING CHEMICAL(TAXABLE)         ","2019","11"
"2019-05-30 00:00:00","HILL BROTHERS CHEMICAL CO                    ","420","612","GAINEY RANCH WWTP","29607","GAINEY RANCH WATER RECLAMATION     ","53051","TREATMENT CHEMICAL(NON-TAXABLE)    ","2019","11"
"2019-05-30 00:00:00","ICM DOCUMENT SOLUTIONS                       ","257.94","100","GENERAL","25602","LIBRARY OPERATIONS                 ","52190","OTHER PROFESSIONAL SERVICES        ","2019","11"
"2019-05-30 00:00:00","JIM ALLEN                                    ","180","100","GENERAL","25405","SCOTTSDALE RANCH PK SPORTS COMPLEX ","52190","OTHER PROFESSIONAL SERVICES        ","2019","11"
"2019-05-30 00:00:00","JIM ALLEN                                    ","30","100","GENERAL","25417","INDIAN SCHOOL PARK SPORTS COMPLEX  ","52190","OTHER PROFESSIONAL SERVICES        ","2019","11"
"2019-05-30 00:00:00","JOHNNIE CRAVIN                               ","40","280","SPECIAL PROGRAMS","25392","HUMAN SERVICES CONTRIBUTIONS       ","52880","HOUSING ASSISTANCE (NON-SECTION 8) ","2019","11"
"2019-05-30 00:00:00","KARL LECLERC                                 ","590","100","GENERAL","25405","SCOTTSDALE RANCH PK SPORTS COMPLEX ","52190","OTHER PROFESSIONAL SERVICES        ","2019","11"
"2019-05-30 00:00:00","KELLY CAVNER                                 ","56.06","100","GENERAL","22026","COMMUNITY EDUCATION                ","53045","BUSINESS MTGS-REFRESHMENTS & SUPPLI","2019","11"
"2019-05-30 00:00:00","KELSEY COHEN                                 ","530.92","280","SPECIAL PROGRAMS","22302","STATE FORFEITURES                  ","52230","OVERNIGHT TRAIN/BUSINESS CONF TRAVL","2019","11"
"2019-05-30 00:00:00","KRISTIN FULLAM                               ","1568","100","GENERAL","25405","SCOTTSDALE RANCH PK SPORTS COMPLEX ","52190","OTHER PROFESSIONAL SERVICES        ","2019","11"
"2019-05-30 00:00:00","MATHESON TRI GAS INC                         ","494.91","600","WATER","29460","WATER LABORATORY                   ","53040","CHEMICALS & LABORATORY SUPPLIES    ","2019","11"
"2019-05-30 00:00:00","METERING SERVICES INC                        ","3121.42","600","WATER","29206","WATER METER GROUP                  ","52190","OTHER PROFESSIONAL SERVICES        ","2019","11"
"2019-05-30 00:00:00","MISCOWATER                                   ","3545.59","600","WATER","29221","CAP TREATMENT PLANT                ","53793","MAT TO MAINT AND REPAIR ELEC       ","2019","11"
"2019-05-30 00:00:00","MISCOWATER                                   ","1772.79","600","WATER","29260","CHAPARRAL WATER TREATMENT PLANT    ","53793","MAT TO MAINT AND REPAIR ELEC       ","2019","11"
"2019-05-30 00:00:00","MISCOWATER                                   ","2954.66","603","WATER RECLAMATION","29380","WATER CAMPUS WATER RECLAMATION PLNT","53793","MAT TO MAINT AND REPAIR ELEC       ","2019","11"
"2019-05-30 00:00:00","MIWALL CORPORATION                           ","623.73","280","SPECIAL PROGRAMS","22310","POLICE DPT OFFICER SAFETY EQUIPMENT","53080","AMMUNITION AND WEAPONS             ","2019","11"
"2019-05-31 00:00:00","BETTY A LEONELLI                             ","180","100","GENERAL","25451","LEISURE EDUCATION PROGRAMS         ","52190","OTHER PROFESSIONAL SERVICES        ","2019","11"
"2019-05-31 00:00:00","BUG OFF PEST CONTROL LLC                     ","100","100","GENERAL","20902","CONTRACT ADMINISTRATION            ","52330","MAINTENANCE, BUILDINGS & STRUCTURE ","2019","11"
"2019-05-31 00:00:00","CCS PRESENTATION SYSTEMS                     ","1765.4","100","GENERAL","2090J","ECON DEV AND TOURISM RELOCATIO     ","52360","MAINT - MACHINERY, EQUIP & AUTOS   ","2019","11"
"2019-05-31 00:00:00","CDW GOVERNMENT INC                           ","455.24","100","GENERAL","01051","PROSECUTION                        ","52350","SOFTWARE MAINT & LICENSING         ","2019","11"
"2019-05-31 00:00:00","CHLIC/CIGNA HEALTHCARE                       ","20979.42","715","BENEFITS SELF INSURANCE","27437","CIGNA OAP IN-NETWORK               ","52421","ADMINISTRATIVE FEES                ","2019","11"
"2019-05-31 00:00:00","CHLIC/CIGNA HEALTHCARE                       ","4374.37","715","BENEFITS SELF INSURANCE","27438","CIGNA OAP                          ","52421","ADMINISTRATIVE FEES                ","2019","11"
"2019-05-31 00:00:00","CHLIC/CIGNA HEALTHCARE                       ","4449.26","715","BENEFITS SELF INSURANCE","27453","CIGNA PPO DENTAL                   ","52421","ADMINISTRATIVE FEES                ","2019","11"
"2019-05-31 00:00:00","CHLIC/CIGNA HEALTHCARE                       ","1580.04","715","BENEFITS SELF INSURANCE","27454","CIGNA LOC PLUS IN-NETWRK           ","52421","ADMINISTRATIVE FEES                ","2019","11"
"2019-05-31 00:00:00","CHLIC/CIGNA HEALTHCARE                       ","117.04","717","BENEFITS SELF INS DIS PSPRS RETIREE","27451","CIGNA OAP PSPRS RETIREES           ","52421","ADMINISTRATIVE FEES                ","2019","11"
"2019-05-31 00:00:00","CHLIC/CIGNA HEALTHCARE                       ","29.26","717","BENEFITS SELF INS DIS PSPRS RETIREE","27452","CIGNA OAP + HSA PSPRS RETIREES     ","52421","ADMINISTRATIVE FEES                ","2019","11"
"2019-05-31 00:00:00","CIGNA BEHAVIORAL HEALTH                      ","250.8","715","BENEFITS SELF INSURANCE","27454","CIGNA LOC PLUS IN-NETWRK           ","52413","BEHAVIORAL HEALTH INSURANCE CLAIMS ","2019","11"
"2019-05-31 00:00:00","CIGNA BEHAVIORAL HEALTH                      ","27.3","717","BENEFITS SELF INS DIS PSPRS RETIREE","27450","CIGNA OAP IN-NETWORK PSPRS RETIREES","52413","BEHAVIORAL HEALTH INSURANCE CLAIMS ","2019","11"
"2019-05-31 00:00:00","CINTAS CORP                                  ","70.43","600","WATER","29500","WATER ADMINISTRATION               ","52190","OTHER PROFESSIONAL SERVICES        ","2019","11"
"2019-05-31 00:00:00","CINTAS CORPORATION                           ","55.6","100","GENERAL","20905","HVAC MAINTENANCE                   ","53050","CLOTHING & PERSONAL PROTECT EQUIP  ","2019","11"
"2019-05-31 00:00:00","CINTAS CORPORATION                           ","34.5","100","GENERAL","20906","PLUMBING MAINTENANCE               ","53050","CLOTHING & PERSONAL PROTECT EQUIP  ","2019","11"
"2019-05-31 00:00:00","CINTAS CORPORATION                           ","524.09","603","WATER RECLAMATION","29303","WATER RECLAMATION SERVICES ADMIN   ","52190","OTHER PROFESSIONAL SERVICES        ","2019","11"
"2019-05-31 00:00:00","CINTAS CORPORATION                           ","150.92","612","GAINEY RANCH WWTP","29607","GAINEY RANCH WATER RECLAMATION     ","52380","UNIFORM CLEANING                   ","2019","11"
"2019-05-31 00:00:00","CITY OF PHOENIX                              ","197262.67","605","CIP WATER RECLAMATION","VF04A","SROG REGIONAL WASTEWATER FACIL     ","56103","CONT - SROG                        ","2019","11"
"2019-05-31 00:00:00","COVERTTRACK GROUP                            ","594.28","100","GENERAL","22607","RESOURCE MANAGEMENT                ","53025","FURNITURE & MINOR EQUIPMENT        ","2019","11"
"2019-05-31 00:00:00","COX COMMUNICATIONS INC                       ","50","100","GENERAL","22433","TACTICAL OPERATIONS                ","52226","SPECIALTY LINES - COMMUNICATIONS   ","2019","11"
"2019-05-31 00:00:00","EMERSON PROCESS MANAGEMENT                   ","3268.85","600","WATER","29520","WATER TECHNOLOGY                   ","52350","SOFTWARE MAINT & LICENSING         ","2019","11"
"2019-05-31 00:00:00","EMERSON PROCESS MANAGEMENT                   ","3268.86","603","WATER RECLAMATION","29525","WATER RECLAMATION TECHNOLOGY       ","52350","SOFTWARE MAINT & LICENSING         ","2019","11"
"2019-05-31 00:00:00","EMPIRE SOUTHWEST                             ","7715.05","200","TRANSPORTATION","20810","GRADING AND DRAINAGE *06/20        ","52560","MACHINERY & EQUIPMENT RENT         ","2019","11"
"2019-05-31 00:00:00","EMPIRE SOUTHWEST                             ","2320.1","700","FLEET MANAGEMENT","20706","FLEET MANAGEMENT OPERATIONS        ","52360","MAINT - MACHINERY, EQUIP & AUTOS   ","2019","11"
"2019-05-31 00:00:00","EVOQUA WATER TECHNOLOGIES LLC                ","113.85","100","GENERAL","20905","HVAC MAINTENANCE                   ","52360","MAINT - MACHINERY, EQUIP & AUTOS   ","2019","11"
"2019-05-31 00:00:00","EVOQUA WATER TECHNOLOGIES LLC                ","719.33","600","WATER","29260","CHAPARRAL WATER TREATMENT PLANT    ","53042","TREATMENT LAB SUPPLIES             ","2019","11"
"2019-05-31 00:00:00","EWING IRRIGATION PRODUCTS                    ","29","100","GENERAL","21500","WESTWORLD *06/19                   ","53780","OTHER MAINTENANCE & REPAIR SUPPLY  ","2019","11"
"2019-05-31 00:00:00","EWING IRRIGATION PRODUCTS                    ","1412.62","100","GENERAL","25404","PROFESSIONAL BASEBALL              ","53770","MTRS TO MAINT & REPAIR BLDS & IMPR ","2019","11"
"2019-05-31 00:00:00","EWING IRRIGATION PRODUCTS                    ","12.98","100","GENERAL","25414","MAINTENANCE-CHAPARRAL PARK         ","53770","MTRS TO MAINT & REPAIR BLDS & IMPR ","2019","11"
"2019-05-31 00:00:00","EWING IRRIGATION PRODUCTS                    ","50.57","100","GENERAL","25418","MAINTENANCE-INDIAN SCHOOL PARK     ","53770","MTRS TO MAINT & REPAIR BLDS & IMPR ","2019","11"
"2019-05-31 00:00:00","EWING IRRIGATION PRODUCTS                    ","245.1","100","GENERAL","25424","MAINTENANCE-CACTUS PARK            ","53770","MTRS TO MAINT & REPAIR BLDS & IMPR ","2019","11"
"2019-05-31 00:00:00","EWING IRRIGATION PRODUCTS                    ","684.35","100","GENERAL","25433","MAINTENANCE-COPPER RIDGE           ","53770","MTRS TO MAINT & REPAIR BLDS & IMPR ","2019","11"
"2019-05-31 00:00:00","FERGUSON ENTERPRISES INC #1001               ","359.76","100","GENERAL","20906","PLUMBING MAINTENANCE               ","53770","MTRS TO MAINT & REPAIR BLDS & IMPR ","2019","11"
"2019-05-31 00:00:00","FIRE SECURITY ELECTRONICS & COMMUNICATIONS IN","1076.4","100","GENERAL","22608","MUNICIPAL SECURITY                 ","52360","MAINT - MACHINERY, EQUIP & AUTOS   ","2019","11"
"2019-05-31 00:00:00","FIRE SECURITY ELECTRONICS & COMMUNICATIONS IN","1228.52","100","GENERAL","22608","MUNICIPAL SECURITY                 ","53770","MTRS TO MAINT & REPAIR BLDS & IMPR ","2019","11"
"2019-05-31 00:00:00","FIRE SECURITY ELECTRONICS & COMMUNICATIONS IN","15482.65","400","CIP GENERAL","JD05A","CCTV & ACCESS CONTROL REPLACEMENT  ","56133","EQUP - OTHER                       ","2019","11"
"2019-05-31 00:00:00","FIRETROL PROTECTION SYSTEMS INC              ","5048.68","100","GENERAL","2090A","FACILITIES MGMT REPAIR & MAINT     ","52330","MAINTENANCE, BUILDINGS & STRUCTURE ","2019","11"
"2019-05-30 00:00:00","MOMAR INC                                    ","16762.46","603","WATER RECLAMATION","29380","WATER CAMPUS WATER RECLAMATION PLNT","53051","TREATMENT CHEMICAL(NON-TAXABLE)    ","2019","11"
"2019-05-30 00:00:00","MUNICIPAL EMERGENCY SERVICES INC             ","721.94","100","GENERAL","22035","FIRE RESOURCE MANAGEMENT           ","53050","CLOTHING & PERSONAL PROTECT EQUIP  ","2019","11"
"2019-05-30 00:00:00","MYERS AND STAUFFER LC                        ","47350","100","GENERAL","01070","CITY AUDITOR                       ","52160","AUDITING AND ACCOUNTING            ","2019","11"
"2019-05-30 00:00:00","PERI GUFFEY                                  ","351","100","GENERAL","25405","SCOTTSDALE RANCH PK SPORTS COMPLEX ","52190","OTHER PROFESSIONAL SERVICES        ","2019","11"
"2019-05-30 00:00:00","PUBLIC SAFETY CORPORATION                    ","6218","100","GENERAL","23510","TAX AND LICENSE ADMINISTRATION     ","52350","SOFTWARE MAINT & LICENSING         ","2019","11"
"2019-05-30 00:00:00","REDDY ICE                                    ","348.47","100","GENERAL","20902","CONTRACT ADMINISTRATION            ","53090","OTHER OPERATING SUPPLIES           ","2019","11"
"2019-05-30 00:00:00","SCOTTSDALE CULTURAL COUNCIL                  ","1600","400","CIP GENERAL","DC03A","SKYSONG-ASU SCOTTS CTR-ART CMPNNT  ","56071","AIPP-ART IN PUBLIC PLACES          ","2019","11"
"2019-05-30 00:00:00","SCOTTSDALE LEAGUE FOR THE ARTS               ","18750","285","TOURISM DEVELOPMENT","21711","EVENT RETENTION AND DEVELOPMENT    ","52183","EVENT DEVELOPMENT/RETENTION        ","2019","11"
"2019-05-30 00:00:00","SHEILA R SCHNEIDER                           ","360","100","GENERAL","25451","LEISURE EDUCATION PROGRAMS         ","52190","OTHER PROFESSIONAL SERVICES        ","2019","11"
"2019-05-30 00:00:00","SPEEDIE AND ASSOCIATES                       ","2034","100","GENERAL","21211","FIELD ENGINEERING                  ","52190","OTHER PROFESSIONAL SERVICES        ","2019","11"
"2019-05-30 00:00:00","SPEEDIE AND ASSOCIATES                       ","269.5","602","CIP WATER","WB77B","WATER DISTRIBUTION SYSTEM IMPROV   ","56093","CONT - WATER - DISTRIBUTION SYSTEM ","2019","11"
"2019-05-31 00:00:00","AMERICAN REFRIGERATION SUPPLIES INC          ","91.39","100","GENERAL","20905","HVAC MAINTENANCE                   ","53790","MAT TO MAINT & REPAIR MACH, EQUIP  ","2019","11"
"2019-05-31 00:00:00","ANITA CHESTNEY                               ","1050","100","GENERAL","25451","LEISURE EDUCATION PROGRAMS         ","52190","OTHER PROFESSIONAL SERVICES        ","2019","11"
"2019-05-31 00:00:00","ANTON SPORT                                  ","2624.55","100","GENERAL","22035","FIRE RESOURCE MANAGEMENT           ","53050","CLOTHING & PERSONAL PROTECT EQUIP  ","2019","11"
"2019-05-31 00:00:00","ANTON SPORT                                  ","304.27","200","TRANSPORTATION","20860","TRAFFIC SIGNALS *06/20             ","53050","CLOTHING & PERSONAL PROTECT EQUIP  ","2019","11"
"2019-05-31 00:00:00","ARIZONA CORRECTIONAL INDUSTRIES              ","608.16","100","GENERAL","25610","CIVIC CENTER LIBRARY               ","52340","MAINTENANCE, OFF EQUIP & FURNITURE ","2019","11"
"2019-05-31 00:00:00","ARIZONA PPE RECON INC                        ","2137.5","100","GENERAL","22035","FIRE RESOURCE MANAGEMENT           ","52380","UNIFORM CLEANING                   ","2019","11"
"2019-05-31 00:00:00","ARIZONA PROPANE                              ","60.6","200","TRANSPORTATION","20810","GRADING AND DRAINAGE *06/20        ","53740","STREET MAINTENANCE MATERIALS       ","2019","11"
"2019-05-31 00:00:00","ASIFLEX                                      ","328.5","100","GENERAL","27422","FLEXIBLE SPENDING ACCT ADMIN FEES  ","52421","ADMINISTRATIVE FEES                ","2019","11"
"2019-05-31 00:00:00","BIO JANITORIAL SERVICE INC                   ","111450.54","100","GENERAL","20902","CONTRACT ADMINISTRATION            ","52157","CUSTODIAL SERVICES                 ","2019","11"
"2019-05-31 00:00:00","BRODEK CRANE INSPECTIONS INC.                ","710","600","WATER","29500","WATER ADMINISTRATION               ","52190","OTHER PROFESSIONAL SERVICES        ","2019","11"
"2019-05-31 00:00:00","C & I SHOW HARDWARE AND SECURITY SYSTEMS INC ","10133.51","100","GENERAL","2090A","FACILITIES MGMT REPAIR & MAINT     ","54140","BUILDINGS & IMPROVEMNT ACQUISITIONS","2019","11"
"2019-05-31 00:00:00","CANON SOLUTIONS AMERICA                      ","555.03","100","GENERAL","21220","PERMIT SERVICES - ONE STOP SHOP    ","52340","MAINTENANCE, OFF EQUIP & FURNITURE ","2019","11"
"2019-05-31 00:00:00","CCS PRESENTATION SYSTEMS                     ","158","100","GENERAL","25403","STADIUM OPERATIONS                 ","52360","MAINT - MACHINERY, EQUIP & AUTOS   ","2019","11"
"2019-05-31 00:00:00","CDW GOVERNMENT INC                           ","278.29","100","GENERAL","27505","HELP DESK/DESKTOP TECHNICAL SUPPORT","53790","MAT TO MAINT & REPAIR MACH, EQUIP  ","2019","11"
"2019-05-31 00:00:00","CHLIC/CIGNA HEALTHCARE                       ","3438.05","715","BENEFITS SELF INSURANCE","27439","CIGNA OAP HSA                      ","52421","ADMINISTRATIVE FEES                ","2019","11"
"2019-05-31 00:00:00","CHLIC/CIGNA HEALTHCARE                       ","190.19","717","BENEFITS SELF INS DIS PSPRS RETIREE","27450","CIGNA OAP IN-NETWORK PSPRS RETIREES","52421","ADMINISTRATIVE FEES                ","2019","11"
"2019-05-31 00:00:00","CIGNA BEHAVIORAL HEALTH                      ","4659.9","715","BENEFITS SELF INSURANCE","27437","CIGNA OAP IN-NETWORK               ","52413","BEHAVIORAL HEALTH INSURANCE CLAIMS ","2019","11"
"2019-05-31 00:00:00","CIGNA BEHAVIORAL HEALTH                      ","693.9","715","BENEFITS SELF INSURANCE","27438","CIGNA OAP                          ","52413","BEHAVIORAL HEALTH INSURANCE CLAIMS ","2019","11"
"2019-05-31 00:00:00","CIGNA BEHAVIORAL HEALTH                      ","545.25","715","BENEFITS SELF INSURANCE","27439","CIGNA OAP HSA                      ","52413","BEHAVIORAL HEALTH INSURANCE CLAIMS ","2019","11"
"2019-05-31 00:00:00","CIGNA BEHAVIORAL HEALTH                      ","16.8","717","BENEFITS SELF INS DIS PSPRS RETIREE","27451","CIGNA OAP PSPRS RETIREES           ","52413","BEHAVIORAL HEALTH INSURANCE CLAIMS ","2019","11"
"2019-05-31 00:00:00","CIGNA BEHAVIORAL HEALTH                      ","4.2","717","BENEFITS SELF INS DIS PSPRS RETIREE","27452","CIGNA OAP + HSA PSPRS RETIREES     ","52413","BEHAVIORAL HEALTH INSURANCE CLAIMS ","2019","11"
"2019-05-31 00:00:00","CINTAS CORP                                  ","168.9","603","WATER RECLAMATION","29505","WATER RECLAMATION ADMIN            ","52190","OTHER PROFESSIONAL SERVICES        ","2019","11"
"2019-05-31 00:00:00","CINTAS CORPORATION                           ","77.1","100","GENERAL","20904","BUILDING MAINTENANCE AND REPAIR    ","53050","CLOTHING & PERSONAL PROTECT EQUIP  ","2019","11"
"2019-05-31 00:00:00","CINTAS CORPORATION                           ","216.91","100","GENERAL","20907","CONSTRUCTION SERVICES              ","53050","CLOTHING & PERSONAL PROTECT EQUIP  ","2019","11"
"2019-05-31 00:00:00","CINTAS CORPORATION                           ","108.56","200","TRANSPORTATION","20870","SIGNS AND MARKINGS *06/20          ","53090","OTHER OPERATING SUPPLIES           ","2019","11"
"2019-05-31 00:00:00","CINTAS CORPORATION                           ","34.78","600","WATER","29221","CAP TREATMENT PLANT                ","52190","OTHER PROFESSIONAL SERVICES        ","2019","11"
"2019-05-31 00:00:00","FISHER SCIENTIFIC COMPANY LLC                ","223.61","600","WATER","29460","WATER LABORATORY                   ","53040","CHEMICALS & LABORATORY SUPPLIES    ","2019","11"
"2019-05-31 00:00:00","GARVEY LIBRARY CONSULTING                    ","2125","100","GENERAL","25601","LIBRARY PLANNING AND ADMINISTRATION","52190","OTHER PROFESSIONAL SERVICES        ","2019","11"
"2019-05-31 00:00:00","GLENN BUSINESS INTERIORS INC                 ","1275.92","100","GENERAL","01116","CITIZEN SERVICE                    ","53090","OTHER OPERATING SUPPLIES           ","2019","11"
"2019-05-31 00:00:00","GRAINGER                                     ","299","600","WATER","29221","CAP TREATMENT PLANT                ","53794","MAT TO MAINT AND REPAIR MECH SYS   ","2019","11"
"2019-05-31 00:00:00","GRAINGER                                     ","5926.38","600","WATER","29275","BOOSTER STATIONS                   ","53793","MAT TO MAINT AND REPAIR ELEC       ","2019","11"
"2019-05-31 00:00:00","GRAINGER                                     ","1505.21","603","WATER RECLAMATION","29380","WATER CAMPUS WATER RECLAMATION PLNT","53794","MAT TO MAINT AND REPAIR MECH SYS   ","2019","11"
"2019-05-31 00:00:00","HAYDEN ROAD ANIMAL HOSPITAL                  ","193.75","100","GENERAL","22204","CANINE SERVICES                    ","52190","OTHER PROFESSIONAL SERVICES        ","2019","11"
"2019-05-31 00:00:00","HAYDEN ROAD ANIMAL HOSPITAL                  ","30.9","100","GENERAL","22204","CANINE SERVICES                    ","53090","OTHER OPERATING SUPPLIES           ","2019","11"
"2019-05-31 00:00:00","HEINFELD MEECH & CO PC                       ","750","100","GENERAL","23300","FINANCE                            ","52190","OTHER PROFESSIONAL SERVICES        ","2019","11"
"2019-05-31 00:00:00","HEINFELD MEECH & CO PC                       ","375","600","WATER","29110","ENGINEERING/ADMIN - WATER          ","52190","OTHER PROFESSIONAL SERVICES        ","2019","11"
"2019-05-31 00:00:00","HEINFELD MEECH & CO PC                       ","375","603","WATER RECLAMATION","29120","ENGINEERING/ADMIN-WTR RECLAMATION  ","52190","OTHER PROFESSIONAL SERVICES        ","2019","11"
"2019-05-31 00:00:00","HOSTEDHR LLC                                 ","350","100","GENERAL","27410","TRAINING AND DEVELOPMENT           ","52350","SOFTWARE MAINT & LICENSING         ","2019","11"
"2019-05-31 00:00:00","HP INC                                       ","4322","720","PC REPLACEMENT","27506","PC REPLACEMENTS                    ","54522","COMPUTER EQUIPMENT                 ","2019","11"
"2019-05-31 00:00:00","INDUSTRIAL AUTOMATION SERVICES INC           ","4302","612","GAINEY RANCH WWTP","29607","GAINEY RANCH WATER RECLAMATION     ","53794","MAT TO MAINT AND REPAIR MECH SYS   ","2019","11"
"2019-05-31 00:00:00","INTERSTATE LOCK & SAFE INC                   ","325","100","GENERAL","22432","SPECIAL INVESTGATIONS              ","52190","OTHER PROFESSIONAL SERVICES        ","2019","11"
"2019-05-31 00:00:00","JOSEPH D CONSALVO                            ","1800","100","GENERAL","25451","LEISURE EDUCATION PROGRAMS         ","52190","OTHER PROFESSIONAL SERVICES        ","2019","11"
"2019-05-31 00:00:00","LAMAR COMPANIES                              ","250","285","TOURISM DEVELOPMENT","21743","OTHER COMMITMENTS                  ","52185","ADVERTISING                        ","2019","11"
"2019-05-31 00:00:00","MARK A PARATORE                              ","227","100","GENERAL","21410","BUSINESS DEVELOPMENT               ","52230","OVERNIGHT TRAIN/BUSINESS CONF TRAVL","2019","11"
"2019-05-31 00:00:00","MCDOWELL SONORAN CONSERVANCY                 ","9237.91","458","CIP PRESERVE TX04-IMPRVMT/LAND","PB52A","RESTORE,HABITAT,FIRE/SAFTY IMP     ","56046","DSGN - OTHER SERVICES              ","2019","11"
"2019-05-31 00:00:00","MIDWEST TAPE                                 ","5788.41","100","GENERAL","25602","LIBRARY OPERATIONS                 ","53600","LIBRARY MATERIALS                  ","2019","11"
"2019-05-31 00:00:00","MOVIE LICENSING USA                          ","5456.53","100","GENERAL","25606","LIBRARY ADULT SERVICES             ","52875","LICENSES & PERMITS                 ","2019","11"
"2019-05-31 00:00:00","NEXTCARE URGENT CARE                         ","9727","100","GENERAL","27401","STAFFING SERVICES                  ","52150","MEDICAL SERVICES                   ","2019","11"
"2019-05-31 00:00:00","NEXTNET PARTNERS LLC                         ","4196.36","100","GENERAL","27504","INFORMATION SYSTEMS SECURITY       ","52350","SOFTWARE MAINT & LICENSING         ","2019","11"
"2019-05-31 00:00:00","NUTRIEN AG SOLUTIONS                         ","2600.14","100","GENERAL","25420","LANDSCAPE CONTRACTS                ","53040","CHEMICALS & LABORATORY SUPPLIES    ","2019","11"
"2019-05-31 00:00:00","NUTRIEN AG SOLUTIONS                         ","700.7","100","GENERAL","25437","MAINTENANCE - NORTH AREA PARKS     ","53010","AGRICULTURE & HORTICULTURE SUPPLY  ","2019","11"
"2019-05-31 00:00:00","PETTY CASH - RUTH JOHNSON                    ","14.05","100","GENERAL","01117","DIVERSITY                          ","52240","CIVIC EVENTS                       ","2019","11"
"2019-05-31 00:00:00","PETTY CASH - RUTH JOHNSON                    ","26.53","100","GENERAL","23100","ACCOUNTING                         ","53045","BUSINESS MTGS-REFRESHMENTS & SUPPLI","2019","11"
"2019-05-31 00:00:00","PETTY CASH - RUTH JOHNSON                    ","22.65","100","GENERAL","25403","STADIUM OPERATIONS                 ","53720","SMALL TOOLS & EQUIPMENT            ","2019","11"
"2019-05-31 00:00:00","PETTY CASH - RUTH JOHNSON                    ","92.95","280","SPECIAL PROGRAMS","01025","MAYORS SCHOLARSHIP PROGRAM         ","53065","CEREMONIAL AND RECOGNITION         ","2019","11"
"2019-05-31 00:00:00","PETTY CASH - TIFFANY DOMINGO                 ","40.86","640","AVIATION","21900","AVIATION                           ","53045","BUSINESS MTGS-REFRESHMENTS & SUPPLI","2019","11"
"2019-05-31 00:00:00","POWER DOWN AMERICA LLC                       ","400","221","CDBG REHAB REVOLVING LOAN","31090","17/18-CDBG COS REHABILITATION      ","52190","OTHER PROFESSIONAL SERVICES        ","2019","11"
"2019-05-31 00:00:00","RED WING SHOE COMPANY INC                    ","146.94","200","TRANSPORTATION","20800","STREET OPERATIONS ADMINISTRATION *0","53050","CLOTHING & PERSONAL PROTECT EQUIP  ","2019","11"
"2019-05-31 00:00:00","SAFELITE AUTOGLASS                           ","783.63","100","GENERAL","22607","RESOURCE MANAGEMENT                ","52820","DAMAGE CLAIMS                      ","2019","11"
"2019-05-31 00:00:00","SALT WORKS                                   ","69.65","603","WATER RECLAMATION","29381","ADVANCED WATER TREATMENT PLANT     ","53052","CLEANING CHEMICAL(TAXABLE)         ","2019","11"
"2019-05-31 00:00:00","SAMPLE TRAPS LLC                             ","2449.1","600","WATER","29460","WATER LABORATORY                   ","53040","CHEMICALS & LABORATORY SUPPLIES    ","2019","11"
"2019-05-31 00:00:00","SARAH FERRARA                                ","698.8","640","AVIATION","21900","AVIATION                           ","52230","OVERNIGHT TRAIN/BUSINESS CONF TRAVL","2019","11"
"2019-05-31 00:00:00","SCALE CENTER OF ARIZONA                      ","322.52","650","SOLID WASTE MANAGEMENT","20535","TRANSFER STATION OPERATIONS        ","52360","MAINT - MACHINERY, EQUIP & AUTOS   ","2019","11"
"2019-05-31 00:00:00","SCOTTSDALE LIVESTOCK LLC                     ","1027.84","100","GENERAL","22208","MOUNTED PATROL                     ","53090","OTHER OPERATING SUPPLIES           ","2019","11"
"2019-05-31 00:00:00","SOMERSET LANDSCAPE LLC                       ","17763.01","200","TRANSPORTATION","20820","ALLEY MAINTENANCE *06/20           ","52390","MISC MAINTENANCE AND REPAIR        ","2019","11"
"2019-05-31 00:00:00","SOUTHWEST WATER TREATMENT LLC                ","490.34","600","WATER","29221","CAP TREATMENT PLANT                ","52360","MAINT - MACHINERY, EQUIP & AUTOS   ","2019","11"
"2019-05-31 00:00:00","SPEEDIE AND ASSOCIATES                       ","629.2","602","CIP WATER","WD04A","WATER TREATMENT FACILITY IMPR      ","56091","CONT - WATER - TREATMENT FACILITY  ","2019","11"
"2019-05-31 00:00:00","SUN VALLEY PRINTING & GRAPHICS INC           ","445","100","GENERAL","23420","GRAPHIC & PRINTING SOLUTIONS       ","52270","PRINTING & GRAPHICS SERVICES       ","2019","11"
"2019-05-31 00:00:00","SUSAN L WEINER                               ","136","100","GENERAL","25451","LEISURE EDUCATION PROGRAMS         ","52190","OTHER PROFESSIONAL SERVICES        ","2019","11"
"2019-05-31 00:00:00","SYMETRA FINANCIAL                            ","6917.44","715","BENEFITS SELF INSURANCE","27438","CIGNA OAP                          ","52420","INSURANCE & BOND PREMIUMS          ","2019","11"
"2019-05-31 00:00:00","SYMETRA FINANCIAL                            ","5343.08","715","BENEFITS SELF INSURANCE","27439","CIGNA OAP HSA                      ","52420","INSURANCE & BOND PREMIUMS          ","2019","11"
"2019-05-31 00:00:00","SYMETRA FINANCIAL                            ","336.34","717","BENEFITS SELF INS DIS PSPRS RETIREE","27450","CIGNA OAP IN-NETWORK PSPRS RETIREES","52420","INSURANCE & BOND PREMIUMS          ","2019","11"
"2019-05-31 00:00:00","SYMETRA FINANCIAL                            ","208.83","717","BENEFITS SELF INS DIS PSPRS RETIREE","27451","CIGNA OAP PSPRS RETIREES           ","52420","INSURANCE & BOND PREMIUMS          ","2019","11"
"2019-05-31 00:00:00","THATCHER COMPANY OF ARIZONA INC              ","7694.86","600","WATER","29221","CAP TREATMENT PLANT                ","53051","TREATMENT CHEMICAL(NON-TAXABLE)    ","2019","11"
"2019-05-31 00:00:00","TYLER TECHNOLOGIES INC                       ","150","100","GENERAL","23100","ACCOUNTING                         ","52350","SOFTWARE MAINT & LICENSING         ","2019","11"
"2019-05-31 00:00:00","UNIPHOS ENVIROTRONIC INC                     ","573.3","100","GENERAL","22014","HAZARDOUS MATERIALS RESPONSE TEAM  ","53040","CHEMICALS & LABORATORY SUPPLIES    ","2019","11"
"2019-05-31 00:00:00","VALLEY COLLECTION SERVICE LLC                ","141.86","100","GENERAL","23540","REVENUE RECOVERY                   ","52171","COLLECTION AGENCY FEES             ","2019","11"
"2019-05-31 00:00:00","VANMARCKE TRADE SUPPLY INC                   ","33.79","100","GENERAL","20906","PLUMBING MAINTENANCE               ","53770","MTRS TO MAINT & REPAIR BLDS & IMPR ","2019","11"
"2019-05-31 00:00:00","VERIZON WIRELESS                             ","73","100","GENERAL","22433","TACTICAL OPERATIONS                ","52226","SPECIALTY LINES - COMMUNICATIONS   ","2019","11"
"2019-05-31 00:00:00","WRIGHT ENGINEERING CORPORATION               ","2100","410","CIP TRANSPORTATION PRIVILEGE TAX ","YF23A","TRAFFFIC SIGNAL CONSTRUCTION       ","56047","DSGN - ENGINEERING SERVICES        ","2019","11"
"2019-06-03 00:00:00","AAA FULL TRANSPORTATION                      ","1409.82","200","TRANSPORTATION","21110","TRANSIT OPERATIONS *06/19          ","52866","TAXI VOUCHER PROGRAM               ","2019","12"
"2019-06-03 00:00:00","ACE UNIFORMS OF PHOENIX                      ","87.96","100","GENERAL","22607","RESOURCE MANAGEMENT                ","53050","CLOTHING & PERSONAL PROTECT EQUIP  ","2019","12"
"2019-06-03 00:00:00","AIDANT FIRE PROTECTION COMPANY               ","288.28","100","GENERAL","22035","FIRE RESOURCE MANAGEMENT           ","52890","OTHER CONTRACTUAL SERVICES         ","2019","12"
"2019-06-03 00:00:00","AIR COLD SUPPLY OR WESTER AIR SUPPLY         ","201.9","100","GENERAL","20905","HVAC MAINTENANCE                   ","53790","MAT TO MAINT & REPAIR MACH, EQUIP  ","2019","12"
"2019-06-03 00:00:00","ALL CITY TOWING                              ","227","700","FLEET MANAGEMENT","20706","FLEET MANAGEMENT OPERATIONS        ","52360","MAINT - MACHINERY, EQUIP & AUTOS   ","2019","12"
"2019-06-03 00:00:00","AMERICAN GLASS TINT INC                      ","300","100","GENERAL","20904","BUILDING MAINTENANCE AND REPAIR    ","52330","MAINTENANCE, BUILDINGS & STRUCTURE ","2019","12"
"2019-06-03 00:00:00","AMERICAN REFRIGERATION SUPPLIES INC          ","169.45","100","GENERAL","20905","HVAC MAINTENANCE                   ","53790","MAT TO MAINT & REPAIR MACH, EQUIP  ","2019","12"
"2019-06-03 00:00:00","ANCON SERVICE COMPANIES                      ","3595.87","100","GENERAL","20906","PLUMBING MAINTENANCE               ","52330","MAINTENANCE, BUILDINGS & STRUCTURE ","2019","12"
"2019-06-03 00:00:00","ANCON SERVICE COMPANIES                      ","38958.92","603","WATER RECLAMATION","29321","SEWER SYSTEM                       ","52156","SEWER CLEANING                     ","2019","12"
"2019-06-03 00:00:00","ANSWERNOW                                    ","1239.24","600","WATER","29200","WATER SERVICES ADMINISTRATION      ","52190","OTHER PROFESSIONAL SERVICES        ","2019","12"
"2019-06-03 00:00:00","ARIZONA DEPARTMENT OF ENVIRONMENTAL QUALITY  ","250","603","WATER RECLAMATION","29321","SEWER SYSTEM                       ","52800","SUBSCRIPTIONS & MEMBERSHIPS        ","2019","12"
"2019-06-03 00:00:00","ARIZONA DEPARTMENT OF ENVIRONMENTAL QUALITY  ","200","603","WATER RECLAMATION","29381","ADVANCED WATER TREATMENT PLANT     ","52800","SUBSCRIPTIONS & MEMBERSHIPS        ","2019","12"
"2019-06-03 00:00:00","ARIZONA DEPARTMENT OF PUBLIC SAFETY          ","22","100","GENERAL","23510","TAX AND LICENSE ADMINISTRATION     ","52190","OTHER PROFESSIONAL SERVICES        ","2019","12"
"2019-06-03 00:00:00","ARIZONA DEPARTMENT OF PUBLIC SAFETY          ","22","100","GENERAL","23510","TAX AND LICENSE ADMINISTRATION     ","52190","OTHER PROFESSIONAL SERVICES        ","2019","12"
"2019-06-03 00:00:00","ARIZONA DEPARTMENT OF PUBLIC SAFETY          ","20","100","GENERAL","27401","STAFFING SERVICES                  ","52190","OTHER PROFESSIONAL SERVICES        ","2019","12"
"2019-06-03 00:00:00","BAKER & TAYLOR LLC                           ","1115.83","100","GENERAL","25602","LIBRARY OPERATIONS                 ","53600","LIBRARY MATERIALS                  ","2019","12"
"2019-06-03 00:00:00","BALAR EQUIPMENT CORPORATION                  ","672.56","600","WATER","29201","WATER DISTRIBUTION                 ","53794","MAT TO MAINT AND REPAIR MECH SYS   ","2019","12"
"2019-06-03 00:00:00","BK TECHNOLOGIES INC                          ","3055.09","400","CIP GENERAL","YF31A","PS - FIRE RADIO REPLACEMENT        ","56132","EQUP - RADIOS                      ","2019","12"
"2019-06-03 00:00:00","BRIGITTE YANCY INTERNATIONAL LLC             ","360","715","BENEFITS SELF INSURANCE","27436","LIVE LIFE WELL PROGRAM             ","52190","OTHER PROFESSIONAL SERVICES        ","2019","12"
"2019-06-03 00:00:00","C & I SHOW HARDWARE AND SECURITY SYSTEMS INC ","3607.84","600","WATER","29206","WATER METER GROUP                  ","53780","OTHER MAINTENANCE & REPAIR SUPPLY  ","2019","12"
"2019-05-31 00:00:00","CINTAS CORPORATION                           ","2028.56","600","WATER","29500","WATER ADMINISTRATION               ","52380","UNIFORM CLEANING                   ","2019","11"
"2019-05-31 00:00:00","CINTAS CORPORATION                           ","154.52","601","GROUNDWATER TREATMENT FACILITY","29600","CGTF REIMBURSABLE                  ","52380","UNIFORM CLEANING                   ","2019","11"
"2019-05-31 00:00:00","CINTAS CORPORATION                           ","261.68","603","WATER RECLAMATION","29505","WATER RECLAMATION ADMIN            ","52380","UNIFORM CLEANING                   ","2019","11"
"2019-05-31 00:00:00","CINTAS CORPORATION                           ","610.52","700","FLEET MANAGEMENT","20706","FLEET MANAGEMENT OPERATIONS        ","52380","UNIFORM CLEANING                   ","2019","11"
"2019-05-31 00:00:00","DH PACE COMPANY INC                          ","75","100","GENERAL","20902","CONTRACT ADMINISTRATION            ","52330","MAINTENANCE, BUILDINGS & STRUCTURE ","2019","11"
"2019-05-31 00:00:00","DOEGE DEVELOPMENT LLC                        ","13289","417","CIP CDBG","PE06A","PAIUTE NEIGH CTR ADA BATHROOM *09/1","56082","CONT - BUILDINGS                   ","2019","11"
"2019-05-31 00:00:00","ENVIRONMENTAL DRAIN & ODOR CONTROL SERVICES  ","735","100","GENERAL","20906","PLUMBING MAINTENANCE               ","52330","MAINTENANCE, BUILDINGS & STRUCTURE ","2019","11"
"2019-05-31 00:00:00","EWING IRRIGATION PRODUCTS                    ","849.65","100","GENERAL","25412","MEDIANS & RIGHT-OF-WAY MAINTENANCE ","53770","MTRS TO MAINT & REPAIR BLDS & IMPR ","2019","11"
"2019-05-31 00:00:00","EWING IRRIGATION PRODUCTS                    ","1745.57","100","GENERAL","25416","MAINTENANCE-ELDORADO PARK          ","53770","MTRS TO MAINT & REPAIR BLDS & IMPR ","2019","11"
"2019-05-31 00:00:00","FAST ACTION MOVERS                           ","878.75","230","GRANTS","36251","SRP-MIC FY18/19 SR CENTERS         ","52190","OTHER PROFESSIONAL SERVICES        ","2019","11"
"2019-05-31 00:00:00","FASTENAL COMPANY                             ","4140.92","200","TRANSPORTATION","20860","TRAFFIC SIGNALS *06/20             ","53790","MAT TO MAINT & REPAIR MACH, EQUIP  ","2019","11"
"2019-05-31 00:00:00","FM GROUP INC                                 ","1075","221","CDBG REHAB REVOLVING LOAN","31090","17/18-CDBG COS REHABILITATION      ","52190","OTHER PROFESSIONAL SERVICES        ","2019","11"
"2019-05-31 00:00:00","GENUINE PARTS COMPANY                        ","22.35","700","FLEET MANAGEMENT","20706","FLEET MANAGEMENT OPERATIONS        ","53780","OTHER MAINTENANCE & REPAIR SUPPLY  ","2019","11"
"2019-05-31 00:00:00","GOVERNORS OFFICE OF HIGHWAY SAFETY           ","200","100","GENERAL","01051","PROSECUTION                        ","52245","TRAINING/BUSINESS CONFERENCE       ","2019","11"
"2019-05-31 00:00:00","GRAINGER                                     ","800.7","100","GENERAL","20904","BUILDING MAINTENANCE AND REPAIR    ","53720","SMALL TOOLS & EQUIPMENT            ","2019","11"
"2019-05-31 00:00:00","GRAINGER                                     ","420.23","100","GENERAL","22427","PROPERTY AND EVIDENCE              ","53025","FURNITURE & MINOR EQUIPMENT        ","2019","11"
"2019-05-31 00:00:00","GRAINGER                                     ","324.94","600","WATER","29201","WATER DISTRIBUTION                 ","53050","CLOTHING & PERSONAL PROTECT EQUIP  ","2019","11"
"2019-05-31 00:00:00","GRAINGER                                     ","2633.24","600","WATER","29260","CHAPARRAL WATER TREATMENT PLANT    ","53794","MAT TO MAINT AND REPAIR MECH SYS   ","2019","11"
"2019-05-31 00:00:00","GRAINGER                                     ","5625.4","600","WATER","29500","WATER ADMINISTRATION               ","53044","WATER SAFETY EQUIPMENT             ","2019","11"
"2019-05-31 00:00:00","GRAINGER                                     ","1258.23","603","WATER RECLAMATION","29381","ADVANCED WATER TREATMENT PLANT     ","53793","MAT TO MAINT AND REPAIR ELEC       ","2019","11"
"2019-05-31 00:00:00","GRAINGER                                     ","657.79","603","WATER RECLAMATION","29535","UTILITIES MAINT-WTR RECLAMATION    ","53720","SMALL TOOLS & EQUIPMENT            ","2019","11"
"2019-05-31 00:00:00","GRAINGER                                     ","754.4","604","RWDS","29601","RECLAIMED WATER DISTRIBUTION       ","53794","MAT TO MAINT AND REPAIR MECH SYS   ","2019","11"
"2019-05-31 00:00:00","HEINFELD MEECH & CO PC                       ","1500","266","SCOTTSDALE PRESERVE AUTHORITY","50922","SPA-CITY TREASURER                 ","52190","OTHER PROFESSIONAL SERVICES        ","2019","11"
"2019-05-31 00:00:00","HENRY SCHEIN MATRIX MEDICAL                  ","4606.82","100","GENERAL","22607","RESOURCE MANAGEMENT                ","53090","OTHER OPERATING SUPPLIES           ","2019","11"
"2019-05-31 00:00:00","HILL BROTHERS CHEMICAL CO                    ","2869.78","603","WATER RECLAMATION","29381","ADVANCED WATER TREATMENT PLANT     ","53051","TREATMENT CHEMICAL(NON-TAXABLE)    ","2019","11"
"2019-05-31 00:00:00","JACKS TIRE & OIL MANAGEMENT COMPANY INC      ","7453.3","700","FLEET MANAGEMENT","20706","FLEET MANAGEMENT OPERATIONS        ","52360","MAINT - MACHINERY, EQUIP & AUTOS   ","2019","11"
"2019-05-31 00:00:00","JAN PETERSON                                 ","360","100","GENERAL","25451","LEISURE EDUCATION PROGRAMS         ","52190","OTHER PROFESSIONAL SERVICES        ","2019","11"
"2019-05-31 00:00:00","KEMIRA WATER SOLUTIONS INC                   ","6942.61","603","WATER RECLAMATION","29321","SEWER SYSTEM                       ","53051","TREATMENT CHEMICAL(NON-TAXABLE)    ","2019","11"
"2019-05-31 00:00:00","KIMBERLY ALFRAID                             ","585","100","GENERAL","25451","LEISURE EDUCATION PROGRAMS         ","52190","OTHER PROFESSIONAL SERVICES        ","2019","11"
"2019-05-31 00:00:00","KIMLEY HORN AND ASSOCIATES INC               ","121319.98","410","CIP TRANSPORTATION PRIVILEGE TAX ","SC01B","PIMA RD-PINN PK TO HAPPY VALLEY    ","56047","DSGN - ENGINEERING SERVICES        ","2019","11"
"2019-05-31 00:00:00","KUV CONSULTANTS LLC                          ","8200","600","WATER","29500","WATER ADMINISTRATION               ","52250","SPONSORED TRAINING                 ","2019","11"
"2019-05-31 00:00:00","LANGUAGE CONNECTION                          ","190","100","GENERAL","01080","COURT                              ","52170","COURT REPORTERS/TRANSCRIPTION SERV ","2019","11"
"2019-05-31 00:00:00","LARRY H MILLER FORD MESA                     ","85","700","FLEET MANAGEMENT","20706","FLEET MANAGEMENT OPERATIONS        ","52360","MAINT - MACHINERY, EQUIP & AUTOS   ","2019","11"
"2019-05-31 00:00:00","LIGHTING UNLIMITED                           ","487.15","100","GENERAL","20903","ELECTRICAL  MAINTENANCE            ","53770","MTRS TO MAINT & REPAIR BLDS & IMPR ","2019","11"
"2019-05-31 00:00:00","LOFTIN EQUIPMENT CO                          ","127.5","400","CIP GENERAL","YF01A","FACILITIES RPR AND MAINT PGM       ","56082","CONT - BUILDINGS                   ","2019","11"
"2019-05-31 00:00:00","MARJON CERAMICS INC                          ","3809.8","100","GENERAL","25423","COORD OF ATHLETIC FIELDS-YOUTH ORG ","53090","OTHER OPERATING SUPPLIES           ","2019","11"
"2019-05-31 00:00:00","MATHESON TRI GAS INC                         ","139.08","100","GENERAL","25410","MAINTENANCE - FOUNTAINS & AQUATICS ","53040","CHEMICALS & LABORATORY SUPPLIES    ","2019","11"
"2019-06-03 00:00:00","CATHERINE TURCHAN                            ","50","100","GENERAL","25455","ADULT SPORTS PROGRAMS              ","52190","OTHER PROFESSIONAL SERVICES        ","2019","12"
"2019-06-03 00:00:00","CDW GOVERNMENT INC                           ","210.19","603","WATER RECLAMATION","29515","WATER RECLAMATION EFFICIENCY GROUP ","53793","MAT TO MAINT AND REPAIR ELEC       ","2019","12"
"2019-06-03 00:00:00","CITY OF PHOENIX                              ","10.9","200","TRANSPORTATION","20909","UTILITIES - MEDIAN & RIGHT OF WAY  ","52713","WATER                              ","2019","12"
"2019-06-03 00:00:00","CLIMATEC LLC                                 ","40678.46","605","CIP WATER RECLAMATION","VB54A","WTR RECLAMATION SECURITY ENHANCEMNT","56104","CONT - WWATER - SECURITY           ","2019","12"
"2019-06-03 00:00:00","COMM FIT SERVICE ARIZONA LLC                 ","578.1","100","GENERAL","25462","ELDORADO AQUATIC CENTER            ","52360","MAINT - MACHINERY, EQUIP & AUTOS   ","2019","12"
"2019-06-03 00:00:00","COURIER GRAPHICS CORPORATION                 ","14998.69","100","GENERAL","25000","COMMUNITY SERVICES PLANNING & ADMIN","52270","PRINTING & GRAPHICS SERVICES       ","2019","12"
"2019-06-03 00:00:00","COX COMMUNICATIONS PHOENIX                   ","36.75","100","GENERAL","25301","VISTA DEL CAMINO SOCIAL SERVICE CTR","52226","SPECIALTY LINES - COMMUNICATIONS   ","2019","12"
"2019-06-03 00:00:00","CREATIVE COMMUNICATIONS                      ","141.18","100","GENERAL","25454","YOUTH SPORTS                       ","52190","OTHER PROFESSIONAL SERVICES        ","2019","12"
"2019-06-03 00:00:00","DANA KEPNER COMPANY INC                      ","10936.02","604","RWDS","29601","RECLAIMED WATER DISTRIBUTION       ","53794","MAT TO MAINT AND REPAIR MECH SYS   ","2019","12"
"2019-06-03 00:00:00","ELECTRIC SUPPLY INC                          ","8888.84","603","WATER RECLAMATION","29321","SEWER SYSTEM                       ","53793","MAT TO MAINT AND REPAIR ELEC       ","2019","12"
"2019-06-03 00:00:00","EMISSION COMPLIANT CONTROLS CORP             ","3406.48","600","WATER","29275","BOOSTER STATIONS                   ","52360","MAINT - MACHINERY, EQUIP & AUTOS   ","2019","12"
"2019-06-03 00:00:00","ENVIRONMENTAL SYSTEMS RESEARCH INSTITUTE INC ","378.18","100","GENERAL","20903","ELECTRICAL  MAINTENANCE            ","52350","SOFTWARE MAINT & LICENSING         ","2019","12"
"2019-06-03 00:00:00","FX TURF SPECIALIST LLC                       ","3412.66","100","GENERAL","25433","MAINTENANCE-COPPER RIDGE           ","52322","MAINTENANCE, MOWING                ","2019","12"
"2019-06-03 00:00:00","FX TURF SPECIALIST LLC                       ","2787.84","100","GENERAL","25435","MAINTENANCE - THOMPSON PEAK PARK   ","52322","MAINTENANCE, MOWING                ","2019","12"
"2019-06-03 00:00:00","GRAINGER                                     ","1214.83","100","GENERAL","22035","FIRE RESOURCE MANAGEMENT           ","53021","FIRE STATION SUPPLIES AND EQUIPMENT","2019","12"
"2019-06-03 00:00:00","HENRY SCHEIN MATRIX MEDICAL                  ","1166.88","100","GENERAL","22035","FIRE RESOURCE MANAGEMENT           ","53022","EMERGENCY MEDICAL SUPPLIES         ","2019","12"
"2019-06-03 00:00:00","HEWLETT PACKARD ENTERPRISE COMPANY           ","8372.88","410","CIP TRANSPORTATION PRIVILEGE TAX ","YE08H","IT - SERVER INFRASTRUCTURE *06/19  ","56157","IT - EQUIPMENT                     ","2019","12"
"2019-06-03 00:00:00","JENNIFER PACE DURAN                          ","3200","280","SPECIAL PROGRAMS","25494","MCCORMICK RR PK/REV FACILITIES OPER","52190","OTHER PROFESSIONAL SERVICES        ","2019","12"
"2019-06-03 00:00:00","KIMLEY HORN AND ASSOCIATES INC               ","7653.4","200","TRANSPORTATION","20865","STREET LIGHT MAINTENANCE *06/20    ","52192","STREET LIGHT MAINTENANCE           ","2019","12"
"2019-06-03 00:00:00","LEE BAYS SUPPLY                              ","1012.97","100","GENERAL","22014","HAZARDOUS MATERIALS RESPONSE TEAM  ","53025","FURNITURE & MINOR EQUIPMENT        ","2019","12"
"2019-06-03 00:00:00","LINDA FRIED                                  ","324","100","GENERAL","25451","LEISURE EDUCATION PROGRAMS         ","52190","OTHER PROFESSIONAL SERVICES        ","2019","12"
"2019-06-03 00:00:00","MARILYN A BUETTNER                           ","280","100","GENERAL","25451","LEISURE EDUCATION PROGRAMS         ","52190","OTHER PROFESSIONAL SERVICES        ","2019","12"
"2019-06-03 00:00:00","MISCOWATER                                   ","20054.62","600","WATER","29221","CAP TREATMENT PLANT                ","53794","MAT TO MAINT AND REPAIR MECH SYS   ","2019","12"
"2019-06-03 00:00:00","MSC INDUSTRIAL SUPPLY CO INC                 ","80.07","700","FLEET MANAGEMENT","20706","FLEET MANAGEMENT OPERATIONS        ","53780","OTHER MAINTENANCE & REPAIR SUPPLY  ","2019","12"
"2019-06-03 00:00:00","REGIONAL PAVEMENT MAINTENANCE OF ARIZONA INC ","11661.3","200","TRANSPORTATION","20840","ASPHALT & MAINTENANCE *06/20       ","52390","MISC MAINTENANCE AND REPAIR        ","2019","12"
"2019-06-03 00:00:00","SAFELITE AUTOGLASS                           ","300.89","100","GENERAL","22607","RESOURCE MANAGEMENT                ","52820","DAMAGE CLAIMS                      ","2019","12"
"2019-06-03 00:00:00","SCOTTSDALE COMMUNITY COLLEGE                 ","3000","230","GRANTS","36244","GILA RIVER FY18/19 - MAYOR *08/19  ","52825","GRANTS AND SUBSIDIES               ","2019","12"
"2019-06-03 00:00:00","TDINDUSTRIES INC                             ","739.61","600","WATER","29275","BOOSTER STATIONS                   ","53794","MAT TO MAINT AND REPAIR MECH SYS   ","2019","12"
"2019-06-03 00:00:00","TELEVISION EQUIPMENT ASSOCIATES INC          ","6482.64","100","GENERAL","22433","TACTICAL OPERATIONS                ","53024","RADIOS AND ASSOCIATED EQUIPMENT    ","2019","12"
"2019-06-03 00:00:00","THATCHER COMPANY OF ARIZONA INC              ","403","100","GENERAL","25410","MAINTENANCE - FOUNTAINS & AQUATICS ","53040","CHEMICALS & LABORATORY SUPPLIES    ","2019","12"
"2019-06-03 00:00:00","THE BE KIND PEOPLE PROJECT                   ","2550","100","GENERAL","25453","PARKS & REC - YOUTH DEVELOPMENT    ","52190","OTHER PROFESSIONAL SERVICES        ","2019","12"
"2019-06-03 00:00:00","THERMO ELECTRON NORTH AMERICA LLC            ","609.58","600","WATER","29460","WATER LABORATORY                   ","53040","CHEMICALS & LABORATORY SUPPLIES    ","2019","12"
"2019-06-03 00:00:00","VALLEYWIDE GENERATOR SERVICE LLC             ","262.5","603","WATER RECLAMATION","29321","SEWER SYSTEM                       ","52360","MAINT - MACHINERY, EQUIP & AUTOS   ","2019","12"
"2019-06-03 00:00:00","VERIZON WIRELESS                             ","54.54","100","GENERAL","20902","CONTRACT ADMINISTRATION            ","52226","SPECIALTY LINES - COMMUNICATIONS   ","2019","12"
"2019-06-03 00:00:00","VERIZON WIRELESS                             ","218.04","100","GENERAL","20904","BUILDING MAINTENANCE AND REPAIR    ","52226","SPECIALTY LINES - COMMUNICATIONS   ","2019","12"
"2019-06-03 00:00:00","VERIZON WIRELESS                             ","145.36","100","GENERAL","20907","CONSTRUCTION SERVICES              ","52226","SPECIALTY LINES - COMMUNICATIONS   ","2019","12"
"2019-06-03 00:00:00","VINCON ENGINEERING CONSTRUCTION LLC          ","26525.93","410","CIP TRANSPORTATION PRIVILEGE TAX ","TC06B","PAVEMENT REPLACEMENT               ","56084","CONT - STREETS                     ","2019","12"
"2019-05-31 00:00:00","MCGADY & ASSOCIATES PSYCHOLOGICAL SERVICES   ","330","100","GENERAL","01080","COURT                              ","52150","MEDICAL SERVICES                   ","2019","11"
"2019-05-31 00:00:00","MEAD AND HUNT INC                            ","3577.86","642","CIP AIRPORT","AF01A","DSGN/CON N GRL AVTN BOX HNGRS      ","56041","DSGN - PROFESSIONAL SERVICES       ","2019","11"
"2019-05-31 00:00:00","MOTOROLA SOLUTIONS INC                       ","642.85","600","WATER","29510","WATER EFFICIENCY GROUP             ","53024","RADIOS AND ASSOCIATED EQUIPMENT    ","2019","11"
"2019-05-31 00:00:00","MOTOROLA SOLUTIONS INC                       ","642.84","603","WATER RECLAMATION","29515","WATER RECLAMATION EFFICIENCY GROUP ","53024","RADIOS AND ASSOCIATED EQUIPMENT    ","2019","11"
"2019-05-31 00:00:00","MSC INDUSTRIAL SUPPLY CO INC                 ","347.57","700","FLEET MANAGEMENT","20706","FLEET MANAGEMENT OPERATIONS        ","53780","OTHER MAINTENANCE & REPAIR SUPPLY  ","2019","11"
"2019-05-31 00:00:00","NUTRIEN AG SOLUTIONS                         ","754.6","100","GENERAL","25406","MAINTENANCE-SCOTTSDALE RANCH PARK  ","53010","AGRICULTURE & HORTICULTURE SUPPLY  ","2019","11"
"2019-05-31 00:00:00","NUTRIEN AG SOLUTIONS                         ","700.7","100","GENERAL","25433","MAINTENANCE-COPPER RIDGE           ","53010","AGRICULTURE & HORTICULTURE SUPPLY  ","2019","11"
"2019-05-31 00:00:00","NUTRIEN AG SOLUTIONS                         ","700.7","100","GENERAL","25435","MAINTENANCE - THOMPSON PEAK PARK   ","53010","AGRICULTURE & HORTICULTURE SUPPLY  ","2019","11"
"2019-05-31 00:00:00","OCCUPATIONAL HEALTH CTRS OF THE SOUTHWEST PA ","61.5","100","GENERAL","22432","SPECIAL INVESTGATIONS              ","52150","MEDICAL SERVICES                   ","2019","11"
"2019-05-31 00:00:00","PETTY CASH - RUTH JOHNSON                    ","4.96","200","TRANSPORTATION","21105","TRANSPORTATION ADMIN *06/19        ","53020","OFFICE SUPPLIES                    ","2019","11"
"2019-05-31 00:00:00","PETTY CASH - RUTH JOHNSON                    ","12.97","200","TRANSPORTATION","21105","TRANSPORTATION ADMIN *06/19        ","53045","BUSINESS MTGS-REFRESHMENTS & SUPPLI","2019","11"
"2019-05-31 00:00:00","PETTY CASH - RUTH JOHNSON                    ","8.61","200","TRANSPORTATION","21120","TRAFFIC ENGINEERING *06/19         ","53020","OFFICE SUPPLIES                    ","2019","11"
"2019-05-31 00:00:00","PINNACLE PEAK ACE HARDWARE                   ","25.57","100","GENERAL","20904","BUILDING MAINTENANCE AND REPAIR    ","53770","MTRS TO MAINT & REPAIR BLDS & IMPR ","2019","11"
"2019-05-31 00:00:00","QUEEN CREEK LAW FIRM                         ","3500","100","GENERAL","01080","COURT                              ","52141","PUBLIC DEFENDER SERVICES           ","2019","11"
"2019-05-31 00:00:00","ROB A MILLAR                                 ","227","100","GENERAL","21410","BUSINESS DEVELOPMENT               ","52230","OVERNIGHT TRAIN/BUSINESS CONF TRAVL","2019","11"
"2019-05-31 00:00:00","SAFELITE AUTOGLASS                           ","627.42","700","FLEET MANAGEMENT","20706","FLEET MANAGEMENT OPERATIONS        ","52360","MAINT - MACHINERY, EQUIP & AUTOS   ","2019","11"
"2019-05-31 00:00:00","SALT RIVER LANDFILL                          ","14378.58","650","SOLID WASTE MANAGEMENT","20540","COLLECTION SVC ADMIN-RES           ","52320","CLEANING & WASTE REMOVAL           ","2019","11"
"2019-05-31 00:00:00","SALT WORKS                                   ","3409.56","600","WATER","29221","CAP TREATMENT PLANT                ","53051","TREATMENT CHEMICAL(NON-TAXABLE)    ","2019","11"
"2019-05-31 00:00:00","SALT WORKS                                   ","3183.78","603","WATER RECLAMATION","29381","ADVANCED WATER TREATMENT PLANT     ","53051","TREATMENT CHEMICAL(NON-TAXABLE)    ","2019","11"
"2019-05-31 00:00:00","SENERGY PETROLEUM LLC                        ","3661.45","600","WATER","29221","CAP TREATMENT PLANT                ","53700","GAS OIL & LUBRICANTS               ","2019","11"
"2019-05-31 00:00:00","SENERGY PETROLEUM LLC                        ","3661.45","600","WATER","29260","CHAPARRAL WATER TREATMENT PLANT    ","53700","GAS OIL & LUBRICANTS               ","2019","11"
"2019-05-31 00:00:00","SENERGY PETROLEUM LLC                        ","2754","600","WATER","29275","BOOSTER STATIONS                   ","53700","GAS OIL & LUBRICANTS               ","2019","11"
"2019-05-31 00:00:00","SHAMROCK FOODS COMPANY                       ","913.44","280","SPECIAL PROGRAMS","25494","MCCORMICK RR PK/REV FACILITIES OPER","53101","FOOD PURCHASED FOR RESALE          ","2019","11"
"2019-05-31 00:00:00","SHIELD SCREENING                             ","1715.7","100","GENERAL","27401","STAFFING SERVICES                  ","52190","OTHER PROFESSIONAL SERVICES        ","2019","11"
"2019-05-31 00:00:00","SOUTHWEST AVIAN SOLUTIONS LLC                ","446.25","200","TRANSPORTATION","20909","UTILITIES - MEDIAN & RIGHT OF WAY  ","52330","MAINTENANCE, BUILDINGS & STRUCTURE ","2019","11"
"2019-05-31 00:00:00","SOUTHWEST WATER TREATMENT LLC                ","367.5","600","WATER","29260","CHAPARRAL WATER TREATMENT PLANT    ","52360","MAINT - MACHINERY, EQUIP & AUTOS   ","2019","11"
"2019-05-31 00:00:00","SOUTHWEST WATER TREATMENT LLC                ","367.5","600","WATER","29275","BOOSTER STATIONS                   ","52360","MAINT - MACHINERY, EQUIP & AUTOS   ","2019","11"
"2019-05-31 00:00:00","SOUTHWEST WATER TREATMENT LLC                ","558","603","WATER RECLAMATION","29380","WATER CAMPUS WATER RECLAMATION PLNT","52360","MAINT - MACHINERY, EQUIP & AUTOS   ","2019","11"
"2019-05-31 00:00:00","SPRINT                                       ","100","100","GENERAL","22433","TACTICAL OPERATIONS                ","52226","SPECIALTY LINES - COMMUNICATIONS   ","2019","11"
"2019-05-31 00:00:00","SYMETRA FINANCIAL                            ","39280.15","715","BENEFITS SELF INSURANCE","27437","CIGNA OAP IN-NETWORK               ","52420","INSURANCE & BOND PREMIUMS          ","2019","11"
"2019-05-31 00:00:00","SYMETRA FINANCIAL                            ","2397.98","715","BENEFITS SELF INSURANCE","27454","CIGNA LOC PLUS IN-NETWRK           ","52420","INSURANCE & BOND PREMIUMS          ","2019","11"
"2019-05-31 00:00:00","SYMETRA FINANCIAL                            ","46.19","717","BENEFITS SELF INS DIS PSPRS RETIREE","27452","CIGNA OAP + HSA PSPRS RETIREES     ","52420","INSURANCE & BOND PREMIUMS          ","2019","11"
"2019-05-31 00:00:00","T MOBILE USA INC                             ","255","100","GENERAL","22433","TACTICAL OPERATIONS                ","52226","SPECIALTY LINES - COMMUNICATIONS   ","2019","11"
"2019-05-31 00:00:00","TOM SHANNON                                  ","171.5","100","GENERAL","22000","OFFICE OF THE FIRE CHIEF           ","52230","OVERNIGHT TRAIN/BUSINESS CONF TRAVL","2019","11"
"2019-05-31 00:00:00","UNIFIRST CORPORATION                         ","263.93","100","GENERAL","25400","PARKS & RECREATION PLANNING & ADMIN","52380","UNIFORM CLEANING                   ","2019","11"
"2019-05-31 00:00:00","UNITED FIRE                                  ","232.73","100","GENERAL","22035","FIRE RESOURCE MANAGEMENT           ","53050","CLOTHING & PERSONAL PROTECT EQUIP  ","2019","11"
"2019-06-03 00:00:00","A MIND FOR DETAIL INC                        ","3712.5","200","TRANSPORTATION","21110","TRANSIT OPERATIONS *06/19          ","52190","OTHER PROFESSIONAL SERVICES        ","2019","12"
"2019-06-03 00:00:00","WILSON ELECTRIC SERVICES CORP                ","17678.43","642","CIP AIRPORT","AB59A","AIRPORT TERMINAL AREA RDVLOPMENT PR","56082","CONT - BUILDINGS                   ","2019","12"
"2019-06-04 00:00:00","ACHEN GARDNER CONSTRUCTION LLC               ","21236.67","603","WATER RECLAMATION","29321","SEWER SYSTEM                       ","52364","SEWER LATERAL MAINT & REPAIRS      ","2019","12"
"2019-06-04 00:00:00","ALL CITY TOWING                              ","781","700","FLEET MANAGEMENT","20706","FLEET MANAGEMENT OPERATIONS        ","52360","MAINT - MACHINERY, EQUIP & AUTOS   ","2019","12"
"2019-06-04 00:00:00","ARCHER WESTERN CONTRACTORS                   ","89243.3","632","CIP 2017A MPC BONDS-WATER","WC07B","THOMAS GROUNDWATER TREATMENT FAC   ","56051","DSGN - WATER - TREATMENT FACILITY  ","2019","12"
"2019-06-04 00:00:00","ARIZONA DEPARTMENT OF ENVIRONMENTAL QUALITY  ","315","600","WATER","29530","UTILITIES MAINTENANCE - WATER      ","52800","SUBSCRIPTIONS & MEMBERSHIPS        ","2019","12"
"2019-06-04 00:00:00","BAKER & TAYLOR LLC                           ","327.31","100","GENERAL","25602","LIBRARY OPERATIONS                 ","53600","LIBRARY MATERIALS                  ","2019","12"
"2019-06-04 00:00:00","COX COMMUNICATIONS PHOENIX                   ","74.96","100","GENERAL","22607","RESOURCE MANAGEMENT                ","52226","SPECIALTY LINES - COMMUNICATIONS   ","2019","12"
"2019-06-04 00:00:00","EMA INC                                      ","3877","600","WATER","29510","WATER EFFICIENCY GROUP             ","52190","OTHER PROFESSIONAL SERVICES        ","2019","12"
"2019-06-04 00:00:00","GLENN BUSINESS INTERIORS INC                 ","821.86","100","GENERAL","2090A","FACILITIES MGMT REPAIR & MAINT     ","52330","MAINTENANCE, BUILDINGS & STRUCTURE ","2019","12"
"2019-06-04 00:00:00","GLENN BUSINESS INTERIORS INC                 ","920","100","GENERAL","2090J","ECON DEV AND TOURISM RELOCATIO     ","52360","MAINT - MACHINERY, EQUIP & AUTOS   ","2019","12"
"2019-06-04 00:00:00","GRAINGER                                     ","158.35","100","GENERAL","22035","FIRE RESOURCE MANAGEMENT           ","53021","FIRE STATION SUPPLIES AND EQUIPMENT","2019","12"
"2019-06-04 00:00:00","HILL BROTHERS CHEMICAL CO                    ","5223.56","603","WATER RECLAMATION","29321","SEWER SYSTEM                       ","53052","CLEANING CHEMICAL(TAXABLE)         ","2019","12"
"2019-06-04 00:00:00","HSS INC                                      ","3553.85","280","SPECIAL PROGRAMS","01081","COURT ENHANCEMENT                  ","52137","SECURITY                           ","2019","12"
"2019-06-04 00:00:00","JASON METZ                                   ","420","100","GENERAL","25405","SCOTTSDALE RANCH PK SPORTS COMPLEX ","52190","OTHER PROFESSIONAL SERVICES        ","2019","12"
"2019-06-04 00:00:00","JOSEPH NICHOLS                               ","160.26","280","SPECIAL PROGRAMS","22305","FAMILY ADVOCACY CTR-DONATION ACCT  ","52230","OVERNIGHT TRAIN/BUSINESS CONF TRAVL","2019","12"
"2019-06-04 00:00:00","LOFTIN EQUIPMENT CO                          ","71.69","100","GENERAL","20902","CONTRACT ADMINISTRATION            ","52360","MAINT - MACHINERY, EQUIP & AUTOS   ","2019","12"
"2019-06-04 00:00:00","NICHOLAS ALAMSHAW                            ","59.51","100","GENERAL","22219","TRAINING                           ","52230","OVERNIGHT TRAIN/BUSINESS CONF TRAVL","2019","12"
"2019-06-04 00:00:00","RECREONICS                                   ","11149.34","280","SPECIAL PROGRAMS","25498","POOL ALLOCATION - SPONSORED TEAMS  ","53770","MTRS TO MAINT & REPAIR BLDS & IMPR ","2019","12"
"2019-06-04 00:00:00","SAFETY KLEEN SYSTEMS INC                     ","35","700","FLEET MANAGEMENT","20706","FLEET MANAGEMENT OPERATIONS        ","52360","MAINT - MACHINERY, EQUIP & AUTOS   ","2019","12"
"2019-06-04 00:00:00","SOUTHWEST GAS CORP                           ","197.14","640","AVIATION","21900","AVIATION                           ","52712","GAS                                ","2019","12"
"2019-06-04 00:00:00","SPEEDIE AND ASSOCIATES                       ","321.5","409","CIP TOURISM DEVELOPMENT","PE05A","SCOTTSDALE STADIUM RENOVATIONS     ","56086","CONT - OTHER                       ","2019","12"
